Workbook

Sheet Instructions
B2: =CONCATENATE(dms_Sector," ",dms_Segment," ", "Network Service Provider") -> Gas Distribution Network Service Provider
B3: =IF(dms_Model="Reset","Regulatory Proposal RIN Template","Annual Reporting RIN") -> Regulatory Proposal RIN Template
B4: =CONCATENATE("This template is to be used by ",INDEX(dms_TradingNameFull_List,MATCH(dms_TradingName,dms_TradingName_List))," to fulfil its reporting obligations to the AER.") -> This template is to be used by Jemena Gas Networks (NSW) Ltd to fulfil its reporting obligations to the AER.
B5: INSTRUCTIONS
B6: GENERAL | C6: Complete the Business & other details worksheet before entering data or values in any other worksheets. The Business & other details worksheet is linked to other worksheets within the workbook and automatically generates certain column headings and conditional formatting.
B8: CONFIDENTIAL INFORMATION | C8: Businesses must use the macro at the top of each worksheet to identify confidential information in the confidential workbook and where confidential information has been removed in the public workbook.
C9: -Do this by selecting the cell or cells that contain confidential information and then run the CONFIDENTIAL macro. This will format the cells a specific colour that is identified by the AER's database which in turn marks that information as confidential. -To reverse this, select the cell or cells and run the NON-CONFIDENTIAL macro.
B11: PROTECTED (SOCI) INFORMATION | C11: Please use the macro at the top of each worksheet to identify information in the confidential workbook that is protected information under the SOCI Act. All information marked Protected (SOCI) is also deemed to be confidential information.
C12: -Do this by selecting the cell or cells that contain protected information and then run the PROTECTED (SOCI) macro. This will format the cells a specific colour that is identified by the AER's database which in turn marks that information as protected.. -To reverse this, select the cell or cells and run the NON-PROTECTED macro.
B14: RESPONSES | C14: Please return two (2) files to the AER: 1. A confidential version which must contain a complete set of all responses with confidential information marked using the Mark selection CONFIDENTIAL macro and which has been completed using the locked template file provided by the AER. 2. A public version with confidential information redacted or aggregated. Use the drop down box on the Business and other details worksheet to identify the file as either confidential or public.
B17: ORDER OF MAGNITUDE | C17: All amounts are to be unrounded and reported on a one for one basis: that is 1000 is to be entered as '1000'.
B19: INPUT / NON-INPUT CELLS
D20: Yellow = Input cell (mandatory)
D21: Darker yellow = input cell (mandatory)
D22: Orange = input cell (if data available)
D23: Grey = Not applicable/No inputs required
D24: PLEASE DO NOT ENTER TEXT into cells that are to contain numbers (including 'numbers stored as text')

Sheet CONTENTS
B1: =INDEX(dms_Worksheet_List,MATCH(dms_Model,dms_Model_List)) -> REGULATORY REPORTING STATEMENT
B2: =dms_TradingNameFull -> Jemena Gas Networks (NSW) Ltd
B3: =dms_Header_Span -> 2023-24 to 2029-30
C7: CONTENTS
C9: TEMPLATE DATE | D9: FEBRUARY 2024
C11: SUBMISSION | D11: Business & other details
C13: EXPENDITURE | D13: E1. Expenditure Summary
D14: E2. Mains Repex
D15: E3. Mains Augex
D16: E4. Meter replacement
D17: E5. New Connections
D18: E6. Non-network
D19: E10. Overheads
D20: E12. ICT
D21: E13. Other capex
D22: E17. Step changes
D23: E20. Opex
D24: E21. ARS
D25: E25. Escalators
C27: NETWORK | D27: N1. Demand
D28: N2. Network characteristcs
C30: SERVICE | D30: S1. Customer numbers - by customer type
D31: S1.2. Customer numbers - by tariff
D32: S10. Supply Quality
D33: S11. Network reliability
C35: FINANCIAL | D35: F3. Revenue
C37: ADMIN | D37: Additional disclosures

Sheet Business & other details
V1: =INDEX(dms_Worksheet_List,MATCH(dms_Model,dms_Model_List)) -> REGULATORY REPORTING STATEMENT
V2: =dms_TradingNameFull -> Jemena Gas Networks (NSW) Ltd
V3: =dms_Header_Span -> 2023-24 to 2029-30
V4: BUSINESS & OTHER DETAILS
V6: INSTRUCTIONS
V7: Complete the following business details regulatory template before entering data or values in any other regulatory template. This regulatory template is linked to other cells within the spreadsheet and automatically generates column headings and conditional formatting to distinguish business specific input and non-input cells.
Q9: SUBMISSION PARTICULARS INPUT SHEET
V12: ENTITY DETAILS
V14: Business Name
V16: Short name | AL16: JGN
V17: ACN/ABN | AL17: =INDEX(dms_ABN_List,MATCH(dms_TradingName,dms_TradingName_List)) -> 003 004 322
V20: Business Address | BQ20: Postal Address
V22: Address 1 | BI22: Address 1
V23: Address 2 | AL23: =IF(ISBLANK(INDEX(dms_Addr2_List,MATCH(dms_TradingName,dms_TradingName_List))),"",(INDEX(dms_Addr2_List,MATCH(dms_TradingName,dms_TradingName_List)))) ->  | BI23: Address 2
V24: Suburb | BI24: Suburb
V25: State | AL25: NSW | AV25: Post code | BI25: State | BQ25: NSW | CA25: Post code
BA27: `
V29: Contact Names
V31: Name | BI31: Name
V32: Phone | BI32: Phone
V33: Email | BI33: Email
Q38: REGULATORY CONTROL PERIODS
Z41: Forthcoming period | AL41: 2025-26 | AU41: =FRCP_y2 -> 2026-27 | BD41: =FRCP_y3 -> 2027-28 | BM41: =FRCP_y4 -> 2028-29 | BV41: =FRCP_y5 -> 2029-30
AL42: =FRCP_y6 -> 2030-31 | AU42: =FRCP_y7 -> 2031-32 | BD42: =FRCP_y8 -> 2032-33 | BM42: =FRCP_y9 -> 2033-34 | BV42: =FRCP_y10 -> 2034-35
AL43: =FRCP_y11 -> 2035-36 | AU43: =FRCP_y12 -> 2036-37 | BD43: =FRCP_y13 -> 2037-38 | BM43: =FRCP_y14 -> 2038-39 | BV43: =FRCP_y15 -> 
X47: RESETS | Z47: Current period | AL47: =CRCP_y1 -> 2020-21 | AU47: =CRCP_y2 -> 2021-22 | BD47: =CRCP_y3 -> 2022-23 | BM47: =CRCP_y4 -> 2023-24 | BV47: =CRCP_y5 -> 2024-25
AL48: =CRCP_y6 -> 2025-26 | AU48: =CRCP_y7 -> 2026-27 | BD48: =CRCP_y8 -> 2027-28 | BM48: =CRCP_y9 -> 2028-29 | BV48: =CRCP_y10 -> 2029-30
AL49: =CRCP_y11 -> 2030-31 | AU49: =CRCP_y12 -> 2031-32 | BD49: =CRCP_y13 -> 2032-33 | BM49: =CRCP_y14 -> 2033-34 | BV49: =CRCP_y15 -> 2034-35
Z51: Previous period | AL51: =PRCP_y1 -> 2015-16 | AU51: =PRCP_y2 -> 2016-17 | BD51: =PRCP_y3 -> 2017-18 | BM51: =PRCP_y4 -> 2018-19 | BV51: =PRCP_y5 -> 2019-20
AL52: =PRCP_y6 -> 2020-21 | AU52: =PRCP_y7 -> 2021-22 | BD52: =PRCP_y8 -> 2022-23 | BM52: =PRCP_y9 -> 2023-24 | BV52: =PRCP_y10 -> 2024-25
AL53: =PRCP_y11 -> 2025-26 | AU53: =PRCP_y12 -> 2026-27 | BD53: =PRCP_y13 -> 2027-28 | BM53: =PRCP_y14 -> 2028-29 | BV53: =PRCP_y15 -> 2029-30
Z55: Commencing year | AL55: 2025-26
X56: ANNUAL RINS
Z57: Final year | AL57: 2029-30
Q61: SUBMISSION DETAILS
Z63: RIN type | AL63: =INDIRECT(dms_Model) -> Regulatory Reporting (Reset)
Z65: Source | AL65: Regulatory proposal
X67: THIS FILE | Z67: Data Quality | AL67: Consolidated
Z69: Confidentiality Status | AL69: Public
Z71: Amendment Reason | AL71: .
Z73: Submission Date | AL73: dd/mm/yy | BD73: Please enter date this file submitted to AER

Sheet E1. Expenditure Summary
B1: =INDEX(dms_Worksheet_List,MATCH(dms_Model,dms_Model_List)) -> REGULATORY REPORTING STATEMENT
B2: =dms_TradingNameFull -> Jemena Gas Networks (NSW) Ltd
B3: =dms_Header_Span -> 2023-24 to 2029-30
B4: E1. EXPENDITURE SUMMARY
B5: FINAL RIN TEMPLATE - FEBRUARY 2024
B8: E1.1 - CAPEX
B9: E1.1.1 - REFERENCE SERVICES
C10: EXPENDITURE
C11: =CONCATENATE("$, real ",dms_DollarReal) -> $, real June 2025
C12: =dms_y1 -> 2023-24 | D12: =dms_y2 -> 2024-25 | E12: =dms_y3 -> 2025-26 | F12: =dms_y4 -> 2026-27 | G12: =dms_y5 -> 2027-28 | H12: =dms_y6 -> 2028-29 | I12: =dms_y7 -> 2029-30
B13: Connections (gas) | C13: 85287941.9 | D13: 82014440.78 | E13: 74016581.73 | F13: 100656495 | G13: 87072136.72 | H13: 52325189.87 | I13: 40779420.65
B14: Mains replacement | C14: 4729731.276 | D14: 6628975.463 | E14: 11962086.35 | F14: 19183971.1 | G14: 13901603.87 | H14: 9929632.823 | I14: 7534212.776
B15: Mains augmentation | C15: 1885275.566 | D15: 3360075.138 | E15: 4860384.461 | F15: 3698910.919 | G15: 1879395.182 | H15: 2238407.882 | I15: 2447594.719
B16: Telemetry | C16: 179918.9874 | D16: 180877.7529 | E16: 182118.643 | F16: 182991.2258 | G16: 183812.9287 | H16: 184781.9866 | I16: 185835.6102
B17: Meter replacement | C17: 22201514.46 | D17: 24608904.77 | E17: 22832126.62 | F17: 29410247.1 | G17: 31124452.29 | H17: 39175391.57 | I17: 36085086.6
B18: ICT | C18: 17488486.82 | D18: 18805807.36 | E18: 11605054.24 | F18: 12779694.27 | G18: 8380724.983 | H18: 6356930.84 | I18: 5901090.713
B19: Capitalised network overheads | C19: 4254116.505 | D19: 5218123.186 | E19: 5446584.013 | F19: 5990759.348 | G19: 5142075.412 | H19: 3882854.018 | I19: 3265911.058
B20: Capitalised corporate overheads | C20: 0 | D20: 0 | E20: 0 | F20: 0 | G20: 0 | H20: 0 | I20: 0
B21: Other capex | C21: 29672655.21 | D21: 57060989.49 | E21: 60191534.3 | F21: 37541092.33 | G21: 33313531.63 | H21: 22024723.53 | I21: 18599926.3
B22: Capital contributions included in the above
B23: Total (less capital contributions)
B25: E1.1.2 - NON-REFERENCE SERVICES
B26: Non-reference services | C26: 7718312.882 | D26: 12990167.16 | E26: 684400.1577 | F26: 21912436.38 | G26: 9352782.232 | H26: 5882136.5 | I26: 0
B51: Capital contributions included in the above
B52: Total | C52: =SUM(C26:C50)-C51 -> 7718312.882 | D52: 12990167.16 | E52: 684400.1577 | F52: 21912436.38 | G52: 9352782.232 | H52: 5882136.5 | I52: 0
B55: E1.2 - OPEX
B56: E1.2.1 - REFERENCE SERVICES
C57: EXPENDITURE
C58: =CONCATENATE("$, real ",dms_DollarReal) -> $, real June 2025
C59: =dms_y1 -> 2023-24 | D59: =dms_y2 -> 2024-25 | E59: =dms_y3 -> 2025-26 | F59: =dms_y4 -> 2026-27 | G59: =dms_y5 -> 2027-28 | H59: =dms_y6 -> 2028-29 | I59: =dms_y7 -> 2029-30
B60: ='E20. Opex'!B45 -> repairs and maintenance | C60: ='E20. Opex'!F45 ->  | D60: ='E20. Opex'!G45 ->  | E60: ='E20. Opex'!H45 ->  | F60: ='E20. Opex'!I45 ->  | G60: ='E20. Opex'!J45 ->  | H60: ='E20. Opex'!K45 ->  | I60: ='E20. Opex'!L45 -> 
B61: ='E20. Opex'!B46 -> marketing and retail incentives | C61: ='E20. Opex'!F46 ->  | D61: ='E20. Opex'!G46 ->  | E61: ='E20. Opex'!H46 ->  | F61: ='E20. Opex'!I46 ->  | G61: ='E20. Opex'!J46 ->  | H61: ='E20. Opex'!K46 ->  | I61: ='E20. Opex'!L46 -> 
B62: ='E20. Opex'!B47 -> debt raising | C62: ='E20. Opex'!F47 ->  | D62: ='E20. Opex'!G47 ->  | E62: ='E20. Opex'!H47 ->  | F62: ='E20. Opex'!I47 ->  | G62: ='E20. Opex'!J47 ->  | H62: ='E20. Opex'!K47 ->  | I62: ='E20. Opex'!L47 -> 
B63: ='E20. Opex'!B48 -> equity raising | C63: ='E20. Opex'!F48 ->  | D63: ='E20. Opex'!G48 ->  | E63: ='E20. Opex'!H48 ->  | F63: ='E20. Opex'!I48 ->  | G63: ='E20. Opex'!J48 ->  | H63: ='E20. Opex'!K48 ->  | I63: ='E20. Opex'!L48 -> 
B64: ='E20. Opex'!B49 -> unaccounted for gas | C64: ='E20. Opex'!F49 ->  | D64: ='E20. Opex'!G49 ->  | E64: ='E20. Opex'!H49 ->  | F64: ='E20. Opex'!I49 ->  | G64: ='E20. Opex'!J49 ->  | H64: ='E20. Opex'!K49 ->  | I64: ='E20. Opex'!L49 -> 
B65: ='E20. Opex'!B50 -> jurisdictional charges | C65: ='E20. Opex'!F50 ->  | D65: ='E20. Opex'!G50 ->  | E65: ='E20. Opex'!H50 ->  | F65: ='E20. Opex'!I50 ->  | G65: ='E20. Opex'!J50 ->  | H65: ='E20. Opex'!K50 ->  | I65: ='E20. Opex'!L50 -> 
B66: ='E20. Opex'!B51 -> GSL payments | C66: ='E20. Opex'!F51 ->  | D66: ='E20. Opex'!G51 ->  | E66: ='E20. Opex'!H51 ->  | F66: ='E20. Opex'!I51 ->  | G66: ='E20. Opex'!J51 ->  | H66: ='E20. Opex'!K51 ->  | I66: ='E20. Opex'!L51 -> 
B67: ='E20. Opex'!B52 -> other opex | C67: ='E20. Opex'!F52 ->  | D67: ='E20. Opex'!G52 ->  | E67: ='E20. Opex'!H52 ->  | F67: ='E20. Opex'!I52 ->  | G67: ='E20. Opex'!J52 ->  | H67: ='E20. Opex'!K52 ->  | I67: ='E20. Opex'!L52 -> 
B68: Total | C68: =SUM(C60:C67) -> 0 | D68: 0 | E68: 0 | F68: 0 | G68: 0 | H68: 0 | I68: 0
B70: E1.2.2 - NON-REFERENCE SERVICES
B71: =IF(ISBLANK('E20. Opex'!B59),"",'E20. Opex'!B59) -> 
B72: =IF(ISBLANK('E20. Opex'!B60),"",'E20. Opex'!B60) -> 
B73: =IF(ISBLANK('E20. Opex'!B61),"",'E20. Opex'!B61) -> 
B74: =IF(ISBLANK('E20. Opex'!B62),"",'E20. Opex'!B62) -> 
B75: =IF(ISBLANK('E20. Opex'!B63),"",'E20. Opex'!B63) -> 
B76: =IF(ISBLANK('E20. Opex'!B64),"",'E20. Opex'!B64) -> 
B77: =IF(ISBLANK('E20. Opex'!B65),"",'E20. Opex'!B65) -> 
B78: =IF(ISBLANK('E20. Opex'!B66),"",'E20. Opex'!B66) -> 
B79: =IF(ISBLANK('E20. Opex'!B67),"",'E20. Opex'!B67) -> 
B80: =IF(ISBLANK('E20. Opex'!B68),"",'E20. Opex'!B68) -> 
B81: =IF(ISBLANK('E20. Opex'!B69),"",'E20. Opex'!B69) -> 
B82: =IF(ISBLANK('E20. Opex'!B70),"",'E20. Opex'!B70) -> 
B83: =IF(ISBLANK('E20. Opex'!B71),"",'E20. Opex'!B71) -> 
B84: =IF(ISBLANK('E20. Opex'!B72),"",'E20. Opex'!B72) -> 
B85: =IF(ISBLANK('E20. Opex'!B73),"",'E20. Opex'!B73) -> 
B86: =IF(ISBLANK('E20. Opex'!B74),"",'E20. Opex'!B74) -> 
B87: =IF(ISBLANK('E20. Opex'!B75),"",'E20. Opex'!B75) -> 
B88: =IF(ISBLANK('E20. Opex'!B76),"",'E20. Opex'!B76) -> 
B89: =IF(ISBLANK('E20. Opex'!B77),"",'E20. Opex'!B77) -> 
B90: =IF(ISBLANK('E20. Opex'!B78),"",'E20. Opex'!B78) -> 
B91: =IF(ISBLANK('E20. Opex'!B79),"",'E20. Opex'!B79) -> 
B92: =IF(ISBLANK('E20. Opex'!B80),"",'E20. Opex'!B80) -> 
B93: =IF(ISBLANK('E20. Opex'!B81),"",'E20. Opex'!B81) -> 
B94: =IF(ISBLANK('E20. Opex'!B82),"",'E20. Opex'!B82) -> 
B95: =IF(ISBLANK('E20. Opex'!B83),"",'E20. Opex'!B83) -> 
B96: Total | C96: =SUM(C71:C95) -> 0 | D96: =SUM(D71:D95) -> 0 | E96: 0 | F96: 0 | G96: 0 | H96: 0 | I96: 0
B99: E1.3 - CAPCONS
B100: E1.3.1 - REFERENCE SERVICES
C101: EXPENDITURE
C102: =CONCATENATE("$, real ",dms_DollarReal) -> $, real June 2025
C103: =dms_y1 -> 2023-24 | D103: =dms_y2 -> 2024-25 | E103: =dms_y3 -> 2025-26 | F103: =dms_y4 -> 2026-27 | G103: =dms_y5 -> 2027-28 | H103: =dms_y6 -> 2028-29 | I103: =dms_y7 -> 2029-30
B104: Connections (gas)
B105: Mains replacement | C105: 0 | D105: 0 | E105: 0 | F105: 0 | G105: 0 | H105: 0 | I105: 0
B106: Mains augmentation | C106: 0 | D106: 0 | E106: 0 | F106: 0 | G106: 0 | H106: 0 | I106: 0
B107: Telemetry | C107: 0 | D107: 0 | E107: 0 | F107: 0 | G107: 0 | H107: 0 | I107: 0
B108: Meter replacement | C108: 0 | D108: 0 | E108: 0 | F108: 0 | G108: 0 | H108: 0 | I108: 0
B109: ICT | C109: 0 | D109: 0 | E109: 0 | F109: 0 | G109: 0 | H109: 0 | I109: 0
B110: Capitalised network overheads
B111: Capitalised corporate overheads | C111: 0 | D111: 0 | E111: 0 | F111: 0 | G111: 0 | H111: 0 | I111: 0
B112: Other capex | C112: 0 | D112: 0 | E112: 0 | F112: 0 | G112: 0 | H112: 0 | I112: 0
B113: Total
B115: E1.3.2 - NON-REFERENCE SERVICES
C116: EXPENDITURE
C117: =CONCATENATE("$, real ",dms_DollarReal) -> $, real June 2025
C118: =dms_y1 -> 2023-24 | D118: =dms_y2 -> 2024-25 | E118: =dms_y3 -> 2025-26 | F118: =dms_y4 -> 2026-27 | G118: =dms_y5 -> 2027-28 | H118: =dms_y6 -> 2028-29 | I118: =dms_y7 -> 2029-30
B143: Total
B146: E1.4 - CAPITALISED OVERHEADS
B147: E1.4.1 - REFERENCE SERVICES
C148: EXPENDITURE
C149: =CONCATENATE("$, real ",dms_DollarReal) -> $, real June 2025
C150: =dms_y1 -> 2023-24 | D150: =dms_y2 -> 2024-25 | E150: =dms_y3 -> 2025-26 | F150: =dms_y4 -> 2026-27 | G150: =dms_y5 -> 2027-28 | H150: =dms_y6 -> 2028-29 | I150: =dms_y7 -> 2029-30
B151: Connections (gas) | C151: 2671469.616 | D151: 2597237.432 | E151: 2377020.615 | F151: 3264168.028 | G151: 2849396.997 | H151: 1730570.081 | I151: 1364178.155
B152: Mains replacement | C152: 148149.1183 | D152: 209926.7281 | E152: 384158.8627 | F152: 622112.9111 | G152: 454923.8117 | H152: 328406.3665 | I152: 252039.1001
B153: Mains augmentation | C153: 59052.38514 | D153: 106407.0283 | E153: 156089.8084 | F153: 119951.1941 | G153: 61502.37251 | H153: 74031.67996 | I153: 81878.43756
B154: Telemetry | C154: 0 | D154: 0 | E154: 0 | F154: 0 | G154: 0 | H154: 0 | I154: 0
B155: Meter replacement | C155: 695416.8429 | D155: 779316.0329 | E155: 733246.9887 | F155: 953738.6367 | G155: 1018533.876 | H155: 1295662.008 | I155: 1207140.417
B156: ICT | C156: 0 | D156: 0 | E156: 0 | F156: 0 | G156: 0 | H156: 0 | I156: 0
B157: Other capex | C157: 680028.5431 | D157: 1525235.965 | E157: 1796067.738 | F157: 1030788.578 | G157: 757718.3542 | H157: 454183.8827 | I157: 360674.9489
B158: Capital contributions included in the above | C158: 219644.5122 | D158: 109100.9576 | E158: 118254.9126 | F158: 113441.139 | G158: 104858.671 | H158: 90982.82199 | I158: 77212.48355
B159: Total (less capital contributions) | C159: =SUM(C151:C157)-C158 -> 4034471.993 | D159: 5109022.228 | E159: 5328329.1 | F159: 5877318.209 | G159: 5037216.741 | H159: 3791871.196 | I159: 3188698.575
B162: E1.4.2 - NON-REFERENCE SERVICES
C163: EXPENDITURE
C164: =CONCATENATE("$, real ",dms_DollarReal) -> $, real June 2025
C165: =dms_y1 -> 2023-24 | D165: =dms_y2 -> 2024-25 | E165: =dms_y3 -> 2025-26 | F165: =dms_y4 -> 2026-27 | G165: =dms_y5 -> 2027-28 | H165: =dms_y6 -> 2028-29 | I165: =dms_y7 -> 2029-30
B166: None
B188: Capital contributions included in the above
B189: Total (less capital contributions) | C189: =SUM(C166:C187)-C188 -> 0 | D189: 0 | E189: 0 | F189: 0 | G189: 0 | H189: 0 | I189: 0

Sheet E2. Mains Repex
B1: =INDEX(dms_Worksheet_List,MATCH(dms_Model,dms_Model_List)) -> REGULATORY REPORTING STATEMENT
B2: =dms_TradingNameFull -> Jemena Gas Networks (NSW) Ltd
B3: =dms_Header_Span -> 2023-24 to 2029-30
B4: E2. MAINS REPLACEMENT
B5: FINAL RIN TEMPLATE - FEBRUARY 2024
B8: Please list all projects or categories here:
B9: Newcastle MP1 30kPa Rehabilitation Stage 1
B10: Haberfield Strathfield Campsie 7kPa Rehabilitation
B11: Kurri Kurri Rehabilitation Stage 2
B12: Newcastle MP1 30kPa Rehabilitation Stage 3
B13: Newcastle MP1 30kPa Rehabilitation Stage 2
B14: Strathfield CBD 7kPa Mains Rehabilitation
B15: Pennant Hills Rd 350mm Steel Main Rehabilitation
B16: Bankstown Chullora Greenacre 7kPa Rehabilitation
B17: Matraville 2kPa and 7kPa Rehabilitation
B18: Mittagong Rehabilitation
B19: Bombo Bridge Main Insertion
B61: E2.1 - CAPEX
B62: E2.1.1 - PROACTIVE - BY PROJECT
D63: EXPENDITURE
D64: =CONCATENATE("$, real ",dms_DollarReal) -> $, real June 2025
D65: =dms_y1 -> 2023-24 | E65: =dms_y2 -> 2024-25 | F65: =dms_y3 -> 2025-26 | G65: =dms_y4 -> 2026-27 | H65: =dms_y5 -> 2027-28 | I65: =dms_y6 -> 2028-29 | J65: =dms_y7 -> 2029-30
B66: A. DIRECT INTERNAL LABOUR EXPENDITURE
B67: =IF(ISBLANK(dms_E2_Projects_01),"",dms_E2_Projects_01) -> Newcastle MP1 30kPa Rehabilitation Stage 1 | D67: 24502.91895 | E67: 160911.9109 | F67: 167651.4986 | G67: 0 | H67: 0 | I67: 0 | J67: 0
B68: =IF(ISBLANK(dms_E2_Projects_02),"",dms_E2_Projects_02) -> Haberfield Strathfield Campsie 7kPa Rehabilitation | D68: 0 | E68: 0 | F68: 0 | G68: 1895.442869 | H68: 108844.2805 | I68: 54793.38115 | J68: 0
B69: =IF(ISBLANK(dms_E2_Projects_03),"",dms_E2_Projects_03) -> Kurri Kurri Rehabilitation Stage 2 | D69: 0 | E69: 0 | F69: 0 | G69: 0 | H69: 0 | I69: 8343.688298 | J69: 87818.18176
B70: =IF(ISBLANK(dms_E2_Projects_04),"",dms_E2_Projects_04) -> Newcastle MP1 30kPa Rehabilitation Stage 3 | D70: 0 | E70: 6322.716203 | F70: 22298.75903 | G70: 220680.3592 | H70: 200796.781 | I70: 0 | J70: 0
B71: =IF(ISBLANK(dms_E2_Projects_05),"",dms_E2_Projects_05) -> Newcastle MP1 30kPa Rehabilitation Stage 2 | D71: 6551.18265 | E71: 22830.16913 | F71: 219231.0865 | G71: 190650.5836 | H71: 0 | I71: 0 | J71: 0
B72: =IF(ISBLANK(dms_E2_Projects_06),"",dms_E2_Projects_06) -> Strathfield CBD 7kPa Mains Rehabilitation | D72: 0 | E72: 0 | F72: 0 | G72: 0 | H72: 5769.780637 | I72: 72885.01084 | J72: 55136.69955
B73: =IF(ISBLANK(dms_E2_Projects_07),"",dms_E2_Projects_07) -> Pennant Hills Rd 350mm Steel Main Rehabilitation | D73: 0 | E73: 0 | F73: 0 | G73: 0 | H73: 0 | I73: 5665.053961 | J73: 68331.57565
B74: =IF(ISBLANK(dms_E2_Projects_08),"",dms_E2_Projects_08) -> Bankstown Chullora Greenacre 7kPa Rehabilitation | D74: 0 | E74: 1333.032394 | F74: 6624.434502 | G74: 137370.4587 | H74: 646.9877099 | I74: 0 | J74: 0
B75: =IF(ISBLANK(dms_E2_Projects_09),"",dms_E2_Projects_09) -> Matraville 2kPa and 7kPa Rehabilitation | D75: 1496.812658 | E75: 0 | F75: 0 | G75: 0 | H75: 0 | I75: 0 | J75: 0
B76: =IF(ISBLANK(dms_E2_Projects_10),"",dms_E2_Projects_10) -> Mittagong Rehabilitation | D76: 321.7754472 | E76: 0 | F76: 0 | G76: 0 | H76: 0 | I76: 0 | J76: 0
B77: =IF(ISBLANK(dms_E2_Projects_11),"",dms_E2_Projects_11) -> Bombo Bridge Main Insertion | D77: 380.6530231 | E77: 0 | F77: 0 | G77: 0 | H77: 0 | I77: 0 | J77: 0
B78: =IF(ISBLANK(dms_E2_Projects_12),"",dms_E2_Projects_12) -> 
B79: =IF(ISBLANK(dms_E2_Projects_13),"",dms_E2_Projects_13) -> 
B80: =IF(ISBLANK(dms_E2_Projects_14),"",dms_E2_Projects_14) -> 
B81: =IF(ISBLANK(dms_E2_Projects_15),"",dms_E2_Projects_15) -> 
B82: =IF(ISBLANK(dms_E2_Projects_16),"",dms_E2_Projects_16) -> 
B83: =IF(ISBLANK(dms_E2_Projects_17),"",dms_E2_Projects_17) -> 
B84: =IF(ISBLANK(dms_E2_Projects_18),"",dms_E2_Projects_18) -> 
B85: =IF(ISBLANK(dms_E2_Projects_19),"",dms_E2_Projects_19) -> 
B86: =IF(ISBLANK(dms_E2_Projects_20),"",dms_E2_Projects_20) -> 
B87: =IF(ISBLANK(dms_E2_Projects_21),"",dms_E2_Projects_21) -> 
B88: =IF(ISBLANK(dms_E2_Projects_22),"",dms_E2_Projects_22) -> 
B89: =IF(ISBLANK(dms_E2_Projects_23),"",dms_E2_Projects_23) -> 
B90: =IF(ISBLANK(dms_E2_Projects_24),"",dms_E2_Projects_24) -> 
B91: =IF(ISBLANK(dms_E2_Projects_25),"",dms_E2_Projects_25) -> 
B92: =IF(ISBLANK(dms_E2_Projects_26),"",dms_E2_Projects_26) -> 
B93: =IF(ISBLANK(dms_E2_Projects_27),"",dms_E2_Projects_27) -> 
B94: =IF(ISBLANK(dms_E2_Projects_28),"",dms_E2_Projects_28) -> 
B95: =IF(ISBLANK(dms_E2_Projects_29),"",dms_E2_Projects_29) -> 
B96: =IF(ISBLANK(dms_E2_Projects_30),"",dms_E2_Projects_30) -> 
B97: =IF(ISBLANK(dms_E2_Projects_31),"",dms_E2_Projects_31) -> 
B98: =IF(ISBLANK(dms_E2_Projects_32),"",dms_E2_Projects_32) -> 
B99: =IF(ISBLANK(dms_E2_Projects_33),"",dms_E2_Projects_33) -> 
B100: =IF(ISBLANK(dms_E2_Projects_34),"",dms_E2_Projects_34) -> 
B101: =IF(ISBLANK(dms_E2_Projects_35),"",dms_E2_Projects_35) -> 
B102: =IF(ISBLANK(dms_E2_Projects_36),"",dms_E2_Projects_36) -> 
B103: =IF(ISBLANK(dms_E2_Projects_37),"",dms_E2_Projects_37) -> 
B104: =IF(ISBLANK(dms_E2_Projects_38),"",dms_E2_Projects_38) -> 
B105: =IF(ISBLANK(dms_E2_Projects_39),"",dms_E2_Projects_39) -> 
B106: =IF(ISBLANK(dms_E2_Projects_40),"",dms_E2_Projects_40) -> 
B107: =IF(ISBLANK(dms_E2_Projects_41),"",dms_E2_Projects_41) -> 
B108: =IF(ISBLANK(dms_E2_Projects_42),"",dms_E2_Projects_42) -> 
B109: =IF(ISBLANK(dms_E2_Projects_43),"",dms_E2_Projects_43) -> 
B110: =IF(ISBLANK(dms_E2_Projects_44),"",dms_E2_Projects_44) -> 
B111: =IF(ISBLANK(dms_E2_Projects_45),"",dms_E2_Projects_45) -> 
B112: =IF(ISBLANK(dms_E2_Projects_46),"",dms_E2_Projects_46) -> 
B113: =IF(ISBLANK(dms_E2_Projects_47),"",dms_E2_Projects_47) -> 
B114: =IF(ISBLANK(dms_E2_Projects_48),"",dms_E2_Projects_48) -> 
B115: =IF(ISBLANK(dms_E2_Projects_49),"",dms_E2_Projects_49) -> 
B116: =IF(ISBLANK(dms_E2_Projects_50),"",dms_E2_Projects_50) -> 
B117: Other projects or categories with expenditure of less than $500,000 | D117: 0 | E117: 0 | F117: 0 | G117: 0 | H117: 0 | I117: 0 | J117: 18697.34601
C118: Total | D118: =SUM(D67:D117) -> 33253.34273 | E118: =SUM(E67:E117) -> 191397.8286 | F118: =SUM(F67:F117) -> 415805.7787 | G118: =SUM(G67:G117) -> 550596.8444 | H118: =SUM(H67:H117) -> 316057.8299 | I118: =SUM(I67:I117) -> 141687.1343 | J118: =SUM(J67:J117) -> 229983.803
B120: B. DIRECT CONTRACTOR EXPENDITURE
D121: EXPENDITURE
D122: =CONCATENATE("$, real ",dms_DollarReal) -> $, real June 2025
D123: =dms_y1 -> 2023-24 | E123: =dms_y2 -> 2024-25 | F123: =dms_y3 -> 2025-26 | G123: =dms_y4 -> 2026-27 | H123: =dms_y5 -> 2027-28 | I123: =dms_y6 -> 2028-29 | J123: =dms_y7 -> 2029-30
B124: =IF(ISBLANK(dms_E2_Projects_01),"",dms_E2_Projects_01) -> Newcastle MP1 30kPa Rehabilitation Stage 1
B125: =IF(ISBLANK(dms_E2_Projects_02),"",dms_E2_Projects_02) -> Haberfield Strathfield Campsie 7kPa Rehabilitation
B126: =IF(ISBLANK(dms_E2_Projects_03),"",dms_E2_Projects_03) -> Kurri Kurri Rehabilitation Stage 2
B127: =IF(ISBLANK(dms_E2_Projects_04),"",dms_E2_Projects_04) -> Newcastle MP1 30kPa Rehabilitation Stage 3
B128: =IF(ISBLANK(dms_E2_Projects_05),"",dms_E2_Projects_05) -> Newcastle MP1 30kPa Rehabilitation Stage 2
B129: =IF(ISBLANK(dms_E2_Projects_06),"",dms_E2_Projects_06) -> Strathfield CBD 7kPa Mains Rehabilitation
B130: =IF(ISBLANK(dms_E2_Projects_07),"",dms_E2_Projects_07) -> Pennant Hills Rd 350mm Steel Main Rehabilitation
B131: =IF(ISBLANK(dms_E2_Projects_08),"",dms_E2_Projects_08) -> Bankstown Chullora Greenacre 7kPa Rehabilitation
B132: =IF(ISBLANK(dms_E2_Projects_09),"",dms_E2_Projects_09) -> Matraville 2kPa and 7kPa Rehabilitation
B133: =IF(ISBLANK(dms_E2_Projects_10),"",dms_E2_Projects_10) -> Mittagong Rehabilitation
B134: =IF(ISBLANK(dms_E2_Projects_11),"",dms_E2_Projects_11) -> Bombo Bridge Main Insertion
B135: =IF(ISBLANK(dms_E2_Projects_12),"",dms_E2_Projects_12) -> 
B136: =IF(ISBLANK(dms_E2_Projects_13),"",dms_E2_Projects_13) -> 
B137: =IF(ISBLANK(dms_E2_Projects_14),"",dms_E2_Projects_14) -> 
B138: =IF(ISBLANK(dms_E2_Projects_15),"",dms_E2_Projects_15) -> 
B139: =IF(ISBLANK(dms_E2_Projects_16),"",dms_E2_Projects_16) -> 
B140: =IF(ISBLANK(dms_E2_Projects_17),"",dms_E2_Projects_17) -> 
B141: =IF(ISBLANK(dms_E2_Projects_18),"",dms_E2_Projects_18) -> 
B142: =IF(ISBLANK(dms_E2_Projects_19),"",dms_E2_Projects_19) -> 
B143: =IF(ISBLANK(dms_E2_Projects_20),"",dms_E2_Projects_20) -> 
B144: =IF(ISBLANK(dms_E2_Projects_21),"",dms_E2_Projects_21) -> 
B145: =IF(ISBLANK(dms_E2_Projects_22),"",dms_E2_Projects_22) -> 
B146: =IF(ISBLANK(dms_E2_Projects_23),"",dms_E2_Projects_23) -> 
B147: =IF(ISBLANK(dms_E2_Projects_24),"",dms_E2_Projects_24) -> 
B148: =IF(ISBLANK(dms_E2_Projects_25),"",dms_E2_Projects_25) -> 
B149: =IF(ISBLANK(dms_E2_Projects_26),"",dms_E2_Projects_26) -> 
B150: =IF(ISBLANK(dms_E2_Projects_27),"",dms_E2_Projects_27) -> 
B151: =IF(ISBLANK(dms_E2_Projects_28),"",dms_E2_Projects_28) -> 
B152: =IF(ISBLANK(dms_E2_Projects_29),"",dms_E2_Projects_29) -> 
B153: =IF(ISBLANK(dms_E2_Projects_30),"",dms_E2_Projects_30) -> 
B154: =IF(ISBLANK(dms_E2_Projects_31),"",dms_E2_Projects_31) -> 
B155: =IF(ISBLANK(dms_E2_Projects_32),"",dms_E2_Projects_32) -> 
B156: =IF(ISBLANK(dms_E2_Projects_33),"",dms_E2_Projects_33) -> 
B157: =IF(ISBLANK(dms_E2_Projects_34),"",dms_E2_Projects_34) -> 
B158: =IF(ISBLANK(dms_E2_Projects_35),"",dms_E2_Projects_35) -> 
B159: =IF(ISBLANK(dms_E2_Projects_36),"",dms_E2_Projects_36) -> 
B160: =IF(ISBLANK(dms_E2_Projects_37),"",dms_E2_Projects_37) -> 
B161: =IF(ISBLANK(dms_E2_Projects_38),"",dms_E2_Projects_38) -> 
B162: =IF(ISBLANK(dms_E2_Projects_39),"",dms_E2_Projects_39) -> 
B163: =IF(ISBLANK(dms_E2_Projects_40),"",dms_E2_Projects_40) -> 
B164: =IF(ISBLANK(dms_E2_Projects_41),"",dms_E2_Projects_41) -> 
B165: =IF(ISBLANK(dms_E2_Projects_42),"",dms_E2_Projects_42) -> 
B166: =IF(ISBLANK(dms_E2_Projects_43),"",dms_E2_Projects_43) -> 
B167: =IF(ISBLANK(dms_E2_Projects_44),"",dms_E2_Projects_44) -> 
B168: =IF(ISBLANK(dms_E2_Projects_45),"",dms_E2_Projects_45) -> 
B169: =IF(ISBLANK(dms_E2_Projects_46),"",dms_E2_Projects_46) -> 
B170: =IF(ISBLANK(dms_E2_Projects_47),"",dms_E2_Projects_47) -> 
B171: =IF(ISBLANK(dms_E2_Projects_48),"",dms_E2_Projects_48) -> 
B172: =IF(ISBLANK(dms_E2_Projects_49),"",dms_E2_Projects_49) -> 
B173: =IF(ISBLANK(dms_E2_Projects_50),"",dms_E2_Projects_50) -> 
B174: Other projects or categories with expenditure of less than $500,000
C175: Total
B177: C. DIRECT MATERIAL EXPENDITURE
D178: EXPENDITURE
D179: =CONCATENATE("$, real ",dms_DollarReal) -> $, real June 2025
D180: =dms_y1 -> 2023-24 | E180: =dms_y2 -> 2024-25 | F180: =dms_y3 -> 2025-26 | G180: =dms_y4 -> 2026-27 | H180: =dms_y5 -> 2027-28 | I180: =dms_y6 -> 2028-29 | J180: =dms_y7 -> 2029-30
B181: =IF(ISBLANK(dms_E2_Projects_01),"",dms_E2_Projects_01) -> Newcastle MP1 30kPa Rehabilitation Stage 1 | D181: 0 | E181: 0 | F181: 0 | G181: 0 | H181: 0 | I181: 0 | J181: 0
B182: =IF(ISBLANK(dms_E2_Projects_02),"",dms_E2_Projects_02) -> Haberfield Strathfield Campsie 7kPa Rehabilitation | D182: 0 | E182: 0 | F182: 0 | G182: 0 | H182: 0 | I182: 0 | J182: 0
B183: =IF(ISBLANK(dms_E2_Projects_03),"",dms_E2_Projects_03) -> Kurri Kurri Rehabilitation Stage 2 | D183: 0 | E183: 0 | F183: 0 | G183: 0 | H183: 0 | I183: 0 | J183: 0
B184: =IF(ISBLANK(dms_E2_Projects_04),"",dms_E2_Projects_04) -> Newcastle MP1 30kPa Rehabilitation Stage 3 | D184: 0 | E184: 0 | F184: 0 | G184: 0 | H184: 0 | I184: 0 | J184: 0
B185: =IF(ISBLANK(dms_E2_Projects_05),"",dms_E2_Projects_05) -> Newcastle MP1 30kPa Rehabilitation Stage 2 | D185: 0 | E185: 0 | F185: 0 | G185: 0 | H185: 0 | I185: 0 | J185: 0
B186: =IF(ISBLANK(dms_E2_Projects_06),"",dms_E2_Projects_06) -> Strathfield CBD 7kPa Mains Rehabilitation | D186: 0 | E186: 0 | F186: 0 | G186: 0 | H186: 0 | I186: 0 | J186: 0
B187: =IF(ISBLANK(dms_E2_Projects_07),"",dms_E2_Projects_07) -> Pennant Hills Rd 350mm Steel Main Rehabilitation | D187: 0 | E187: 0 | F187: 0 | G187: 0 | H187: 0 | I187: 7486.906723 | J187: 103996.2792
B188: =IF(ISBLANK(dms_E2_Projects_08),"",dms_E2_Projects_08) -> Bankstown Chullora Greenacre 7kPa Rehabilitation | D188: 0 | E188: 0 | F188: 0 | G188: 0 | H188: 0 | I188: 0 | J188: 0
B189: =IF(ISBLANK(dms_E2_Projects_09),"",dms_E2_Projects_09) -> Matraville 2kPa and 7kPa Rehabilitation | D189: 0 | E189: 0 | F189: 0 | G189: 0 | H189: 0 | I189: 0 | J189: 0
B190: =IF(ISBLANK(dms_E2_Projects_10),"",dms_E2_Projects_10) -> Mittagong Rehabilitation | D190: 0 | E190: 0 | F190: 0 | G190: 0 | H190: 0 | I190: 0 | J190: 0
B191: =IF(ISBLANK(dms_E2_Projects_11),"",dms_E2_Projects_11) -> Bombo Bridge Main Insertion | D191: 0 | E191: 0 | F191: 0 | G191: 0 | H191: 0 | I191: 0 | J191: 0
B192: =IF(ISBLANK(dms_E2_Projects_12),"",dms_E2_Projects_12) -> 
B193: =IF(ISBLANK(dms_E2_Projects_13),"",dms_E2_Projects_13) -> 
B194: =IF(ISBLANK(dms_E2_Projects_14),"",dms_E2_Projects_14) -> 
B195: =IF(ISBLANK(dms_E2_Projects_15),"",dms_E2_Projects_15) -> 
B196: =IF(ISBLANK(dms_E2_Projects_16),"",dms_E2_Projects_16) -> 
B197: =IF(ISBLANK(dms_E2_Projects_17),"",dms_E2_Projects_17) -> 
B198: =IF(ISBLANK(dms_E2_Projects_18),"",dms_E2_Projects_18) -> 
B199: =IF(ISBLANK(dms_E2_Projects_19),"",dms_E2_Projects_19) -> 
B200: =IF(ISBLANK(dms_E2_Projects_20),"",dms_E2_Projects_20) -> 
B201: =IF(ISBLANK(dms_E2_Projects_21),"",dms_E2_Projects_21) -> 
B202: =IF(ISBLANK(dms_E2_Projects_22),"",dms_E2_Projects_22) -> 
B203: =IF(ISBLANK(dms_E2_Projects_23),"",dms_E2_Projects_23) -> 
B204: =IF(ISBLANK(dms_E2_Projects_24),"",dms_E2_Projects_24) -> 
B205: =IF(ISBLANK(dms_E2_Projects_25),"",dms_E2_Projects_25) -> 
B206: =IF(ISBLANK(dms_E2_Projects_26),"",dms_E2_Projects_26) -> 
B207: =IF(ISBLANK(dms_E2_Projects_27),"",dms_E2_Projects_27) -> 
B208: =IF(ISBLANK(dms_E2_Projects_28),"",dms_E2_Projects_28) -> 
B209: =IF(ISBLANK(dms_E2_Projects_29),"",dms_E2_Projects_29) -> 
B210: =IF(ISBLANK(dms_E2_Projects_30),"",dms_E2_Projects_30) -> 
B211: =IF(ISBLANK(dms_E2_Projects_31),"",dms_E2_Projects_31) -> 
B212: =IF(ISBLANK(dms_E2_Projects_32),"",dms_E2_Projects_32) -> 
B213: =IF(ISBLANK(dms_E2_Projects_33),"",dms_E2_Projects_33) -> 
B214: =IF(ISBLANK(dms_E2_Projects_34),"",dms_E2_Projects_34) -> 
B215: =IF(ISBLANK(dms_E2_Projects_35),"",dms_E2_Projects_35) -> 
B216: =IF(ISBLANK(dms_E2_Projects_36),"",dms_E2_Projects_36) -> 
B217: =IF(ISBLANK(dms_E2_Projects_37),"",dms_E2_Projects_37) -> 
B218: =IF(ISBLANK(dms_E2_Projects_38),"",dms_E2_Projects_38) -> 
B219: =IF(ISBLANK(dms_E2_Projects_39),"",dms_E2_Projects_39) -> 
B220: =IF(ISBLANK(dms_E2_Projects_40),"",dms_E2_Projects_40) -> 
B221: =IF(ISBLANK(dms_E2_Projects_41),"",dms_E2_Projects_41) -> 
B222: =IF(ISBLANK(dms_E2_Projects_42),"",dms_E2_Projects_42) -> 
B223: =IF(ISBLANK(dms_E2_Projects_43),"",dms_E2_Projects_43) -> 
B224: =IF(ISBLANK(dms_E2_Projects_44),"",dms_E2_Projects_44) -> 
B225: =IF(ISBLANK(dms_E2_Projects_45),"",dms_E2_Projects_45) -> 
B226: =IF(ISBLANK(dms_E2_Projects_46),"",dms_E2_Projects_46) -> 
B227: =IF(ISBLANK(dms_E2_Projects_47),"",dms_E2_Projects_47) -> 
B228: =IF(ISBLANK(dms_E2_Projects_48),"",dms_E2_Projects_48) -> 
B229: =IF(ISBLANK(dms_E2_Projects_49),"",dms_E2_Projects_49) -> 
B230: =IF(ISBLANK(dms_E2_Projects_50),"",dms_E2_Projects_50) -> 
B231: Other projects or categories with expenditure of less than $500,000 | D231: 0 | E231: 0 | F231: 0 | G231: 0 | H231: 0 | I231: 0 | J231: 0
C232: Total | D232: =SUM(D181:D231) -> 0 | E232: =SUM(E181:E231) -> 0 | F232: 0 | G232: 0 | H232: 0 | I232: 7486.906723 | J232: 103996.2792
B234: D. OTHER DIRECT EXPENDITURE
D235: EXPENDITURE
D236: =CONCATENATE("$, real ",dms_DollarReal) -> $, real June 2025
D237: =dms_y1 -> 2023-24 | E237: =dms_y2 -> 2024-25 | F237: =dms_y3 -> 2025-26 | G237: =dms_y4 -> 2026-27 | H237: =dms_y5 -> 2027-28 | I237: =dms_y6 -> 2028-29 | J237: =dms_y7 -> 2029-30
B238: =IF(ISBLANK(dms_E2_Projects_01),"",dms_E2_Projects_01) -> Newcastle MP1 30kPa Rehabilitation Stage 1 | D238: 10188.38859 | E238: 95034.44849 | F238: 2122783.38 | G238: 0 | H238: 0 | I238: 0 | J238: 0
B239: =IF(ISBLANK(dms_E2_Projects_02),"",dms_E2_Projects_02) -> Haberfield Strathfield Campsie 7kPa Rehabilitation | D239: 0 | E239: 0 | F239: 0 | G239: 6259.140269 | H239: 397516.6448 | I239: 411523.1946 | J239: 0
B240: =IF(ISBLANK(dms_E2_Projects_03),"",dms_E2_Projects_03) -> Kurri Kurri Rehabilitation Stage 2 | D240: 0 | E240: 0 | F240: 0 | G240: 0 | H240: 0 | I240: 0 | J240: 0
B241: =IF(ISBLANK(dms_E2_Projects_04),"",dms_E2_Projects_04) -> Newcastle MP1 30kPa Rehabilitation Stage 3 | D241: 0 | E241: 10113.90314 | F241: 87041.58374 | G241: 376282.1229 | H241: 1011728.752 | I241: 0 | J241: 0
B242: =IF(ISBLANK(dms_E2_Projects_05),"",dms_E2_Projects_05) -> Newcastle MP1 30kPa Rehabilitation Stage 2 | D242: 0 | E242: 112435.9134 | F242: 39751.09019 | G242: 1375413.738 | H242: 0 | I242: 0 | J242: 0
B243: =IF(ISBLANK(dms_E2_Projects_06),"",dms_E2_Projects_06) -> Strathfield CBD 7kPa Mains Rehabilitation | D243: 0 | E243: 0 | F243: 0 | G243: 0 | H243: 0 | I243: 13602.87941 | J243: 470093.1518
B244: =IF(ISBLANK(dms_E2_Projects_07),"",dms_E2_Projects_07) -> Pennant Hills Rd 350mm Steel Main Rehabilitation | D244: 0 | E244: 0 | F244: 0 | G244: 0 | H244: 0 | I244: 61433.46177 | J244: 635245.0173
B245: =IF(ISBLANK(dms_E2_Projects_08),"",dms_E2_Projects_08) -> Bankstown Chullora Greenacre 7kPa Rehabilitation | D245: 0 | E245: 7882.163169 | F245: 30314.23426 | G245: 541423.4718 | H245: 0 | I245: 0 | J245: 0
B246: =IF(ISBLANK(dms_E2_Projects_09),"",dms_E2_Projects_09) -> Matraville 2kPa and 7kPa Rehabilitation | D246: 2096.472062 | E246: 0 | F246: 0 | G246: 0 | H246: 0 | I246: 0 | J246: 0
... 485 more rows

Sheet E3. Mains Augex
B1: =INDEX(dms_Worksheet_List,MATCH(dms_Model,dms_Model_List)) -> REGULATORY REPORTING STATEMENT
B2: =dms_TradingNameFull -> Jemena Gas Networks (NSW) Ltd
B3: =dms_Header_Span -> 2023-24 to 2029-30
B4: E3. MAINS AUGMENTATION
B5: FINAL RIN TEMPLATE - FEBRUARY 2024
B8: Please list all projects or categories here:
B9: Figtree CDP - Stage 2
B10: Woolwich Low Pressure CDP
B11: Box Hill CDP
B12: North Sydney CDP
B13: Umina Beach Low Pressure CDP
B14: Auburn CDP
B15: Blue Mountain Pressure Reduction Glenbrook-Springwood
B16: Gymea Bay 210 kPa CDP
B17: Edmondson Park Soldiers Pde steel main
B18: Minor Capital - Mains Interconnect
B19: Cecil Park CDP-Elizabeth Dr
B61: E3.1 - CAPEX BY PROJECT
B62: A. DIRECT INTERNAL LABOUR EXPENDITURE
C63: EXPENDITURE
C64: =CONCATENATE("$, real ",dms_DollarReal) -> $, real June 2025
C65: =dms_y1 -> 2023-24 | D65: =dms_y2 -> 2024-25 | E65: =dms_y3 -> 2025-26 | F65: =dms_y4 -> 2026-27 | G65: =dms_y5 -> 2027-28 | H65: =dms_y6 -> 2028-29 | I65: =dms_y7 -> 2029-30
B66: =IF(ISBLANK(dms_E3_Projects_01),"",dms_E3_Projects_01) -> Figtree CDP - Stage 2 | C66: 0 | D66: 0 | E66: 0 | F66: 0 | G66: 0 | H66: 20464.29129 | I66: 5178.220385
B67: =IF(ISBLANK(dms_E3_Projects_02),"",dms_E3_Projects_02) -> Woolwich Low Pressure CDP | C67: 0 | D67: 0 | E67: 0 | F67: 0 | G67: 20793.49484 | H67: 5110.661403 | I67: 0
B68: =IF(ISBLANK(dms_E3_Projects_03),"",dms_E3_Projects_03) -> Box Hill CDP | C68: 0 | D68: 1019.364658 | E68: 0 | F68: 0 | G68: 0 | H68: 0 | I68: 0
B69: =IF(ISBLANK(dms_E3_Projects_04),"",dms_E3_Projects_04) -> North Sydney CDP | C69: 0 | D69: 0 | E69: 0 | F69: 0 | G69: 0 | H69: 696.4568563 | I69: 638.0324696
B70: =IF(ISBLANK(dms_E3_Projects_05),"",dms_E3_Projects_05) -> Umina Beach Low Pressure CDP | C70: 0 | D70: 0 | E70: 0 | F70: 1959.023771 | G70: 0 | H70: 0 | I70: 0
B71: =IF(ISBLANK(dms_E3_Projects_06),"",dms_E3_Projects_06) -> Auburn CDP | C71: 0 | D71: 0 | E71: 1601.919157 | F71: 641.5010077 | G71: 0 | H71: 0 | I71: 0
B72: =IF(ISBLANK(dms_E3_Projects_07),"",dms_E3_Projects_07) -> Blue Mountain Pressure Reduction Glenbrook-Springwood | C72: 0 | D72: 0 | E72: 11767.71687 | F72: 15978.60112 | G72: 0 | H72: 0 | I72: 0
B73: =IF(ISBLANK(dms_E3_Projects_08),"",dms_E3_Projects_08) -> Gymea Bay 210 kPa CDP | C73: 0 | D73: 0 | E73: 0 | F73: 20395.40035 | G73: 5200.514875 | H73: 0 | I73: 0
B74: =IF(ISBLANK(dms_E3_Projects_09),"",dms_E3_Projects_09) -> Edmondson Park Soldiers Pde steel main | C74: 0 | D74: 41339.28644 | E74: 85334.17566 | F74: 0 | G74: 0 | H74: 0 | I74: 0
B75: =IF(ISBLANK(dms_E3_Projects_10),"",dms_E3_Projects_10) -> Minor Capital - Mains Interconnect | C75: 17880.7188 | D75: 17907.15633 | E75: 17941.37333 | F75: 17965.43441 | G75: 17988.0925 | H75: 18014.81384 | I75: 18043.86704
B76: =IF(ISBLANK(dms_E3_Projects_11),"",dms_E3_Projects_11) -> Cecil Park CDP-Elizabeth Dr | C76: 16138.61893 | D76: 0 | E76: 0 | F76: 0 | G76: 0 | H76: 0 | I76: 0
B77: =IF(ISBLANK(dms_E3_Projects_12),"",dms_E3_Projects_12) -> 
B78: =IF(ISBLANK(dms_E3_Projects_13),"",dms_E3_Projects_13) -> 
B79: =IF(ISBLANK(dms_E3_Projects_14),"",dms_E3_Projects_14) -> 
B80: =IF(ISBLANK(dms_E3_Projects_15),"",dms_E3_Projects_15) -> 
B81: =IF(ISBLANK(dms_E3_Projects_16),"",dms_E3_Projects_16) -> 
B82: =IF(ISBLANK(dms_E3_Projects_17),"",dms_E3_Projects_17) -> 
B83: =IF(ISBLANK(dms_E3_Projects_18),"",dms_E3_Projects_18) -> 
B84: =IF(ISBLANK(dms_E3_Projects_18),"",dms_E3_Projects_18) -> 
B85: =IF(ISBLANK(dms_E3_Projects_19),"",dms_E3_Projects_19) -> 
B86: =IF(ISBLANK(dms_E3_Projects_20),"",dms_E3_Projects_20) -> 
B87: =IF(ISBLANK(dms_E3_Projects_21),"",dms_E3_Projects_21) -> 
B88: =IF(ISBLANK(dms_E3_Projects_22),"",dms_E3_Projects_22) -> 
B89: =IF(ISBLANK(dms_E3_Projects_23),"",dms_E3_Projects_23) -> 
B90: =IF(ISBLANK(dms_E3_Projects_24),"",dms_E3_Projects_24) -> 
B91: =IF(ISBLANK(dms_E3_Projects_25),"",dms_E3_Projects_26) -> 
B92: =IF(ISBLANK(dms_E3_Projects_27),"",dms_E3_Projects_27) -> 
B93: =IF(ISBLANK(dms_E3_Projects_28),"",dms_E3_Projects_28) -> 
B94: =IF(ISBLANK(dms_E3_Projects_29),"",dms_E3_Projects_29) -> 
B95: =IF(ISBLANK(dms_E3_Projects_30),"",dms_E3_Projects_30) -> 
B96: =IF(ISBLANK(dms_E3_Projects_31),"",dms_E3_Projects_31) -> 
B97: =IF(ISBLANK(dms_E3_Projects_32),"",dms_E3_Projects_32) -> 
B98: =IF(ISBLANK(dms_E3_Projects_33),"",dms_E3_Projects_33) -> 
B99: =IF(ISBLANK(dms_E3_Projects_34),"",dms_E3_Projects_34) -> 
B100: =IF(ISBLANK(dms_E3_Projects_35),"",dms_E3_Projects_35) -> 
B101: =IF(ISBLANK(dms_E3_Projects_36),"",dms_E3_Projects_36) -> 
B102: =IF(ISBLANK(dms_E3_Projects_37),"",dms_E3_Projects_37) -> 
B103: =IF(ISBLANK(dms_E3_Projects_38),"",dms_E3_Projects_38) -> 
B104: =IF(ISBLANK(dms_E3_Projects_39),"",dms_E3_Projects_39) -> 
B105: =IF(ISBLANK(dms_E3_Projects_40),"",dms_E3_Projects_40) -> 
B106: =IF(ISBLANK(dms_E3_Projects_41),"",dms_E3_Projects_41) -> 
B107: =IF(ISBLANK(dms_E3_Projects_42),"",dms_E3_Projects_42) -> 
B108: =IF(ISBLANK(dms_E3_Projects_43),"",dms_E3_Projects_43) -> 
B109: =IF(ISBLANK(dms_E3_Projects_44),"",dms_E3_Projects_44) -> 
B110: =IF(ISBLANK(dms_E3_Projects_45),"",dms_E3_Projects_45) -> 
B111: =IF(ISBLANK(dms_E3_Projects_46),"",dms_E3_Projects_46) -> 
B112: =IF(ISBLANK(dms_E3_Projects_47),"",dms_E3_Projects_47) -> 
B113: =IF(ISBLANK(dms_E3_Projects_48),"",dms_E3_Projects_48) -> 
B114: =IF(ISBLANK(dms_E3_Projects_49),"",dms_E3_Projects_49) -> 
B115: =IF(ISBLANK(dms_E3_Projects_50),"",dms_E3_Projects_50) -> 
B116: Aggregate of other projects or categories with total expenditure of less than $500,000 | C116: 3034.579733 | D116: 10822.76798 | E116: 20092.43301 | F116: 5052.891735 | G116: 716.5178269 | H116: 315.6086261 | I116: 0
B117: Total | C117: =SUM(C66:C116) -> 37053.91747 | D117: =SUM(D66:D116) -> 71088.57541 | E117: 136737.618 | F117: 61992.8524 | G117: 44698.62004 | H117: 44601.83201 | I117: 23860.11989
B119: B. DIRECT CONTRACTOR EXPENDITURE
C120: EXPENDITURE
C121: =CONCATENATE("$, real ",dms_DollarReal) -> $, real June 2025
C122: =dms_y1 -> 2023-24 | D122: =dms_y2 -> 2024-25 | E122: =dms_y3 -> 2025-26 | F122: =dms_y4 -> 2026-27 | G122: =dms_y5 -> 2027-28 | H122: =dms_y6 -> 2028-29 | I122: =dms_y7 -> 2029-30
B123: =IF(ISBLANK(dms_E3_Projects_01),"",dms_E3_Projects_01) -> Figtree CDP - Stage 2
B124: =IF(ISBLANK(dms_E3_Projects_02),"",dms_E3_Projects_02) -> Woolwich Low Pressure CDP
B125: =IF(ISBLANK(dms_E3_Projects_03),"",dms_E3_Projects_03) -> Box Hill CDP
B126: =IF(ISBLANK(dms_E3_Projects_04),"",dms_E3_Projects_04) -> North Sydney CDP
B127: =IF(ISBLANK(dms_E3_Projects_05),"",dms_E3_Projects_05) -> Umina Beach Low Pressure CDP
B128: =IF(ISBLANK(dms_E3_Projects_06),"",dms_E3_Projects_06) -> Auburn CDP
B129: =IF(ISBLANK(dms_E3_Projects_07),"",dms_E3_Projects_07) -> Blue Mountain Pressure Reduction Glenbrook-Springwood
B130: =IF(ISBLANK(dms_E3_Projects_08),"",dms_E3_Projects_08) -> Gymea Bay 210 kPa CDP
B131: =IF(ISBLANK(dms_E3_Projects_09),"",dms_E3_Projects_09) -> Edmondson Park Soldiers Pde steel main
B132: =IF(ISBLANK(dms_E3_Projects_10),"",dms_E3_Projects_10) -> Minor Capital - Mains Interconnect
B133: =IF(ISBLANK(dms_E3_Projects_11),"",dms_E3_Projects_11) -> Cecil Park CDP-Elizabeth Dr
B134: =IF(ISBLANK(dms_E3_Projects_12),"",dms_E3_Projects_12) -> 
B135: =IF(ISBLANK(dms_E3_Projects_13),"",dms_E3_Projects_13) -> 
B136: =IF(ISBLANK(dms_E3_Projects_14),"",dms_E3_Projects_14) -> 
B137: =IF(ISBLANK(dms_E3_Projects_15),"",dms_E3_Projects_15) -> 
B138: =IF(ISBLANK(dms_E3_Projects_16),"",dms_E3_Projects_16) -> 
B139: =IF(ISBLANK(dms_E3_Projects_17),"",dms_E3_Projects_17) -> 
B140: =IF(ISBLANK(dms_E3_Projects_18),"",dms_E3_Projects_18) -> 
B141: =IF(ISBLANK(dms_E3_Projects_18),"",dms_E3_Projects_18) -> 
B142: =IF(ISBLANK(dms_E3_Projects_19),"",dms_E3_Projects_19) -> 
B143: =IF(ISBLANK(dms_E3_Projects_20),"",dms_E3_Projects_20) -> 
B144: =IF(ISBLANK(dms_E3_Projects_21),"",dms_E3_Projects_21) -> 
B145: =IF(ISBLANK(dms_E3_Projects_22),"",dms_E3_Projects_22) -> 
B146: =IF(ISBLANK(dms_E3_Projects_23),"",dms_E3_Projects_23) -> 
B147: =IF(ISBLANK(dms_E3_Projects_24),"",dms_E3_Projects_24) -> 
B148: =IF(ISBLANK(dms_E3_Projects_25),"",dms_E3_Projects_26) -> 
B149: =IF(ISBLANK(dms_E3_Projects_27),"",dms_E3_Projects_27) -> 
B150: =IF(ISBLANK(dms_E3_Projects_28),"",dms_E3_Projects_28) -> 
B151: =IF(ISBLANK(dms_E3_Projects_29),"",dms_E3_Projects_29) -> 
B152: =IF(ISBLANK(dms_E3_Projects_30),"",dms_E3_Projects_30) -> 
B153: =IF(ISBLANK(dms_E3_Projects_31),"",dms_E3_Projects_31) -> 
B154: =IF(ISBLANK(dms_E3_Projects_32),"",dms_E3_Projects_32) -> 
B155: =IF(ISBLANK(dms_E3_Projects_33),"",dms_E3_Projects_33) -> 
B156: =IF(ISBLANK(dms_E3_Projects_34),"",dms_E3_Projects_34) -> 
B157: =IF(ISBLANK(dms_E3_Projects_35),"",dms_E3_Projects_35) -> 
B158: =IF(ISBLANK(dms_E3_Projects_36),"",dms_E3_Projects_36) -> 
B159: =IF(ISBLANK(dms_E3_Projects_37),"",dms_E3_Projects_37) -> 
B160: =IF(ISBLANK(dms_E3_Projects_38),"",dms_E3_Projects_38) -> 
B161: =IF(ISBLANK(dms_E3_Projects_39),"",dms_E3_Projects_39) -> 
B162: =IF(ISBLANK(dms_E3_Projects_40),"",dms_E3_Projects_40) -> 
B163: =IF(ISBLANK(dms_E3_Projects_41),"",dms_E3_Projects_41) -> 
B164: =IF(ISBLANK(dms_E3_Projects_42),"",dms_E3_Projects_42) -> 
B165: =IF(ISBLANK(dms_E3_Projects_43),"",dms_E3_Projects_43) -> 
B166: =IF(ISBLANK(dms_E3_Projects_44),"",dms_E3_Projects_44) -> 
B167: =IF(ISBLANK(dms_E3_Projects_45),"",dms_E3_Projects_45) -> 
B168: =IF(ISBLANK(dms_E3_Projects_46),"",dms_E3_Projects_46) -> 
B169: =IF(ISBLANK(dms_E3_Projects_47),"",dms_E3_Projects_47) -> 
B170: =IF(ISBLANK(dms_E3_Projects_48),"",dms_E3_Projects_48) -> 
B171: =IF(ISBLANK(dms_E3_Projects_49),"",dms_E3_Projects_49) -> 
B172: =IF(ISBLANK(dms_E3_Projects_50),"",dms_E3_Projects_50) -> 
B173: Aggregate of other projects or categories with total expenditure of less than $500,000
B174: Total
B176: C. DIRECT MATERIAL EXPENDITURE
C177: EXPENDITURE
C178: =CONCATENATE("$, real ",dms_DollarReal) -> $, real June 2025
C179: =dms_y1 -> 2023-24 | D179: =dms_y2 -> 2024-25 | E179: =dms_y3 -> 2025-26 | F179: =dms_y4 -> 2026-27 | G179: =dms_y5 -> 2027-28 | H179: =dms_y6 -> 2028-29 | I179: =dms_y7 -> 2029-30
B180: =IF(ISBLANK(dms_E3_Projects_01),"",dms_E3_Projects_01) -> Figtree CDP - Stage 2 | C180: 0 | D180: 0 | E180: 0 | F180: 0 | G180: 0 | H180: 0 | I180: 0
B181: =IF(ISBLANK(dms_E3_Projects_02),"",dms_E3_Projects_02) -> Woolwich Low Pressure CDP | C181: 0 | D181: 0 | E181: 0 | F181: 0 | G181: 0 | H181: 0 | I181: 0
B182: =IF(ISBLANK(dms_E3_Projects_03),"",dms_E3_Projects_03) -> Box Hill CDP | C182: 0 | D182: 0 | E182: 0 | F182: 0 | G182: 0 | H182: 0 | I182: 0
B183: =IF(ISBLANK(dms_E3_Projects_04),"",dms_E3_Projects_04) -> North Sydney CDP | C183: 0 | D183: 0 | E183: 0 | F183: 0 | G183: 0 | H183: 0 | I183: 0
B184: =IF(ISBLANK(dms_E3_Projects_05),"",dms_E3_Projects_05) -> Umina Beach Low Pressure CDP | C184: 0 | D184: 0 | E184: 0 | F184: 0 | G184: 0 | H184: 0 | I184: 0
B185: =IF(ISBLANK(dms_E3_Projects_06),"",dms_E3_Projects_06) -> Auburn CDP | C185: 0 | D185: 0 | E185: 0 | F185: 0 | G185: 0 | H185: 0 | I185: 0
B186: =IF(ISBLANK(dms_E3_Projects_07),"",dms_E3_Projects_07) -> Blue Mountain Pressure Reduction Glenbrook-Springwood | C186: 0 | D186: 0 | E186: 0 | F186: 0 | G186: 0 | H186: 0 | I186: 0
B187: =IF(ISBLANK(dms_E3_Projects_08),"",dms_E3_Projects_08) -> Gymea Bay 210 kPa CDP | C187: 0 | D187: 0 | E187: 0 | F187: 0 | G187: 0 | H187: 0 | I187: 0
B188: =IF(ISBLANK(dms_E3_Projects_09),"",dms_E3_Projects_09) -> Edmondson Park Soldiers Pde steel main | C188: 0 | D188: 0 | E188: 0 | F188: 0 | G188: 0 | H188: 0 | I188: 0
B189: =IF(ISBLANK(dms_E3_Projects_10),"",dms_E3_Projects_10) -> Minor Capital - Mains Interconnect | C189: 0 | D189: 0 | E189: 0 | F189: 0 | G189: 0 | H189: 0 | I189: 0
B190: =IF(ISBLANK(dms_E3_Projects_11),"",dms_E3_Projects_11) -> Cecil Park CDP-Elizabeth Dr | C190: 0 | D190: 0 | E190: 0 | F190: 0 | G190: 0 | H190: 0 | I190: 0
B191: =IF(ISBLANK(dms_E3_Projects_12),"",dms_E3_Projects_12) -> 
B192: =IF(ISBLANK(dms_E3_Projects_13),"",dms_E3_Projects_13) -> 
B193: =IF(ISBLANK(dms_E3_Projects_14),"",dms_E3_Projects_14) -> 
B194: =IF(ISBLANK(dms_E3_Projects_15),"",dms_E3_Projects_15) -> 
B195: =IF(ISBLANK(dms_E3_Projects_16),"",dms_E3_Projects_16) -> 
B196: =IF(ISBLANK(dms_E3_Projects_17),"",dms_E3_Projects_17) -> 
B197: =IF(ISBLANK(dms_E3_Projects_18),"",dms_E3_Projects_18) -> 
B198: =IF(ISBLANK(dms_E3_Projects_18),"",dms_E3_Projects_18) -> 
B199: =IF(ISBLANK(dms_E3_Projects_19),"",dms_E3_Projects_19) -> 
B200: =IF(ISBLANK(dms_E3_Projects_20),"",dms_E3_Projects_20) -> 
B201: =IF(ISBLANK(dms_E3_Projects_21),"",dms_E3_Projects_21) -> 
B202: =IF(ISBLANK(dms_E3_Projects_22),"",dms_E3_Projects_22) -> 
B203: =IF(ISBLANK(dms_E3_Projects_23),"",dms_E3_Projects_23) -> 
B204: =IF(ISBLANK(dms_E3_Projects_24),"",dms_E3_Projects_24) -> 
B205: =IF(ISBLANK(dms_E3_Projects_25),"",dms_E3_Projects_26) -> 
B206: =IF(ISBLANK(dms_E3_Projects_27),"",dms_E3_Projects_27) -> 
B207: =IF(ISBLANK(dms_E3_Projects_28),"",dms_E3_Projects_28) -> 
B208: =IF(ISBLANK(dms_E3_Projects_29),"",dms_E3_Projects_29) -> 
B209: =IF(ISBLANK(dms_E3_Projects_30),"",dms_E3_Projects_30) -> 
B210: =IF(ISBLANK(dms_E3_Projects_31),"",dms_E3_Projects_31) -> 
B211: =IF(ISBLANK(dms_E3_Projects_32),"",dms_E3_Projects_32) -> 
B212: =IF(ISBLANK(dms_E3_Projects_33),"",dms_E3_Projects_33) -> 
B213: =IF(ISBLANK(dms_E3_Projects_34),"",dms_E3_Projects_34) -> 
B214: =IF(ISBLANK(dms_E3_Projects_35),"",dms_E3_Projects_35) -> 
B215: =IF(ISBLANK(dms_E3_Projects_36),"",dms_E3_Projects_36) -> 
B216: =IF(ISBLANK(dms_E3_Projects_37),"",dms_E3_Projects_37) -> 
B217: =IF(ISBLANK(dms_E3_Projects_38),"",dms_E3_Projects_38) -> 
B218: =IF(ISBLANK(dms_E3_Projects_39),"",dms_E3_Projects_39) -> 
B219: =IF(ISBLANK(dms_E3_Projects_40),"",dms_E3_Projects_40) -> 
B220: =IF(ISBLANK(dms_E3_Projects_41),"",dms_E3_Projects_41) -> 
B221: =IF(ISBLANK(dms_E3_Projects_42),"",dms_E3_Projects_42) -> 
B222: =IF(ISBLANK(dms_E3_Projects_43),"",dms_E3_Projects_43) -> 
B223: =IF(ISBLANK(dms_E3_Projects_44),"",dms_E3_Projects_44) -> 
B224: =IF(ISBLANK(dms_E3_Projects_45),"",dms_E3_Projects_45) -> 
B225: =IF(ISBLANK(dms_E3_Projects_46),"",dms_E3_Projects_46) -> 
B226: =IF(ISBLANK(dms_E3_Projects_47),"",dms_E3_Projects_47) -> 
B227: =IF(ISBLANK(dms_E3_Projects_48),"",dms_E3_Projects_48) -> 
B228: =IF(ISBLANK(dms_E3_Projects_49),"",dms_E3_Projects_49) -> 
B229: =IF(ISBLANK(dms_E3_Projects_50),"",dms_E3_Projects_50) -> 
B230: Aggregate of other projects or categories with total expenditure of less than $500,000 | C230: 0 | D230: 0 | E230: 0 | F230: 0 | G230: 0 | H230: 0 | I230: 0
B231: Total | C231: =SUM(C180:C230) -> 0 | D231: =SUM(D180:D230) -> 0 | E231: 0 | F231: 0 | G231: 0 | H231: 0 | I231: 0
B233: D. OTHER DIRECT EXPENDITURE
C234: EXPENDITURE
C235: =CONCATENATE("$, real ",dms_DollarReal) -> $, real June 2025
C236: =dms_y1 -> 2023-24 | D236: =dms_y2 -> 2024-25 | E236: =dms_y3 -> 2025-26 | F236: =dms_y4 -> 2026-27 | G236: =dms_y5 -> 2027-28 | H236: =dms_y6 -> 2028-29 | I236: =dms_y7 -> 2029-30
B237: =IF(ISBLANK(dms_E3_Projects_01),"",dms_E3_Projects_01) -> Figtree CDP - Stage 2 | C237: 0 | D237: 0 | E237: 0 | F237: 0 | G237: 0 | H237: 0 | I237: 58809.55498
B238: =IF(ISBLANK(dms_E3_Projects_02),"",dms_E3_Projects_02) -> Woolwich Low Pressure CDP | C238: 0 | D238: 0 | E238: 0 | F238: 0 | G238: 0 | H238: 113439.4464 | I238: 0
B239: =IF(ISBLANK(dms_E3_Projects_03),"",dms_E3_Projects_03) -> Box Hill CDP | C239: 0 | D239: 0 | E239: 90867.84322 | F239: 0 | G239: 0 | H239: 0 | I239: 0
B240: =IF(ISBLANK(dms_E3_Projects_04),"",dms_E3_Projects_04) -> North Sydney CDP | C240: 0 | D240: 0 | E240: 0 | F240: 0 | G240: 0 | H240: 0 | I240: 377226.7385
B241: =IF(ISBLANK(dms_E3_Projects_05),"",dms_E3_Projects_05) -> Umina Beach Low Pressure CDP | C241: 0 | D241: 0 | E241: 0 | F241: 57482.52614 | G241: 0 | H241: 0 | I241: 0
B242: =IF(ISBLANK(dms_E3_Projects_06),"",dms_E3_Projects_06) -> Auburn CDP | C242: 0 | D242: 0 | E242: 0 | F242: 119285.6747 | G242: 0 | H242: 0 | I242: 0
B243: =IF(ISBLANK(dms_E3_Projects_07),"",dms_E3_Projects_07) -> Blue Mountain Pressure Reduction Glenbrook-Springwood | C243: 0 | D243: 0 | E243: 0 | F243: 45133.0577 | G243: 0 | H243: 0 | I243: 0
B244: =IF(ISBLANK(dms_E3_Projects_08),"",dms_E3_Projects_08) -> Gymea Bay 210 kPa CDP | C244: 0 | D244: 0 | E244: 0 | F244: 0 | G244: 80342.98859 | H244: 0 | I244: 0
B245: =IF(ISBLANK(dms_E3_Projects_09),"",dms_E3_Projects_09) -> Edmondson Park Soldiers Pde steel main | C245: 0 | D245: 0 | E245: 0 | F245: 0 | G245: 0 | H245: 0 | I245: 0
B246: =IF(ISBLANK(dms_E3_Projects_10),"",dms_E3_Projects_10) -> Minor Capital - Mains Interconnect | C246: 13666.61025 | D246: 13686.81702 | E246: 13712.96978 | F246: 13731.36018 | G246: 13748.67823 | H246: 13769.10192 | I246: 13791.30789
... 441 more rows

Sheet E4. Meter replacement
B1: =INDEX(dms_Worksheet_List,MATCH(dms_Model,dms_Model_List)) -> REGULATORY REPORTING STATEMENT
B2: =dms_TradingNameFull -> Jemena Gas Networks (NSW) Ltd
B3: =dms_Header_Span -> 2023-24 to 2029-30
B4: E4. METER (GAS) REPLACEMENT
B5: FINAL RIN TEMPLATE - FEBRUARY 2024
B7: E4.1 - CAPEX
B8: E4.1.1 - NEW METERS ACQUIRED
C9: EXPENDITURE
C10: =CONCATENATE("$, real ",dms_DollarReal) -> $, real June 2025
C11: =dms_y1 -> 2023-24 | D11: =dms_y2 -> 2024-25 | E11: =dms_y3 -> 2025-26 | F11: =dms_y4 -> 2026-27 | G11: =dms_y5 -> 2027-28 | H11: =dms_y6 -> 2028-29 | I11: =dms_y7 -> 2029-30
B12: A. DIRECT INTERNAL LABOUR EXPENDITURE
B13: Residential | C13: 0 | D13: 0 | E13: 0 | F13: 0 | G13: 0 | H13: 0 | I13: 0
B14: Industrial and Commercial | C14: 0 | D14: 0 | E14: 0 | F14: 0 | G14: 0 | H14: 0 | I14: 0
B15: Other | C15: 0 | D15: 0 | E15: 0 | F15: 0 | G15: 0 | H15: 0 | I15: 0
B16: Total | C16: =SUM(C13:C15) -> 0 | D16: =SUM(D13:D15) -> 0 | E16: 0 | F16: 0 | G16: 0 | H16: 0 | I16: 0
B17: B. DIRECT CONTRACTOR EXPENDITURE
B18: Residential
B19: Industrial and Commercial
B20: Other
B21: Total
B22: C. DIRECT MATERIAL EXPENDITURE
B23: Residential | C23: 0 | D23: 0 | E23: 0 | F23: 0 | G23: 0 | H23: 0 | I23: 0
B24: Industrial and Commercial | C24: 0 | D24: 0 | E24: 0 | F24: 0 | G24: 0 | H24: 0 | I24: 0
B25: Other | C25: 0 | D25: 0 | E25: 0 | F25: 0 | G25: 0 | H25: 0 | I25: 0
B26: Total | C26: =SUM(C23:C25) -> 0 | D26: =SUM(D23:D25) -> 0 | E26: 0 | F26: 0 | G26: 0 | H26: 0 | I26: 0
B27: D. OTHER DIRECT EXPENDITURE
B28: Residential | C28: 0 | D28: 0 | E28: 0 | F28: 0 | G28: 0 | H28: 0 | I28: 0
B29: Industrial and Commercial | C29: 0 | D29: 0 | E29: 0 | F29: 0 | G29: 0 | H29: 0 | I29: 0
B30: Other | C30: 0 | D30: 0 | E30: 0 | F30: 0 | G30: 0 | H30: 0 | I30: 0
B31: Total | C31: =SUM(C28:C30) -> 0 | D31: =SUM(D28:D30) -> 0 | E31: 0 | F31: 0 | G31: 0 | H31: 0 | I31: 0
B32: E. RELATED PARTY MARGIN EXPENDITURE
B33: Residential
B34: Industrial and Commercial
B35: Other
B36: Total
B37: F. CAPITAL CONTRIBUTIONS included in the above
B38: Residential | C38: 0 | D38: 0 | E38: 0 | F38: 0 | G38: 0 | H38: 0 | I38: 0
B39: Industrial and Commercial | C39: 0 | D39: 0 | E39: 0 | F39: 0 | G39: 0 | H39: 0 | I39: 0
B40: Other | C40: 0 | D40: 0 | E40: 0 | F40: 0 | G40: 0 | H40: 0 | I40: 0
B41: Total | C41: =SUM(C38:C40) -> 0 | D41: =SUM(D38:D40) -> 0 | E41: 0 | F41: 0 | G41: 0 | H41: 0 | I41: 0
B42: TOTAL | C42: =SUM(C16,C21,C26,C31,C36,C41) -> 0 | D42: =SUM(D16,D21,D26,D31,D36,D41) -> 0 | E42: 0 | F42: 0 | G42: 0 | H42: 0 | I42: 0
B44: E4.1.2 - METER (GAS) REFURBISHMENT
C45: EXPENDITURE
C46: =CONCATENATE("$, real ",dms_DollarReal) -> $, real June 2025
C47: =dms_y1 -> 2023-24 | D47: =dms_y2 -> 2024-25 | E47: =dms_y3 -> 2025-26 | F47: =dms_y4 -> 2026-27 | G47: =dms_y5 -> 2027-28 | H47: =dms_y6 -> 2028-29 | I47: =dms_y7 -> 2029-30
B48: A. DIRECT INTERNAL LABOUR EXPENDITURE
B49: Residential | C49: 0 | D49: 0 | E49: 0 | F49: 0 | G49: 0 | H49: 0 | I49: 0
B50: Industrial and Commercial | C50: 0 | D50: 0 | E50: 0 | F50: 0 | G50: 0 | H50: 0 | I50: 0
B51: Other | C51: 0 | D51: 0 | E51: 0 | F51: 0 | G51: 0 | H51: 0 | I51: 0
B52: Total | C52: =SUM(C49:C51) -> 0 | D52: =SUM(D49:D51) -> 0 | E52: 0 | F52: 0 | G52: 0 | H52: 0 | I52: 0
B53: B. DIRECT CONTRACTOR EXPENDITURE
B54: Residential
B55: Industrial and Commercial
B56: Other
B57: Total
B58: C. DIRECT MATERIAL EXPENDITURE
B59: Residential | C59: 0 | D59: 0 | E59: 0 | F59: 0 | G59: 0 | H59: 0 | I59: 0
B60: Industrial and Commercial | C60: 0 | D60: 0 | E60: 0 | F60: 0 | G60: 0 | H60: 0 | I60: 0
B61: Other | C61: 0 | D61: 0 | E61: 0 | F61: 0 | G61: 0 | H61: 0 | I61: 0
B62: Total | C62: =SUM(C59:C61) -> 0 | D62: =SUM(D59:D61) -> 0 | E62: 0 | F62: 0 | G62: 0 | H62: 0 | I62: 0
B63: D. OTHER DIRECT EXPENDITURE
B64: Residential | C64: 0 | D64: 0 | E64: 0 | F64: 0 | G64: 0 | H64: 0 | I64: 0
B65: Industrial and Commercial | C65: 0 | D65: 0 | E65: 0 | F65: 0 | G65: 0 | H65: 0 | I65: 0
B66: Other | C66: 0 | D66: 0 | E66: 0 | F66: 0 | G66: 0 | H66: 0 | I66: 0
B67: Total | C67: =SUM(C64:C66) -> 0 | D67: =SUM(D64:D66) -> 0 | E67: 0 | F67: 0 | G67: 0 | H67: 0 | I67: 0
B68: E. RELATED PARTY MARGIN EXPENDITURE
B69: Residential
B70: Industrial and Commercial
B71: Other
B72: Total
B73: F. CAPITAL CONTRIBUTIONS included in the above
B74: Residential | C74: 0 | D74: 0 | E74: 0 | F74: 0 | G74: 0 | H74: 0 | I74: 0
B75: Industrial and Commercial | C75: 0 | D75: 0 | E75: 0 | F75: 0 | G75: 0 | H75: 0 | I75: 0
B76: Other | C76: 0 | D76: 0 | E76: 0 | F76: 0 | G76: 0 | H76: 0 | I76: 0
B77: Total | C77: =SUM(C74:C76) -> 0 | D77: =SUM(D74:D76) -> 0 | E77: 0 | F77: 0 | G77: 0 | H77: 0 | I77: 0
B78: TOTAL | C78: =SUM(C52,C57,C62,C67,C72,C77) -> 0 | D78: =SUM(D52,D57,D62,D67,D72,D77) -> 0 | E78: 0 | F78: 0 | G78: 0 | H78: 0 | I78: 0
B80: E4.1.3 - METER (GAS) INSTALLATION
C81: EXPENDITURE
C82: =CONCATENATE("$, real ",dms_DollarReal) -> $, real June 2025
C83: =dms_y1 -> 2023-24 | D83: =dms_y2 -> 2024-25 | E83: =dms_y3 -> 2025-26 | F83: =dms_y4 -> 2026-27 | G83: =dms_y5 -> 2027-28 | H83: =dms_y6 -> 2028-29 | I83: =dms_y7 -> 2029-30
B84: A. DIRECT INTERNAL LABOUR EXPENDITURE
B85: Residential | C85: 0 | D85: 0 | E85: 0 | F85: 0 | G85: 0 | H85: 0 | I85: 0
B86: Industrial and Commercial | C86: 0 | D86: 0 | E86: 0 | F86: 0 | G86: 0 | H86: 0 | I86: 0
B87: Other | C87: 0 | D87: 0 | E87: 0 | F87: 0 | G87: 0 | H87: 0 | I87: 0
B88: Total | C88: =SUM(C85:C87) -> 0 | D88: =SUM(D85:D87) -> 0 | E88: 0 | F88: 0 | G88: 0 | H88: 0 | I88: 0
B89: B. DIRECT CONTRACTOR EXPENDITURE
B90: Residential
B91: Industrial and Commercial
B92: Other
B93: Total
B94: C. DIRECT MATERIAL EXPENDITURE
B95: Residential | C95: 0 | D95: 0 | E95: 0 | F95: 0 | G95: 0 | H95: 0 | I95: 0
B96: Industrial and Commercial | C96: 0 | D96: 0 | E96: 0 | F96: 0 | G96: 0 | H96: 0 | I96: 0
B97: Other | C97: 0 | D97: 0 | E97: 0 | F97: 0 | G97: 0 | H97: 0 | I97: 0
B98: Total | C98: =SUM(C95:C97) -> 0 | D98: =SUM(D95:D97) -> 0 | E98: 0 | F98: 0 | G98: 0 | H98: 0 | I98: 0
B99: D. OTHER DIRECT EXPENDITURE
B100: Residential | C100: 0 | D100: 0 | E100: 0 | F100: 0 | G100: 0 | H100: 0 | I100: 0
B101: Industrial and Commercial | C101: 0 | D101: 0 | E101: 0 | F101: 0 | G101: 0 | H101: 0 | I101: 0
B102: Other | C102: 0 | D102: 0 | E102: 0 | F102: 0 | G102: 0 | H102: 0 | I102: 0
B103: Total | C103: =SUM(C100:C102) -> 0 | D103: =SUM(D100:D102) -> 0 | E103: 0 | F103: 0 | G103: 0 | H103: 0 | I103: 0
B104: E. RELATED PARTY MARGIN EXPENDITURE
B105: Residential
B106: Industrial and Commercial
B107: Other
B108: Total
B109: F. CAPITAL CONTRIBUTIONS included in the above
B110: Residential | C110: 0 | D110: 0 | E110: 0 | F110: 0 | G110: 0 | H110: 0 | I110: 0
B111: Industrial and Commercial | C111: 0 | D111: 0 | E111: 0 | F111: 0 | G111: 0 | H111: 0 | I111: 0
B112: Other | C112: 0 | D112: 0 | E112: 0 | F112: 0 | G112: 0 | H112: 0 | I112: 0
B113: Total | C113: =SUM(C110:C112) -> 0 | D113: =SUM(D110:D112) -> 0 | E113: 0 | F113: 0 | G113: 0 | H113: 0 | I113: 0
B114: TOTAL | C114: =SUM(C88,C93,C98,C103,C108,C113) -> 0 | D114: =SUM(D88,D93,D98,D103,D108,D113) -> 0 | E114: 0 | F114: 0 | G114: 0 | H114: 0 | I114: 0
B116: E4.1.4 - OTHER METER (GAS) REPLACEMENT CAPEX
C117: EXPENDITURE
C118: =CONCATENATE("$, real ",dms_DollarReal) -> $, real June 2025
C119: =dms_y1 -> 2023-24 | D119: =dms_y2 -> 2024-25 | E119: =dms_y3 -> 2025-26 | F119: =dms_y4 -> 2026-27 | G119: =dms_y5 -> 2027-28 | H119: =dms_y6 -> 2028-29 | I119: =dms_y7 -> 2029-30
B120: A. DIRECT INTERNAL LABOUR EXPENDITURE
B121: Residential | C121: 0 | D121: 0 | E121: 0 | F121: 0 | G121: 0 | H121: 0 | I121: 0
B122: Industrial and Commercial | C122: 0 | D122: 0 | E122: 0 | F122: 0 | G122: 0 | H122: 0 | I122: 0
B123: Other | C123: 0 | D123: 0 | E123: 0 | F123: 0 | G123: 0 | H123: 0 | I123: 0
B124: Total | C124: =SUM(C121:C123) -> 0 | D124: =SUM(D121:D123) -> 0 | E124: 0 | F124: 0 | G124: 0 | H124: 0 | I124: 0
B125: B. DIRECT CONTRACTOR EXPENDITURE
B126: Residential
B127: Industrial and Commercial
B128: Other
B129: Total
B130: C. DIRECT MATERIAL EXPENDITURE
B131: Residential | C131: 0 | D131: 0 | E131: 0 | F131: 0 | G131: 0 | H131: 0 | I131: 0
B132: Industrial and Commercial | C132: 0 | D132: 0 | E132: 0 | F132: 0 | G132: 0 | H132: 0 | I132: 0
B133: Other | C133: 0 | D133: 0 | E133: 0 | F133: 0 | G133: 0 | H133: 0 | I133: 0
B134: Total | C134: =SUM(C131:C133) -> 0 | D134: =SUM(D131:D133) -> 0 | E134: 0 | F134: 0 | G134: 0 | H134: 0 | I134: 0
B135: D. OTHER DIRECT EXPENDITURE
B136: Residential | C136: 0 | D136: 0 | E136: 0 | F136: 0 | G136: 0 | H136: 0 | I136: 0
B137: Industrial and Commercial | C137: 0 | D137: 0 | E137: 0 | F137: 0 | G137: 0 | H137: 0 | I137: 0
B138: Other | C138: 0 | D138: 0 | E138: 0 | F138: 0 | G138: 0 | H138: 0 | I138: 0
B139: Total | C139: =SUM(C136:C138) -> 0 | D139: =SUM(D136:D138) -> 0 | E139: 0 | F139: 0 | G139: 0 | H139: 0 | I139: 0
B140: E. RELATED PARTY MARGIN EXPENDITURE
B141: Residential
B142: Industrial and Commercial
B143: Other
B144: Total
B145: F. CAPITAL CONTRIBUTIONS included in the above
B146: Residential | C146: 0 | D146: 0 | E146: 0 | F146: 0 | G146: 0 | H146: 0 | I146: 0
B147: Industrial and Commercial | C147: 0 | D147: 0 | E147: 0 | F147: 0 | G147: 0 | H147: 0 | I147: 0
B148: Other | C148: 0 | D148: 0 | E148: 0 | F148: 0 | G148: 0 | H148: 0 | I148: 0
B149: Total | C149: =SUM(C146:C148) -> 0 | D149: =SUM(D146:D148) -> 0 | E149: 0 | F149: 0 | G149: 0 | H149: 0 | I149: 0
B150: TOTAL | C150: =SUM(C124,C129,C134,C139,C144,C149) -> 0 | D150: =SUM(D124,D129,D134,D139,D144,D149) -> 0 | E150: 0 | F150: 0 | G150: 0 | H150: 0 | I150: 0
B153: E4.2 - VOLUMES
B154: E4.2.1 - NUMBER OF NEW METERS ACQUIRED
C155: VOLUMES
C156: 0s
C157: =dms_y1 -> 2023-24 | D157: =dms_y2 -> 2024-25 | E157: =dms_y3 -> 2025-26 | F157: =dms_y4 -> 2026-27 | G157: =dms_y5 -> 2027-28 | H157: =dms_y6 -> 2028-29 | I157: =dms_y7 -> 2029-30
B158: Residential
B159: Industrial and commercial
B160: Other meters
B161: Total
B164: E4.2.2 - NUMBER OF METERS REFURBISHED
C165: VOLUMES
C166: 0s
C167: =dms_y1 -> 2023-24 | D167: =dms_y2 -> 2024-25 | E167: =dms_y3 -> 2025-26 | F167: =dms_y4 -> 2026-27 | G167: =dms_y5 -> 2027-28 | H167: =dms_y6 -> 2028-29 | I167: =dms_y7 -> 2029-30
B168: A. REFURBISHABLE METERS REMOVED
B169: Residential
B170: Industrial and commercial
B171: Other meters
B172: Total
B173: B. METERS DECOMMISSIONED
B174: Residential
B175: Industrial and commercial
B176: Other meters
B177: Total
B178: TOTAL
B181: E4.2.3 - NUMBER OF METERS INSTALLED
C182: VOLUMES
C183: 0s
C184: =dms_y1 -> 2023-24 | D184: =dms_y2 -> 2024-25 | E184: =dms_y3 -> 2025-26 | F184: =dms_y4 -> 2026-27 | G184: =dms_y5 -> 2027-28 | H184: =dms_y6 -> 2028-29 | I184: =dms_y7 -> 2029-30
B185: Residential
B186: Industrial and commercial
B187: Other meters
B188: Total
B191: E4.2.4 - NUMBER OF METERS REMOVED / DECOMMISSIONED
C192: VOLUMES
C193: 0s
C194: =dms_y1 -> 2023-24 | D194: =dms_y2 -> 2024-25 | E194: =dms_y3 -> 2025-26 | F194: =dms_y4 -> 2026-27 | G194: =dms_y5 -> 2027-28 | H194: =dms_y6 -> 2028-29 | I194: =dms_y7 -> 2029-30
B195: Residential
B196: Industrial and commercial
B197: Other meters
B198: Total
B201: E4.2.5 - OTHER METER (GAS) REPLACEMENT VOLUMES
C202: VOLUMES
C203: 0s
C204: =dms_y1 -> 2023-24 | D204: =dms_y2 -> 2024-25 | E204: =dms_y3 -> 2025-26 | F204: =dms_y4 -> 2026-27 | G204: =dms_y5 -> 2027-28 | H204: =dms_y6 -> 2028-29 | I204: =dms_y7 -> 2029-30
B205: Residential | C205: 0 | D205: 0 | E205: 0 | F205: 0 | G205: 0 | H205: 0 | I205: 0
B206: Industrial and commercial | C206: 0 | D206: 0 | E206: 0 | F206: 0 | G206: 0 | H206: 0 | I206: 0
B207: Other meters | C207: 0 | D207: 0 | E207: 0 | F207: 0 | G207: 0 | H207: 0 | I207: 0
B208: Total | C208: =SUM(C205:C207) -> 0 | D208: =SUM(D205:D207) -> 0 | E208: 0 | F208: 0 | G208: 0 | H208: 0 | I208: 0

Sheet E5. Connections (gas)
B1: =INDEX(dms_Worksheet_List,MATCH(dms_Model,dms_Model_List)) -> REGULATORY REPORTING STATEMENT
B2: =dms_TradingNameFull -> Jemena Gas Networks (NSW) Ltd
B3: =dms_Header_Span -> 2023-24 to 2029-30
B4: E5. CONNECTIONS (GAS)
B5: FINAL RIN TEMPLATE - FEBRUARY 2024
B7: E5.1 - EXPENDITURE
B8: E5.1.1 - CAPEX - BY CONNECTION TYPE
B9: A. DIRECT INTERNAL LABOUR EXPENDITURE
D10: EXPENDITURE
D11: =CONCATENATE("$, real ",dms_DollarReal) -> $, real June 2025
D12: =dms_y1 -> 2023-24 | E12: =dms_y2 -> 2024-25 | F12: =dms_y3 -> 2025-26 | G12: =dms_y4 -> 2026-27 | H12: =dms_y5 -> 2027-28 | I12: =dms_y6 -> 2028-29 | J12: =dms_y7 -> 2029-30
B13: (i) ELECTRICITY TO GAS
B14: Distribution mains | D14: 0 | E14: 0 | F14: 0 | G14: 0 | H14: 0 | I14: 0 | J14: 0
B15: Inlet service pipes | D15: 0 | E15: 0 | F15: 0 | G15: 0 | H15: 0 | I15: 0 | J15: 0
B16: Meters (gas) | D16: 0 | E16: 0 | F16: 0 | G16: 0 | H16: 0 | I16: 0 | J16: 0
C17: Total | D17: =SUM(D14:D16) -> 0 | E17: =SUM(E14:E16) -> 0 | F17: 0 | G17: 0 | H17: 0 | I17: 0 | J17: 0
B18: (ii) NEW HOMES
B19: Distribution mains | D19: 0 | E19: 20857.54125 | F19: 73146.23265 | G19: 2369.907518 | H19: 0 | I19: 0 | J19: 0
B20: Inlet service pipes | D20: 0 | E20: 0 | F20: 0 | G20: 0 | H20: 0 | I20: 0 | J20: 0
B21: Meters (gas) | D21: 0 | E21: 0 | F21: 0 | G21: 0 | H21: 0 | I21: 0 | J21: 0
C22: Total | D22: =SUM(D19:D21) -> 0 | E22: =SUM(E19:E21) -> 20857.54125 | F22: =SUM(F19:F21) -> 73146.23265 | G22: =SUM(G19:G21) -> 2369.907518 | H22: =SUM(H19:H21) -> 0 | I22: =SUM(I19:I21) -> 0 | J22: =SUM(J19:J21) -> 0
B23: (iii) NEW MEDIUM DENSITY / HIGH RISE
B24: Distribution mains | D24: 0 | E24: 0 | F24: 0 | G24: 0 | H24: 0 | I24: 0 | J24: 0
B25: Inlet service pipes | D25: 0 | E25: 0 | F25: 0 | G25: 0 | H25: 0 | I25: 0 | J25: 0
B26: Meters (gas) | D26: 0 | E26: 0 | F26: 0 | G26: 0 | H26: 0 | I26: 0 | J26: 0
C27: Total | D27: =SUM(D24:D26) -> 0 | E27: =SUM(E24:E26) -> 0 | F27: =SUM(F24:F26) -> 0 | G27: =SUM(G24:G26) -> 0 | H27: =SUM(H24:H26) -> 0 | I27: =SUM(I24:I26) -> 0 | J27: =SUM(J24:J26) -> 0
B28: (iv) INDUSTRIAL & COMMERCIAL TARIFF
B29: Distribution mains | D29: 0 | E29: 0 | F29: 0 | G29: 0 | H29: 0 | I29: 0 | J29: 0
B30: Inlet service pipes | D30: 0 | E30: 0 | F30: 0 | G30: 0 | H30: 0 | I30: 0 | J30: 0
B31: Meters (gas) | D31: 0 | E31: 0 | F31: 0 | G31: 0 | H31: 0 | I31: 0 | J31: 0
C32: Total | D32: =SUM(D29:D31) -> 0 | E32: =SUM(E29:E31) -> 0 | F32: =SUM(F29:F31) -> 0 | G32: =SUM(G29:G31) -> 0 | H32: =SUM(H29:H31) -> 0 | I32: =SUM(I29:I31) -> 0 | J32: =SUM(J29:J31) -> 0
B33: (v) INDUSTRIAL & COMMERCIAL CONTRACT
B34: Distribution mains | D34: 67938.53711 | E34: 29479.91716 | F34: 29360.77118 | G34: 29410.50894 | H34: 29457.34651 | I34: 29512.5834 | J34: 29572.6406
B35: Inlet service pipes | D35: 7371.044314 | E35: 7379.629957 | F35: 7390.741997 | G35: 7398.555883 | H35: 7405.914145 | I35: 7414.591956 | J35: 7424.027043
B36: Meters (gas) | D36: 0 | E36: 0 | F36: 0 | G36: 0 | H36: 0 | I36: 0 | J36: 0
C37: Total | D37: =SUM(D34:D36) -> 75309.58143 | E37: =SUM(E34:E36) -> 36859.54712 | F37: =SUM(F34:F36) -> 36751.51318 | G37: =SUM(G34:G36) -> 36809.06482 | H37: =SUM(H34:H36) -> 36863.26065 | I37: =SUM(I34:I36) -> 36927.17536 | J37: =SUM(J34:J36) -> 36996.66764
B38: (vi) GAS SUPPLIERS
B39: Distribution mains | D39: 535.1179692 | E39: 25018.49531 | F39: 134648.1631 | G39: 648388.8419 | H39: 680112.2338 | I39: 59035.28614 | J39: 0
B40: Inlet service pipes | D40: 0 | E40: 0 | F40: 0 | G40: 0 | H40: 0 | I40: 0 | J40: 0
B41: Meters (gas) | D41: 0 | E41: 0 | F41: 0 | G41: 0 | H41: 0 | I41: 0 | J41: 0
C42: Total | D42: =SUM(D39:D41) -> 535.1179692 | E42: =SUM(E39:E41) -> 25018.49531 | F42: 134648.1631 | G42: 648388.8419 | H42: 680112.2338 | I42: 59035.28614 | J42: 0
C43: TOTAL | D43: =SUM(D37,D32,D27,D22,D17,D42) -> 75844.6994 | E43: =SUM(E37,E32,E27,E22,E17,E42) -> 82735.58368 | F43: 244545.9089 | G43: 687567.8142 | H43: 716975.4944 | I43: 95962.4615 | J43: 36996.66764
B45: B. DIRECT CONTRACTOR EXPENDITURE
D46: EXPENDITURE
D47: =CONCATENATE("$, real ",dms_DollarReal) -> $, real June 2025
D48: =dms_y1 -> 2023-24 | E48: =dms_y2 -> 2024-25 | F48: =dms_y3 -> 2025-26 | G48: =dms_y4 -> 2026-27 | H48: =dms_y5 -> 2027-28 | I48: =dms_y6 -> 2028-29 | J48: =dms_y7 -> 2029-30
B49: (i) ELECTRICITY TO GAS
B50: Distribution mains
B51: Inlet service pipes
B52: Meters (gas)
C53: Total
B54: (ii) NEW HOMES
B55: Distribution mains
B56: Inlet service pipes
B57: Meters (gas)
C58: Total
B59: (iii) NEW MEDIUM DENSITY / HIGH RISE
B60: Distribution mains
B61: Inlet service pipes
B62: Meters (gas)
C63: Total
B64: (iv) INDUSTRIAL & COMMERCIAL TARIFF
B65: Distribution mains
B66: Inlet service pipes
B67: Meters (gas)
C68: Total
B69: (v) INDUSTRIAL & COMMERCIAL CONTRACT
B70: Distribution mains
B71: Inlet service pipes
B72: Meters (gas)
C73: Total
B74: (vi) GAS SUPPLIERS
B75: Distribution mains
B76: Inlet service pipes
B77: Meters (gas)
C78: Total
C79: TOTAL
B81: C. DIRECT MATERIAL EXPENDITURE
D82: EXPENDITURE
D83: =CONCATENATE("$, real ",dms_DollarReal) -> $, real June 2025
D84: =dms_y1 -> 2023-24 | E84: =dms_y2 -> 2024-25 | F84: =dms_y3 -> 2025-26 | G84: =dms_y4 -> 2026-27 | H84: =dms_y5 -> 2027-28 | I84: =dms_y6 -> 2028-29 | J84: =dms_y7 -> 2029-30
B85: (i) ELECTRICITY TO GAS
B86: Distribution mains | D86: 0 | E86: 0 | F86: 0 | G86: 0 | H86: 0 | I86: 0 | J86: 0
B87: Inlet service pipes | D87: 0 | E87: 0 | F87: 0 | G87: 0 | H87: 0 | I87: 0 | J87: 0
B88: Meters (gas) | D88: 0 | E88: 0 | F88: 0 | G88: 0 | H88: 0 | I88: 0 | J88: 0
C89: Total | D89: =SUM(D86:D88) -> 0 | E89: =SUM(E86:E88) -> 0 | F89: =SUM(F86:F88) -> 0 | G89: =SUM(G86:G88) -> 0 | H89: =SUM(H86:H88) -> 0 | I89: =SUM(I86:I88) -> 0 | J89: =SUM(J86:J88) -> 0
B90: (ii) NEW HOMES
B91: Distribution mains | D91: 0 | E91: 0 | F91: 0 | G91: 0 | H91: 0 | I91: 0 | J91: 0
B92: Inlet service pipes | D92: 0 | E92: 0 | F92: 0 | G92: 0 | H92: 0 | I92: 0 | J92: 0
B93: Meters (gas) | D93: 0 | E93: 0 | F93: 0 | G93: 0 | H93: 0 | I93: 0 | J93: 0
C94: Total | D94: =SUM(D91:D93) -> 0 | E94: =SUM(E91:E93) -> 0 | F94: =SUM(F91:F93) -> 0 | G94: =SUM(G91:G93) -> 0 | H94: =SUM(H91:H93) -> 0 | I94: =SUM(I91:I93) -> 0 | J94: =SUM(J91:J93) -> 0
B95: (iii) NEW MEDIUM DENSITY / HIGH RISE
B96: Distribution mains | D96: 0 | E96: 0 | F96: 0 | G96: 0 | H96: 0 | I96: 0 | J96: 0
B97: Inlet service pipes | D97: 0 | E97: 0 | F97: 0 | G97: 0 | H97: 0 | I97: 0 | J97: 0
B98: Meters (gas) | D98: 0 | E98: 0 | F98: 0 | G98: 0 | H98: 0 | I98: 0 | J98: 0
C99: Total | D99: =SUM(D96:D98) -> 0 | E99: =SUM(E96:E98) -> 0 | F99: =SUM(F96:F98) -> 0 | G99: =SUM(G96:G98) -> 0 | H99: =SUM(H96:H98) -> 0 | I99: =SUM(I96:I98) -> 0 | J99: =SUM(J96:J98) -> 0
B100: (iv) INDUSTRIAL & COMMERCIAL TARIFF
B101: Distribution mains | D101: 0 | E101: 0 | F101: 0 | G101: 0 | H101: 0 | I101: 0 | J101: 0
B102: Inlet service pipes | D102: 0 | E102: 0 | F102: 0 | G102: 0 | H102: 0 | I102: 0 | J102: 0
B103: Meters (gas) | D103: 0 | E103: 0 | F103: 0 | G103: 0 | H103: 0 | I103: 0 | J103: 0
C104: Total | D104: =SUM(D101:D103) -> 0 | E104: =SUM(E101:E103) -> 0 | F104: =SUM(F101:F103) -> 0 | G104: =SUM(G101:G103) -> 0 | H104: =SUM(H101:H103) -> 0 | I104: =SUM(I101:I103) -> 0 | J104: =SUM(J101:J103) -> 0
B105: (v) INDUSTRIAL & COMMERCIAL CONTRACT
B106: Distribution mains | D106: 0 | E106: 0 | F106: 0 | G106: 0 | H106: 0 | I106: 0 | J106: 0
B107: Inlet service pipes | D107: 0 | E107: 0 | F107: 0 | G107: 0 | H107: 0 | I107: 0 | J107: 0
B108: Meters (gas) | D108: 0 | E108: 0 | F108: 0 | G108: 0 | H108: 0 | I108: 0 | J108: 0
C109: Total | D109: =SUM(D106:D108) -> 0 | E109: =SUM(E106:E108) -> 0 | F109: =SUM(F106:F108) -> 0 | G109: =SUM(G106:G108) -> 0 | H109: =SUM(H106:H108) -> 0 | I109: =SUM(I106:I108) -> 0 | J109: =SUM(J106:J108) -> 0
B110: (vi) GAS SUPPLIERS
B111: Distribution mains | D111: 0 | E111: 0 | F111: 5276.893041 | G111: 8343.888406 | H111: 25163.43969 | I111: 0 | J111: 0
B112: Inlet service pipes | D112: 0 | E112: 0 | F112: 0 | G112: 0 | H112: 0 | I112: 0 | J112: 0
B113: Meters (gas) | D113: 0 | E113: 0 | F113: 0 | G113: 0 | H113: 0 | I113: 0 | J113: 0
C114: Total | D114: =SUM(D111:D113) -> 0 | E114: =SUM(E111:E113) -> 0 | F114: 5276.893041 | G114: 8343.888406 | H114: 25163.43969 | I114: 0 | J114: 0
C115: TOTAL | D115: =SUM(D109,D104,D99,D94,D89,D114) -> 0 | E115: =SUM(E109,E104,E99,E94,E89,E114) -> 0 | F115: =SUM(F109,F104,F99,F94,F89,F114) -> 5276.893041 | G115: =SUM(G109,G104,G99,G94,G89,G114) -> 8343.888406 | H115: =SUM(H109,H104,H99,H94,H89,H114) -> 25163.43969 | I115: =SUM(I109,I104,I99,I94,I89,I114) -> 0 | J115: =SUM(J109,J104,J99,J94,J89,J114) -> 0
B117: D. OTHER DIRECT EXPENDITURE
D118: EXPENDITURE
D119: =CONCATENATE("$, real ",dms_DollarReal) -> $, real June 2025
D120: =dms_y1 -> 2023-24 | E120: =dms_y2 -> 2024-25 | F120: =dms_y3 -> 2025-26 | G120: =dms_y4 -> 2026-27 | H120: =dms_y5 -> 2027-28 | I120: =dms_y6 -> 2028-29 | J120: =dms_y7 -> 2029-30
B121: (i) ELECTRICITY TO GAS
B122: Distribution mains | D122: 0 | E122: 0 | F122: 0 | G122: 0 | H122: 0 | I122: 0 | J122: 0
B123: Inlet service pipes | D123: 0 | E123: 0 | F123: 0 | G123: 0 | H123: 0 | I123: 0 | J123: 0
B124: Meters (gas) | D124: 0 | E124: 0 | F124: 0 | G124: 0 | H124: 0 | I124: 0 | J124: 0
C125: Total | D125: =SUM(D122:D124) -> 0 | E125: =SUM(E122:E124) -> 0 | F125: =SUM(F122:F124) -> 0 | G125: =SUM(G122:G124) -> 0 | H125: =SUM(H122:H124) -> 0 | I125: =SUM(I122:I124) -> 0 | J125: =SUM(J122:J124) -> 0
B126: (ii) NEW HOMES
B127: Distribution mains | D127: 0 | E127: 8099.56882 | F127: 23277.22816 | G127: 0 | H127: 0 | I127: 0 | J127: 0
B128: Inlet service pipes | D128: 0 | E128: 0 | F128: 0 | G128: 0 | H128: 0 | I128: 0 | J128: 0
B129: Meters (gas) | D129: 0 | E129: 0 | F129: 0 | G129: 0 | H129: 0 | I129: 0 | J129: 0
C130: Total | D130: =SUM(D127:D129) -> 0 | E130: =SUM(E127:E129) -> 8099.56882 | F130: =SUM(F127:F129) -> 23277.22816 | G130: =SUM(G127:G129) -> 0 | H130: =SUM(H127:H129) -> 0 | I130: =SUM(I127:I129) -> 0 | J130: =SUM(J127:J129) -> 0
B131: (iii) NEW MEDIUM DENSITY / HIGH RISE
B132: Distribution mains | D132: 0 | E132: 0 | F132: 0 | G132: 0 | H132: 0 | I132: 0 | J132: 0
B133: Inlet service pipes | D133: 0 | E133: 0 | F133: 0 | G133: 0 | H133: 0 | I133: 0 | J133: 0
B134: Meters (gas) | D134: 0 | E134: 0 | F134: 0 | G134: 0 | H134: 0 | I134: 0 | J134: 0
C135: Total | D135: =SUM(D132:D134) -> 0 | E135: =SUM(E132:E134) -> 0 | F135: =SUM(F132:F134) -> 0 | G135: =SUM(G132:G134) -> 0 | H135: =SUM(H132:H134) -> 0 | I135: =SUM(I132:I134) -> 0 | J135: =SUM(J132:J134) -> 0
B136: (iv) INDUSTRIAL & COMMERCIAL TARIFF
B137: Distribution mains | D137: 0 | E137: 0 | F137: 0 | G137: 0 | H137: 0 | I137: 0 | J137: 0
B138: Inlet service pipes | D138: 339904.5453 | E138: 345338.0407 | F138: 351144.3677 | G138: 356661.7607 | H138: 362210.0661 | I138: 367999.422 | J138: 373969.5598
B139: Meters (gas) | D139: 0 | E139: 0 | F139: 0 | G139: 0 | H139: 0 | I139: 0 | J139: 0
C140: Total | D140: =SUM(D137:D139) -> 339904.5453 | E140: =SUM(E137:E139) -> 345338.0407 | F140: =SUM(F137:F139) -> 351144.3677 | G140: =SUM(G137:G139) -> 356661.7607 | H140: =SUM(H137:H139) -> 362210.0661 | I140: =SUM(I137:I139) -> 367999.422 | J140: =SUM(J137:J139) -> 373969.5598
B141: (v) INDUSTRIAL & COMMERCIAL CONTRACT
B142: Distribution mains | D142: 221383.2393 | E142: 96062.70362 | F142: 95674.45678 | G142: 95836.53129 | H142: 95989.15531 | I142: 96169.14923 | J142: 96364.85046
B143: Inlet service pipes | D143: 0 | E143: 0 | F143: 0 | G143: 0 | H143: 0 | I143: 0 | J143: 0
B144: Meters (gas) | D144: 0 | E144: 0 | F144: 0 | G144: 0 | H144: 0 | I144: 0 | J144: 0
C145: Total | D145: =SUM(D142:D144) -> 221383.2393 | E145: =SUM(E142:E144) -> 96062.70362 | F145: =SUM(F142:F144) -> 95674.45678 | G145: =SUM(G142:G144) -> 95836.53129 | H145: =SUM(H142:H144) -> 95989.15531 | I145: =SUM(I142:I144) -> 96169.14923 | J145: =SUM(J142:J144) -> 96364.85046
B146: (vi) GAS SUPPLIERS
B147: Distribution mains | D147: 19579.11931 | E147: 750180.5456 | F147: 1948544.701 | G147: 9957531.646 | H147: 6851402.326 | I147: 862803.5226 | J147: 0
B148: Inlet service pipes | D148: 0 | E148: 0 | F148: 0 | G148: 0 | H148: 0 | I148: 0 | J148: 0
B149: Meters (gas) | D149: 0 | E149: 0 | F149: 0 | G149: 0 | H149: 0 | I149: 0 | J149: 0
C150: Total | D150: =SUM(D147:D149) -> 19579.11931 | E150: =SUM(E147:E149) -> 750180.5456 | F150: 1948544.701 | G150: 9957531.646 | H150: 6851402.326 | I150: 862803.5226 | J150: 0
C151: TOTAL | D151: =SUM(D145,D140,D135,D130,D125,D150) -> 580866.9039 | E151: =SUM(E145,E140,E135,E130,E125,E150) -> 1199680.859 | F151: =SUM(F145,F140,F135,F130,F125,F150) -> 2418640.754 | G151: =SUM(G145,G140,G135,G130,G125,G150) -> 10410029.94 | H151: =SUM(H145,H140,H135,H130,H125,H150) -> 7309601.547 | I151: =SUM(I145,I140,I135,I130,I125,I150) -> 1326972.094 | J151: =SUM(J145,J140,J135,J130,J125,J150) -> 470334.4103
B153: E. RELATED PARTY MARGIN EXPENDITURE
D154: EXPENDITURE
D155: =CONCATENATE("$, real ",dms_DollarReal) -> $, real June 2025
D156: =dms_y1 -> 2023-24 | E156: =dms_y2 -> 2024-25 | F156: =dms_y3 -> 2025-26 | G156: =dms_y4 -> 2026-27 | H156: =dms_y5 -> 2027-28 | I156: =dms_y6 -> 2028-29 | J156: =dms_y7 -> 2029-30
B157: (i) ELECTRICITY TO GAS
B158: Distribution mains
B159: Inlet service pipes
B160: Meters (gas)
C161: Total
B162: (ii) NEW HOMES
B163: Distribution mains
B164: Inlet service pipes
B165: Meters (gas)
C166: Total
B167: (iii) NEW MEDIUM DENSITY / HIGH RISE
B168: Distribution mains
B169: Inlet service pipes
B170: Meters (gas)
C171: Total
B172: (iv) INDUSTRIAL & COMMERCIAL TARIFF
B173: Distribution mains
B174: Inlet service pipes
B175: Meters (gas)
C176: Total
B177: (v) INDUSTRIAL & COMMERCIAL CONTRACT
B178: Distribution mains
B179: Inlet service pipes
B180: Meters (gas)
C181: Total
B182: (vi) GAS SUPPLIERS
B183: Distribution mains
B184: Inlet service pipes
B185: Meters (gas)
C186: Total
C187: TOTAL
B189: F. CAPITAL CONTRIBUTIONS included in the above
D190: EXPENDITURE
D191: =CONCATENATE("$, real ",dms_DollarReal) -> $, real June 2025
D192: =dms_y1 -> 2023-24 | E192: =dms_y2 -> 2024-25 | F192: =dms_y3 -> 2025-26 | G192: =dms_y4 -> 2026-27 | H192: =dms_y5 -> 2027-28 | I192: =dms_y6 -> 2028-29 | J192: =dms_y7 -> 2029-30
B193: (i) ELECTRICITY TO GAS
B194: Distribution mains | D194: 147468.4124 | E194: 141337.8361 | F194: 160745.0334 | G194: 129615.0642 | H194: 91402.65902 | I194: 64537.04469 | J194: 32570.54273
B195: Inlet service pipes | D195: 652674.4626 | E195: 625547.3675 | F195: 711450.3388 | G195: 573675.2858 | H195: 404550.6131 | I195: 285645.2614 | J195: 144160.7823
B196: Meters (gas) | D196: 60996.74317 | E196: 58460.97875 | F196: 66488.29701 | G196: 53612.138 | H196: 37806.50045 | I196: 26694.18859 | J196: 13472.01778
C197: Total | D197: =SUM(D194:D196) -> 861139.6181 | E197: =SUM(E194:E196) -> 825346.1824 | F197: 938683.6692 | G197: 756902.4881 | H197: 533759.7726 | I197: 376876.4947 | J197: 190203.3428
B198: (ii) NEW HOMES
B199: Distribution mains | D199: 583627.0836 | E199: 486218.5424 | F199: 375107.1236 | G199: 443140.1726 | H199: 475979.1833 | I199: 430457.4389 | J199: 369030.7267
B200: Inlet service pipes | D200: 1406840.219 | E200: 1172035.28 | F200: 904199.5012 | G200: 1068193.484 | H200: 1147351.857 | I200: 1037620.921 | J200: 889551.0132
B201: Meters (gas) | D201: 125611.4434 | E201: 104646.5984 | F201: 80732.55455 | G201: 95374.95728 | H201: 102442.7091 | I201: 92645.24889 | J201: 79424.64672
C202: Total | D202: =SUM(D199:D201) -> 2116078.746 | E202: =SUM(E199:E201) -> 1762900.421 | F202: 1360039.179 | G202: 1606708.614 | H202: 1725773.749 | I202: 1560723.609 | J202: 1338006.387
B203: (iii) NEW MEDIUM DENSITY / HIGH RISE
B204: Distribution mains | D204: 69224.99784 | E204: 109624.7532 | F204: 229486.3012 | G204: 142917.5325 | H204: 74508.05343 | I204: 23195.80868 | J204: 3790.253679
B205: Inlet service pipes | D205: 50916.41416 | E205: 80631.32563 | F205: 168792.1844 | G205: 105119.0313 | H205: 54802.36635 | I205: 17061.05594 | J205: 2787.821618
B206: Meters (gas) | D206: 118913.3965 | E206: 172479.3052 | F206: 338007.7513 | G206: 224032.8363 | H206: 134007.1277 | I206: 66593.19011 | J206: 41318.07989
... 109 more rows

Sheet E6. Telemetry
B1: =INDEX(dms_Worksheet_List,MATCH(dms_Model,dms_Model_List)) -> REGULATORY REPORTING STATEMENT
B2: =dms_TradingNameFull -> Jemena Gas Networks (NSW) Ltd
B3: =dms_Header_Span -> 2023-24 to 2029-30
B4: E6. NON-NETWORK EXPENDITURE
B5: FINAL RIN TEMPLATE - FEBRUARY 2024
B7: E6.5 - TELEMETRY
B9: Please list all projects or categories here:
B10: Recurrent Capex (telemetry only)
B27: E6.5.1 - CAPEX - BY PROJECT
B28: A. DIRECT INTERNAL LABOUR EXPENDITURE
C29: EXPENDITURE
C30: =CONCATENATE("$, real ",dms_DollarReal) -> $, real June 2025
C31: =dms_y1 -> 2023-24 | D31: =dms_y2 -> 2024-25 | E31: =dms_y3 -> 2025-26 | F31: =dms_y4 -> 2026-27 | G31: =dms_y5 -> 2027-28 | H31: =dms_y6 -> 2028-29 | I31: =dms_y7 -> 2029-30
B32: =IF(ISBLANK(dms_E65_Projects_01),"",dms_E65_Projects_01) -> Recurrent Capex (telemetry only) | C32: 86774.92761 | D32: 87237.34021 | E32: 87835.82154 | F32: 88256.66822 | G32: 88652.97552 | H32: 89120.35216 | I32: 89628.51481
B33: =IF(ISBLANK(dms_E65_Projects_02),"",dms_E65_Projects_02) -> 
B34: =IF(ISBLANK(dms_E65_Projects_03),"",dms_E65_Projects_03) -> 
B35: =IF(ISBLANK(dms_E65_Projects_04),"",dms_E65_Projects_04) -> 
B36: =IF(ISBLANK(dms_E65_Projects_05),"",dms_E65_Projects_05) -> 
B37: =IF(ISBLANK(dms_E65_Projects_06),"",dms_E65_Projects_06) -> 
B38: =IF(ISBLANK(dms_E65_Projects_07),"",dms_E65_Projects_07) -> 
B39: =IF(ISBLANK(dms_E65_Projects_08),"",dms_E65_Projects_08) -> 
B40: =IF(ISBLANK(dms_E65_Projects_09),"",dms_E65_Projects_09) -> 
B41: =IF(ISBLANK(dms_E65_Projects_10),"",dms_E65_Projects_10) -> 
B42: =IF(ISBLANK(dms_E65_Projects_11),"",dms_E65_Projects_11) -> 
B43: =IF(ISBLANK(dms_E65_Projects_12),"",dms_E65_Projects_12) -> 
B44: =IF(ISBLANK(dms_E65_Projects_13),"",dms_E65_Projects_13) -> 
B45: =IF(ISBLANK(dms_E65_Projects_14),"",dms_E65_Projects_14) -> 
B46: =IF(ISBLANK(dms_E65_Projects_15),"",dms_E65_Projects_15) -> 
B47: Aggregate of other projects or categories with total expenditure of less than $500,000 | C47: 0 | D47: 0 | E47: 0 | F47: 0 | G47: 0 | H47: 0 | I47: 0
B48: Total | C48: =SUM(C32:C47) -> 86774.92761 | D48: =SUM(D32:D47) -> 87237.34021 | E48: 87835.82154 | F48: 88256.66822 | G48: 88652.97552 | H48: 89120.35216 | I48: 89628.51481
B50: B. DIRECT CONTRACTOR EXPENDITURE
B51: =IF(ISBLANK(dms_E65_Projects_01),"",dms_E65_Projects_01) -> Recurrent Capex (telemetry only) | C51: 93144.05976 | D51: 93640.41267 | E51: 94282.8215 | F51: 94734.55762 | G51: 95159.9532 | H51: 95661.63449 | I51: 96207.09542
B52: =IF(ISBLANK(dms_E65_Projects_02),"",dms_E65_Projects_02) -> 
B53: =IF(ISBLANK(dms_E65_Projects_03),"",dms_E65_Projects_03) -> 
B54: =IF(ISBLANK(dms_E65_Projects_04),"",dms_E65_Projects_04) -> 
B55: =IF(ISBLANK(dms_E65_Projects_05),"",dms_E65_Projects_05) -> 
B56: =IF(ISBLANK(dms_E65_Projects_06),"",dms_E65_Projects_06) -> 
B57: =IF(ISBLANK(dms_E65_Projects_07),"",dms_E65_Projects_07) -> 
B58: =IF(ISBLANK(dms_E65_Projects_08),"",dms_E65_Projects_08) -> 
B59: =IF(ISBLANK(dms_E65_Projects_09),"",dms_E65_Projects_09) -> 
B60: =IF(ISBLANK(dms_E65_Projects_10),"",dms_E65_Projects_10) -> 
B61: =IF(ISBLANK(dms_E65_Projects_11),"",dms_E65_Projects_11) -> 
B62: =IF(ISBLANK(dms_E65_Projects_12),"",dms_E65_Projects_12) -> 
B63: =IF(ISBLANK(dms_E65_Projects_13),"",dms_E65_Projects_13) -> 
B64: =IF(ISBLANK(dms_E65_Projects_14),"",dms_E65_Projects_14) -> 
B65: =IF(ISBLANK(dms_E65_Projects_15),"",dms_E65_Projects_15) -> 
B66: Aggregate of other projects or categories with total expenditure of less than $500,000 | C66: 0 | D66: 0 | E66: 0 | F66: 0 | G66: 0 | H66: 0 | I66: 0
B67: Total | C67: =SUM(C51:C66) -> 93144.05976 | D67: =SUM(D51:D66) -> 93640.41267 | E67: =SUM(E51:E66) -> 94282.8215 | F67: =SUM(F51:F66) -> 94734.55762 | G67: =SUM(G51:G66) -> 95159.9532 | H67: =SUM(H51:H66) -> 95661.63449 | I67: =SUM(I51:I66) -> 96207.09542
B69: C. DIRECT MATERIAL EXPENDITURE
B70: =IF(ISBLANK(dms_E65_Projects_01),"",dms_E65_Projects_01) -> Recurrent Capex (telemetry only) | C70: 0 | D70: 0 | E70: 0 | F70: 0 | G70: 0 | H70: 0 | I70: 0
B71: =IF(ISBLANK(dms_E65_Projects_02),"",dms_E65_Projects_02) -> 
B72: =IF(ISBLANK(dms_E65_Projects_03),"",dms_E65_Projects_03) -> 
B73: =IF(ISBLANK(dms_E65_Projects_04),"",dms_E65_Projects_04) -> 
B74: =IF(ISBLANK(dms_E65_Projects_05),"",dms_E65_Projects_05) -> 
B75: =IF(ISBLANK(dms_E65_Projects_06),"",dms_E65_Projects_06) -> 
B76: =IF(ISBLANK(dms_E65_Projects_07),"",dms_E65_Projects_07) -> 
B77: =IF(ISBLANK(dms_E65_Projects_08),"",dms_E65_Projects_08) -> 
B78: =IF(ISBLANK(dms_E65_Projects_09),"",dms_E65_Projects_09) -> 
B79: =IF(ISBLANK(dms_E65_Projects_10),"",dms_E65_Projects_10) -> 
B80: =IF(ISBLANK(dms_E65_Projects_11),"",dms_E65_Projects_11) -> 
B81: =IF(ISBLANK(dms_E65_Projects_12),"",dms_E65_Projects_12) -> 
B82: =IF(ISBLANK(dms_E65_Projects_13),"",dms_E65_Projects_13) -> 
B83: =IF(ISBLANK(dms_E65_Projects_14),"",dms_E65_Projects_14) -> 
B84: =IF(ISBLANK(dms_E65_Projects_15),"",dms_E65_Projects_15) -> 
B85: Aggregate of other projects or categories with total expenditure of less than $500,000 | C85: 0 | D85: 0 | E85: 0 | F85: 0 | G85: 0 | H85: 0 | I85: 0
B86: Total | C86: =SUM(C70:C85) -> 0 | D86: =SUM(D70:D85) -> 0 | E86: 0 | F86: 0 | G86: 0 | H86: 0 | I86: 0
B88: D. OTHER DIRECT EXPENDITURE
B89: =IF(ISBLANK(dms_E65_Projects_01),"",dms_E65_Projects_01) -> Recurrent Capex (telemetry only) | C89: 0 | D89: 0 | E89: 0 | F89: 0 | G89: 0 | H89: 0 | I89: 0
B90: =IF(ISBLANK(dms_E65_Projects_02),"",dms_E65_Projects_02) -> 
B91: =IF(ISBLANK(dms_E65_Projects_03),"",dms_E65_Projects_03) -> 
B92: =IF(ISBLANK(dms_E65_Projects_04),"",dms_E65_Projects_04) -> 
B93: =IF(ISBLANK(dms_E65_Projects_05),"",dms_E65_Projects_05) -> 
B94: =IF(ISBLANK(dms_E65_Projects_06),"",dms_E65_Projects_06) -> 
B95: =IF(ISBLANK(dms_E65_Projects_07),"",dms_E65_Projects_07) -> 
B96: =IF(ISBLANK(dms_E65_Projects_08),"",dms_E65_Projects_08) -> 
B97: =IF(ISBLANK(dms_E65_Projects_09),"",dms_E65_Projects_09) -> 
B98: =IF(ISBLANK(dms_E65_Projects_10),"",dms_E65_Projects_10) -> 
B99: =IF(ISBLANK(dms_E65_Projects_11),"",dms_E65_Projects_11) -> 
B100: =IF(ISBLANK(dms_E65_Projects_12),"",dms_E65_Projects_12) -> 
B101: =IF(ISBLANK(dms_E65_Projects_13),"",dms_E65_Projects_13) -> 
B102: =IF(ISBLANK(dms_E65_Projects_14),"",dms_E65_Projects_14) -> 
B103: =IF(ISBLANK(dms_E65_Projects_15),"",dms_E65_Projects_15) -> 
B104: Aggregate of other projects or categories with total expenditure of less than $500,000 | C104: 0 | D104: 0 | E104: 0 | F104: 0 | G104: 0 | H104: 0 | I104: 0
B105: Total | C105: =SUM(C89:C104) -> 0 | D105: =SUM(D89:D104) -> 0 | E105: =SUM(E89:E104) -> 0 | F105: =SUM(F89:F104) -> 0 | G105: =SUM(G89:G104) -> 0 | H105: =SUM(H89:H104) -> 0 | I105: =SUM(I89:I104) -> 0
B107: E. RELATED PARTY MARGIN EXPENDITURE
B108: Total | C108: 0 | D108: 0 | E108: 0 | F108: 0 | G108: 0 | H108: 0 | I108: 0
B109: Total | C109: =SUM(C108:C108) -> 0 | D109: 0 | E109: 0 | F109: 0 | G109: 0 | H109: 0 | I109: 0
B111: F. CAPITAL CONTRIBUTIONS included in the above
B112: =IF(ISBLANK(dms_E65_Projects_01),"",dms_E65_Projects_01) -> Recurrent Capex (telemetry only) | C112: 0 | D112: 0 | E112: 0 | F112: 0 | G112: 0 | H112: 0 | I112: 0
B113: =IF(ISBLANK(dms_E65_Projects_02),"",dms_E65_Projects_02) -> 
B114: =IF(ISBLANK(dms_E65_Projects_03),"",dms_E65_Projects_03) -> 
B115: =IF(ISBLANK(dms_E65_Projects_04),"",dms_E65_Projects_04) -> 
B116: =IF(ISBLANK(dms_E65_Projects_05),"",dms_E65_Projects_05) -> 
B117: =IF(ISBLANK(dms_E65_Projects_06),"",dms_E65_Projects_06) -> 
B118: =IF(ISBLANK(dms_E65_Projects_07),"",dms_E65_Projects_07) -> 
B119: =IF(ISBLANK(dms_E65_Projects_08),"",dms_E65_Projects_08) -> 
B120: =IF(ISBLANK(dms_E65_Projects_09),"",dms_E65_Projects_09) -> 
B121: =IF(ISBLANK(dms_E65_Projects_10),"",dms_E65_Projects_10) -> 
B122: =IF(ISBLANK(dms_E65_Projects_11),"",dms_E65_Projects_11) -> 
B123: =IF(ISBLANK(dms_E65_Projects_12),"",dms_E65_Projects_12) -> 
B124: =IF(ISBLANK(dms_E65_Projects_13),"",dms_E65_Projects_13) -> 
B125: =IF(ISBLANK(dms_E65_Projects_14),"",dms_E65_Projects_14) -> 
B126: =IF(ISBLANK(dms_E65_Projects_15),"",dms_E65_Projects_15) -> 
B127: Aggregate of other projects or categories with total expenditure of less than $500,000 | C127: 0 | D127: 0 | E127: 0 | F127: 0 | G127: 0 | H127: 0 | I127: 0
B128: Total | C128: =SUM(C112:C127) -> 0 | D128: =SUM(D112:D127) -> 0 | E128: =SUM(E112:E127) -> 0 | F128: =SUM(F112:F127) -> 0 | G128: =SUM(G112:G127) -> 0 | H128: =SUM(H112:H127) -> 0 | I128: =SUM(I112:I127) -> 0
B133: E6.5.2 - EXPENDITURE BY PURPOSE
C134: EXPENDITURE
C135: =CONCATENATE("$, real ",dms_DollarReal) -> $, real June 2025
C136: =dms_y1 -> 2023-24 | D136: =dms_y2 -> 2024-25 | E136: =dms_y3 -> 2025-26 | F136: =dms_y4 -> 2026-27 | G136: =dms_y5 -> 2027-28 | H136: =dms_y6 -> 2028-29 | I136: =dms_y7 -> 2029-30
B137: OPEX
B138: Recurrent expenditure | C138: 0 | D138: 0 | E138: 0 | F138: 0 | G138: 0 | H138: 0 | I138: 0
B139: Non-recurrent expenditure | C139: 0 | D139: 0 | E139: 0 | F139: 0 | G139: 0 | H139: 0 | I139: 0
B140: Total | C140: =SUM(C138:C139) -> 0 | D140: =SUM(D138:D139) -> 0 | E140: 0 | F140: 0 | G140: 0 | H140: 0 | I140: 0
B141: CAPEX
B142: Recurrent expenditure | C142: 179918.9874 | D142: 180877.7529 | E142: 182118.643 | F142: 182991.2258 | G142: 183812.9287 | H142: 184781.9866 | I142: 185835.6102
B143: Non-recurrent expenditure | C143: 0 | D143: 0 | E143: 0 | F143: 0 | G143: 0 | H143: 0 | I143: 0
B144: Total | C144: =SUM(C142:C143) -> 179918.9874 | D144: =SUM(D142:D143) -> 180877.7529 | E144: =SUM(E142:E143) -> 182118.643 | F144: =SUM(F142:F143) -> 182991.2258 | G144: =SUM(G142:G143) -> 183812.9287 | H144: =SUM(H142:H143) -> 184781.9866 | I144: =SUM(I142:I143) -> 185835.6102

Sheet E10. Overheads
B1: =INDEX(dms_Worksheet_List,MATCH(dms_Model,dms_Model_List)) -> REGULATORY REPORTING STATEMENT
B2: =dms_TradingNameFull -> Jemena Gas Networks (NSW) Ltd
B3: =dms_Header_Span -> 2023-24 to 2029-30
B4: E10. OVERHEADS EXPENDITURE
B5: FINAL RIN TEMPLATE - FEBRUARY 2024
B7: E10.1 - NETWORK
C8: EXPENDITURE
C9: =CONCATENATE("$, real ",dms_DollarReal) -> $, real June 2025
C10: =dms_y1 -> 2023-24 | D10: =dms_y2 -> 2024-25 | E10: =dms_y3 -> 2025-26 | F10: =dms_y4 -> 2026-27 | G10: =dms_y5 -> 2027-28 | H10: =dms_y6 -> 2028-29 | I10: =dms_y7 -> 2029-30
B11: E10.1.1 - OPEX
B12: Reference services | C12: 42119828.75 | D12: 43077205.07 | E12: 43088830.01 | F12: 42214145.31 | G12: 42894125.43 | H12: 43069174.86 | I12: 44064062.48
B13: Non-reference services | C13: 0 | D13: 0 | E13: 0 | F13: 0 | G13: 0 | H13: 0 | I13: 0
B14: Total | C14: =SUM(C12:C13) -> 42119828.75 | D14: =SUM(D12:D13) -> 43077205.07 | E14: 43088830.01 | F14: 42214145.31 | G14: 42894125.43 | H14: 43069174.86 | I14: 44064062.48
B15: E10.1.2 - CAPEX
B16: Reference services | C16: 4254116.505 | D16: 5218123.186 | E16: 5446584.013 | F16: 5990759.348 | G16: 5142075.412 | H16: 3882854.018 | I16: 3265911.058
B17: Non-reference services | C17: 0 | D17: 0 | E17: 0 | F17: 0 | G17: 0 | H17: 0 | I17: 0
B18: Total | C18: =SUM(C16:C17) -> 4254116.505 | D18: =SUM(D16:D17) -> 5218123.186 | E18: 5446584.013 | F18: 5990759.348 | G18: 5142075.412 | H18: 3882854.018 | I18: 3265911.058
B22: E10.2 - CORPORATE
C23: EXPENDITURE
C24: =CONCATENATE("$, real ",dms_DollarReal) -> $, real June 2025
C25: =dms_y1 -> 2023-24 | D25: =dms_y2 -> 2024-25 | E25: =dms_y3 -> 2025-26 | F25: =dms_y4 -> 2026-27 | G25: =dms_y5 -> 2027-28 | H25: =dms_y6 -> 2028-29 | I25: =dms_y7 -> 2029-30
B26: E10.2.1 - OPEX
B27: Reference services | C27: 66964021.03 | D27: 68486101.48 | E27: 68504583.35 | F27: 67113969.79 | G27: 68195033.13 | H27: 68473334.68 | I27: 70055052.31
B28: Non-reference services | C28: 0 | D28: 0 | E28: 0 | F28: 0 | G28: 0 | H28: 0 | I28: 0
B29: Total | C29: =SUM(C27:C28) -> 66964021.03 | D29: 68486101.48 | E29: 68504583.35 | F29: 67113969.79 | G29: 68195033.13 | H29: 68473334.68 | I29: 70055052.31
B30: E10.2.2 - CAPEX
B31: Reference services | C31: 0 | D31: 0 | E31: 0 | F31: 0 | G31: 0 | H31: 0 | I31: 0
B32: Non-reference services | C32: 0 | D32: 0 | E32: 0 | F32: 0 | G32: 0 | H32: 0 | I32: 0
B33: Total | C33: =SUM(C31:C32) -> 0 | D33: 0 | E33: 0 | F33: 0 | G33: 0 | H33: 0 | I33: 0

Sheet E12. ICT
B1: =INDEX(dms_Worksheet_List,MATCH(dms_Model,dms_Model_List)) -> REGULATORY REPORTING STATEMENT
B2: =dms_TradingNameFull -> Jemena Gas Networks (NSW) Ltd
B3: =dms_Header_Span -> 2023-24 to 2029-30
B4: E12. INFORMATION AND COMMUNICATION TECHNOLOGY
B5: FINAL RIN TEMPLATE - FEBRUARY 2024
B7: Please list all projects or categories here:
B8: Network Management Advanced Analytics
B9: JGN Chronic no-access metering
B10: Gas Retail Market Settlement - Major Application Lifecycle (CABS/ELMS)
B11: JGN Enhancements to Geospatial Systems
B12: SAP Migration (JGN portion)
B13: Recurrent Capex (excluding telemetry)
B14: Non-recurrent capex (t-2 and t-1 only)
B15: SaaS implementation costs capitalised under the old IFRS treatment
B24: E12.1 - CAPEX - BY PROJECT
B25: A. DIRECT INTERNAL LABOUR EXPENDITURE
C26: EXPENDITURE
C27: =CONCATENATE("$, real ",dms_DollarReal) -> $, real June 2025
C28: =dms_y1 -> 2023-24 | D28: =dms_y2 -> 2024-25 | E28: =dms_y3 -> 2025-26 | F28: =dms_y4 -> 2026-27 | G28: =dms_y5 -> 2027-28 | H28: =dms_y6 -> 2028-29 | I28: =dms_y7 -> 2029-30
B29: =IF(ISBLANK(dms_E12_Projects_01),"",dms_E12_Projects_01) -> Network Management Advanced Analytics | C29: 0 | D29: 0 | E29: 446779.6174 | F29: 776367.9913 | G29: 676404.1446 | H29: 226656.711 | I29: 0
B30: =IF(ISBLANK(dms_E12_Projects_02),"",dms_E12_Projects_02) -> JGN Chronic no-access metering | C30: 0 | D30: 0 | E30: 537764.9725 | F30: 1621024.677 | G30: 542767.9061 | H30: 0 | I30: 0
B31: =IF(ISBLANK(dms_E12_Projects_03),"",dms_E12_Projects_03) -> Gas Retail Market Settlement - Major Application Lifecycle (CABS/ELMS) | C31: 0 | D31: 0 | E31: 1396759.234 | F31: 957562.7739 | G31: 0 | H31: 0 | I31: 0
B32: =IF(ISBLANK(dms_E12_Projects_04),"",dms_E12_Projects_04) -> JGN Enhancements to Geospatial Systems | C32: 0 | D32: 0 | E32: 298553.9091 | F32: 151048.4663 | G32: 151726.7336 | H32: 152526.6338 | I32: 153396.3379
B33: =IF(ISBLANK(dms_E12_Projects_05),"",dms_E12_Projects_05) -> SAP Migration (JGN portion) | C33: 0 | D33: 0 | E33: 273823.3432 | F33: 0 | G33: 0 | H33: 0 | I33: 0
B34: =IF(ISBLANK(dms_E12_Projects_06),"",dms_E12_Projects_06) -> Recurrent Capex (excluding telemetry) | C34: 3342459.575 | D34: 4995140.428 | E34: 2643436.585 | F34: 2657642.637 | G34: 2671124.875 | H34: 2686764.399 | I34: 2692699.713
B35: =IF(ISBLANK(dms_E12_Projects_07),"",dms_E12_Projects_07) -> Non-recurrent capex (t-2 and t-1 only) | C35: 3896083.793 | D35: 2883654.093 | E35: 0 | F35: 0 | G35: 0 | H35: 0 | I35: 0
B36: =IF(ISBLANK(dms_E12_Projects_08),"",dms_E12_Projects_08) -> SaaS implementation costs capitalised under the old IFRS treatment | C36: 1196153.828 | D36: 1191246.369 | E36: 0 | F36: 0 | G36: 0 | H36: 0 | I36: 0
B37: =IF(ISBLANK(dms_E12_Projects_09),"",dms_E12_Projects_09) -> 
B38: =IF(ISBLANK(dms_E12_Projects_10),"",dms_E12_Projects_10) -> 
B39: =IF(ISBLANK(dms_E12_Projects_11),"",dms_E12_Projects_11) -> 
B40: =IF(ISBLANK(dms_E12_Projects_12),"",dms_E12_Projects_12) -> 
B41: =IF(ISBLANK(dms_E12_Projects_13),"",dms_E12_Projects_13) -> 
B42: =IF(ISBLANK(dms_E12_Projects_14),"",dms_E12_Projects_14) -> 
B43: =IF(ISBLANK(dms_E12_Projects_15),"",dms_E12_Projects_15) -> 
B44: Aggregate of other projects or categories with total expenditure of less than $500,000 | C44: 0 | D44: 0 | E44: 0 | F44: 0 | G44: 0 | H44: 0 | I44: 0
B45: Total | C45: =SUM(C29:C44) -> 8434697.196 | D45: =SUM(D29:D44) -> 9070040.89 | E45: 5597117.661 | F45: 6163646.546 | G45: 4042023.659 | H45: 3065947.744 | I45: 2846096.051
B47: B. DIRECT CONTRACTOR EXPENDITURE
B48: =IF(ISBLANK(dms_E12_Projects_01),"",dms_E12_Projects_01) -> Network Management Advanced Analytics | C48: 0 | D48: 0 | E48: 479572.4817 | F48: 833352.0819 | G48: 726051.0588 | H48: 243292.9283 | I48: 0
B49: =IF(ISBLANK(dms_E12_Projects_02),"",dms_E12_Projects_02) -> JGN Chronic no-access metering | C49: 0 | D49: 0 | E49: 577236.0071 | F49: 1740005.133 | G49: 582606.1476 | H49: 0 | I49: 0
B50: =IF(ISBLANK(dms_E12_Projects_03),"",dms_E12_Projects_03) -> Gas Retail Market Settlement - Major Application Lifecycle (CABS/ELMS) | C50: 0 | D50: 0 | E50: 1499278.987 | F50: 1027846.253 | G50: 0 | H50: 0 | I50: 0
B51: =IF(ISBLANK(dms_E12_Projects_04),"",dms_E12_Projects_04) -> JGN Enhancements to Geospatial Systems | C51: 0 | D51: 0 | E51: 320467.2584 | F51: 162135.1669 | G51: 162863.2179 | H51: 163721.8294 | I51: 164655.3683
B52: =IF(ISBLANK(dms_E12_Projects_05),"",dms_E12_Projects_05) -> SAP Migration (JGN portion) | C52: 0 | D52: 0 | E52: 293921.511 | F52: 0 | G52: 0 | H52: 0 | I52: 0
B53: =IF(ISBLANK(dms_E12_Projects_06),"",dms_E12_Projects_06) -> Recurrent Capex (excluding telemetry) | C53: 3587790.425 | D53: 5361775.243 | E53: 2837460.336 | F53: 2852709.088 | G53: 2867180.899 | H53: 2883968.338 | I53: 2890339.294
B54: =IF(ISBLANK(dms_E12_Projects_07),"",dms_E12_Projects_07) -> Non-recurrent capex (t-2 and t-1 only) | C54: 4182049.719 | D54: 3095309.4 | E54: 0 | F54: 0 | G54: 0 | H54: 0 | I54: 0
B55: =IF(ISBLANK(dms_E12_Projects_08),"",dms_E12_Projects_08) -> SaaS implementation costs capitalised under the old IFRS treatment | C55: 1283949.485 | D55: 1278681.828 | E55: 0 | F55: 0 | G55: 0 | H55: 0 | I55: 0
B56: =IF(ISBLANK(dms_E12_Projects_09),"",dms_E12_Projects_09) -> 
B57: =IF(ISBLANK(dms_E12_Projects_10),"",dms_E12_Projects_10) -> 
B58: =IF(ISBLANK(dms_E12_Projects_11),"",dms_E12_Projects_11) -> 
B59: =IF(ISBLANK(dms_E12_Projects_12),"",dms_E12_Projects_12) -> 
B60: =IF(ISBLANK(dms_E12_Projects_13),"",dms_E12_Projects_13) -> 
B61: =IF(ISBLANK(dms_E12_Projects_14),"",dms_E12_Projects_14) -> 
B62: =IF(ISBLANK(dms_E12_Projects_15),"",dms_E12_Projects_15) -> 
B63: Aggregate of other projects or categories with total expenditure of less than $500,000 | C63: 0 | D63: 0 | E63: 0 | F63: 0 | G63: 0 | H63: 0 | I63: 0
B64: Total | C64: =SUM(C48:C63) -> 9053789.629 | D64: =SUM(D48:D63) -> 9735766.471 | E64: =SUM(E48:E63) -> 6007936.581 | F64: =SUM(F48:F63) -> 6616047.723 | G64: =SUM(G48:G63) -> 4338701.324 | H64: =SUM(H48:H63) -> 3290983.096 | I64: =SUM(I48:I63) -> 3054994.662
B66: C. DIRECT MATERIAL EXPENDITURE
B67: =IF(ISBLANK(dms_E12_Projects_01),"",dms_E12_Projects_01) -> Network Management Advanced Analytics | C67: 0 | D67: 0 | E67: 0 | F67: 0 | G67: 0 | H67: 0 | I67: 0
B68: =IF(ISBLANK(dms_E12_Projects_02),"",dms_E12_Projects_02) -> JGN Chronic no-access metering | C68: 0 | D68: 0 | E68: 0 | F68: 0 | G68: 0 | H68: 0 | I68: 0
B69: =IF(ISBLANK(dms_E12_Projects_03),"",dms_E12_Projects_03) -> Gas Retail Market Settlement - Major Application Lifecycle (CABS/ELMS) | C69: 0 | D69: 0 | E69: 0 | F69: 0 | G69: 0 | H69: 0 | I69: 0
B70: =IF(ISBLANK(dms_E12_Projects_04),"",dms_E12_Projects_04) -> JGN Enhancements to Geospatial Systems | C70: 0 | D70: 0 | E70: 0 | F70: 0 | G70: 0 | H70: 0 | I70: 0
B71: =IF(ISBLANK(dms_E12_Projects_05),"",dms_E12_Projects_05) -> SAP Migration (JGN portion) | C71: 0 | D71: 0 | E71: 0 | F71: 0 | G71: 0 | H71: 0 | I71: 0
B72: =IF(ISBLANK(dms_E12_Projects_06),"",dms_E12_Projects_06) -> Recurrent Capex (excluding telemetry) | C72: 0 | D72: 0 | E72: 0 | F72: 0 | G72: 0 | H72: 0 | I72: 0
B73: =IF(ISBLANK(dms_E12_Projects_07),"",dms_E12_Projects_07) -> Non-recurrent capex (t-2 and t-1 only) | C73: 0 | D73: 0 | E73: 0 | F73: 0 | G73: 0 | H73: 0 | I73: 0
B74: =IF(ISBLANK(dms_E12_Projects_08),"",dms_E12_Projects_08) -> SaaS implementation costs capitalised under the old IFRS treatment | C74: 0 | D74: 0 | E74: 0 | F74: 0 | G74: 0 | H74: 0 | I74: 0
B75: =IF(ISBLANK(dms_E12_Projects_09),"",dms_E12_Projects_09) -> 
B76: =IF(ISBLANK(dms_E12_Projects_10),"",dms_E12_Projects_10) -> 
B77: =IF(ISBLANK(dms_E12_Projects_11),"",dms_E12_Projects_11) -> 
B78: =IF(ISBLANK(dms_E12_Projects_12),"",dms_E12_Projects_12) -> 
B79: =IF(ISBLANK(dms_E12_Projects_13),"",dms_E12_Projects_13) -> 
B80: =IF(ISBLANK(dms_E12_Projects_14),"",dms_E12_Projects_14) -> 
B81: =IF(ISBLANK(dms_E12_Projects_15),"",dms_E12_Projects_15) -> 
B82: Aggregate of other projects or categories with total expenditure of less than $500,000 | C82: 0 | D82: 0 | E82: 0 | F82: 0 | G82: 0 | H82: 0 | I82: 0
B83: Total | C83: =SUM(C67:C82) -> 0 | D83: =SUM(D67:D82) -> 0 | E83: =SUM(E67:E82) -> 0 | F83: =SUM(F67:F82) -> 0 | G83: =SUM(G67:G82) -> 0 | H83: =SUM(H67:H82) -> 0 | I83: =SUM(I67:I82) -> 0
B85: D. OTHER DIRECT EXPENDITURE
B86: =IF(ISBLANK(dms_E12_Projects_01),"",dms_E12_Projects_01) -> Network Management Advanced Analytics | C86: 0 | D86: 0 | E86: 0 | F86: 0 | G86: 0 | H86: 0 | I86: 0
B87: =IF(ISBLANK(dms_E12_Projects_02),"",dms_E12_Projects_02) -> JGN Chronic no-access metering | C87: 0 | D87: 0 | E87: 0 | F87: 0 | G87: 0 | H87: 0 | I87: 0
B88: =IF(ISBLANK(dms_E12_Projects_03),"",dms_E12_Projects_03) -> Gas Retail Market Settlement - Major Application Lifecycle (CABS/ELMS) | C88: 0 | D88: 0 | E88: 0 | F88: 0 | G88: 0 | H88: 0 | I88: 0
B89: =IF(ISBLANK(dms_E12_Projects_04),"",dms_E12_Projects_04) -> JGN Enhancements to Geospatial Systems | C89: 0 | D89: 0 | E89: 0 | F89: 0 | G89: 0 | H89: 0 | I89: 0
B90: =IF(ISBLANK(dms_E12_Projects_05),"",dms_E12_Projects_05) -> SAP Migration (JGN portion) | C90: 0 | D90: 0 | E90: 0 | F90: 0 | G90: 0 | H90: 0 | I90: 0
B91: =IF(ISBLANK(dms_E12_Projects_06),"",dms_E12_Projects_06) -> Recurrent Capex (excluding telemetry) | C91: 0 | D91: 0 | E91: 0 | F91: 0 | G91: 0 | H91: 0 | I91: 0
B92: =IF(ISBLANK(dms_E12_Projects_07),"",dms_E12_Projects_07) -> Non-recurrent capex (t-2 and t-1 only) | C92: 0 | D92: 0 | E92: 0 | F92: 0 | G92: 0 | H92: 0 | I92: 0
B93: =IF(ISBLANK(dms_E12_Projects_08),"",dms_E12_Projects_08) -> SaaS implementation costs capitalised under the old IFRS treatment | C93: 0 | D93: 0 | E93: 0 | F93: 0 | G93: 0 | H93: 0 | I93: 0
B94: =IF(ISBLANK(dms_E12_Projects_09),"",dms_E12_Projects_09) -> 
B95: =IF(ISBLANK(dms_E12_Projects_10),"",dms_E12_Projects_10) -> 
B96: =IF(ISBLANK(dms_E12_Projects_11),"",dms_E12_Projects_11) -> 
B97: =IF(ISBLANK(dms_E12_Projects_12),"",dms_E12_Projects_12) -> 
B98: =IF(ISBLANK(dms_E12_Projects_13),"",dms_E12_Projects_13) -> 
B99: =IF(ISBLANK(dms_E12_Projects_14),"",dms_E12_Projects_14) -> 
B100: =IF(ISBLANK(dms_E12_Projects_15),"",dms_E12_Projects_15) -> 
B101: Aggregate of other projects or categories with total expenditure of less than $500,000 | C101: 0 | D101: 0 | E101: 0 | F101: 0 | G101: 0 | H101: 0 | I101: 0
B102: Total | C102: =SUM(C86:C101) -> 0 | D102: =SUM(D86:D101) -> 0 | E102: =SUM(E86:E101) -> 0 | F102: =SUM(F86:F101) -> 0 | G102: =SUM(G86:G101) -> 0 | H102: =SUM(H86:H101) -> 0 | I102: =SUM(I86:I101) -> 0
B104: E. RELATED PARTY MARGIN EXPENDITURE
B105: Total | C105: 0 | D105: 0 | E105: 0 | F105: 0 | G105: 0 | H105: 0 | I105: 0
B106: Total | C106: =SUM(C105:C105) -> 0 | D106: 0 | E106: 0 | F106: 0 | G106: 0 | H106: 0 | I106: 0
B108: F. CAPITAL CONTRIBUTIONS included in the above
B109: =IF(ISBLANK(dms_E12_Projects_01),"",dms_E12_Projects_01) -> Network Management Advanced Analytics | C109: 0 | D109: 0 | E109: 0 | F109: 0 | G109: 0 | H109: 0 | I109: 0
B110: =IF(ISBLANK(dms_E12_Projects_02),"",dms_E12_Projects_02) -> JGN Chronic no-access metering | C110: 0 | D110: 0 | E110: 0 | F110: 0 | G110: 0 | H110: 0 | I110: 0
B111: =IF(ISBLANK(dms_E12_Projects_03),"",dms_E12_Projects_03) -> Gas Retail Market Settlement - Major Application Lifecycle (CABS/ELMS) | C111: 0 | D111: 0 | E111: 0 | F111: 0 | G111: 0 | H111: 0 | I111: 0
B112: =IF(ISBLANK(dms_E12_Projects_04),"",dms_E12_Projects_04) -> JGN Enhancements to Geospatial Systems | C112: 0 | D112: 0 | E112: 0 | F112: 0 | G112: 0 | H112: 0 | I112: 0
B113: =IF(ISBLANK(dms_E12_Projects_05),"",dms_E12_Projects_05) -> SAP Migration (JGN portion) | C113: 0 | D113: 0 | E113: 0 | F113: 0 | G113: 0 | H113: 0 | I113: 0
B114: =IF(ISBLANK(dms_E12_Projects_06),"",dms_E12_Projects_06) -> Recurrent Capex (excluding telemetry) | C114: 0 | D114: 0 | E114: 0 | F114: 0 | G114: 0 | H114: 0 | I114: 0
B115: =IF(ISBLANK(dms_E12_Projects_07),"",dms_E12_Projects_07) -> Non-recurrent capex (t-2 and t-1 only) | C115: 0 | D115: 0 | E115: 0 | F115: 0 | G115: 0 | H115: 0 | I115: 0
B116: =IF(ISBLANK(dms_E12_Projects_08),"",dms_E12_Projects_08) -> SaaS implementation costs capitalised under the old IFRS treatment | C116: 0 | D116: 0 | E116: 0 | F116: 0 | G116: 0 | H116: 0 | I116: 0
B117: =IF(ISBLANK(dms_E12_Projects_09),"",dms_E12_Projects_09) -> 
B118: =IF(ISBLANK(dms_E12_Projects_10),"",dms_E12_Projects_10) -> 
B119: =IF(ISBLANK(dms_E12_Projects_11),"",dms_E12_Projects_11) -> 
B120: =IF(ISBLANK(dms_E12_Projects_12),"",dms_E12_Projects_12) -> 
B121: =IF(ISBLANK(dms_E12_Projects_13),"",dms_E12_Projects_13) -> 
B122: =IF(ISBLANK(dms_E12_Projects_14),"",dms_E12_Projects_14) -> 
B123: =IF(ISBLANK(dms_E12_Projects_15),"",dms_E12_Projects_15) -> 
B124: Aggregate of other projects or categories with total expenditure of less than $500,000 | C124: 0 | D124: 0 | E124: 0 | F124: 0 | G124: 0 | H124: 0 | I124: 0
B125: Total | C125: =SUM(C109:C124) -> 0 | D125: =SUM(D109:D124) -> 0 | E125: =SUM(E109:E124) -> 0 | F125: =SUM(F109:F124) -> 0 | G125: =SUM(G109:G124) -> 0 | H125: =SUM(H109:H124) -> 0 | I125: =SUM(I109:I124) -> 0
B130: E12.2 - EXPENDITURE BY PURPOSE
C131: EXPENDITURE
C132: =CONCATENATE("$, real ",dms_DollarReal) -> $, real June 2025
C133: =dms_y1 -> 2023-24 | D133: =dms_y2 -> 2024-25 | E133: =dms_y3 -> 2025-26 | F133: =dms_y4 -> 2026-27 | G133: =dms_y5 -> 2027-28 | H133: =dms_y6 -> 2028-29 | I133: =dms_y7 -> 2029-30
B134: OPEX
B135: Recurrent expenditure | C135: 36908757.98 | D135: 36908757.98 | E135: 37977062.82 | F135: 39651136.86 | G135: 41276524.46 | H135: 41587347.16 | I135: 42110135.13
B136: Non-recurrent expenditure | C136: 4065110.789 | D136: 4065110.789 | E136: 6523618.078 | F136: 6553972.522 | G136: 6576196.75 | H136: 6600179.517 | I136: 6619021.358
B137: Total | C137: =SUM(C135:C136) -> 40973868.76 | D137: =SUM(D135:D136) -> 40973868.76 | E137: 44500680.89 | F137: 46205109.38 | G137: 47852721.21 | H137: 48187526.68 | I137: 48729156.48
B138: CAPEX
B139: Recurrent expenditure | C139: 9410353.313 | D139: 12826843.87 | E139: 5480896.922 | F139: 5510351.725 | G139: 5538305.774 | H139: 5570732.737 | I139: 5583039.007
B140: Non-recurrent expenditure | C140: 8078133.512 | D140: 5978963.493 | E140: 6124157.321 | F140: 7269342.544 | G140: 2842419.209 | H140: 786198.1025 | I140: 318051.7062
B141: Total | C141: =SUM(C139:C140) -> 17488486.82 | D141: =SUM(D139:D140) -> 18805807.36 | E141: 11605054.24 | F141: 12779694.27 | G141: 8380724.983 | H141: 6356930.84 | I141: 5901090.713

Sheet E13. Other capex
B1: =INDEX(dms_Worksheet_List,MATCH(dms_Model,dms_Model_List)) -> REGULATORY REPORTING STATEMENT
B2: =dms_TradingNameFull -> Jemena Gas Networks (NSW) Ltd
B3: =dms_Header_Span -> 2023-24 to 2029-30
B4: E13. OTHER CAPITAL EXPENDITURE
B5: FINAL RIN TEMPLATE - FEBRUARY 2024
B7: Please list all projects or categories here:
B8: ALBV replacement projects
B9: Allocations - Facilities projects
B10: Allocations - Networks projects
B11: Facility upgrade projects
B12: Mains relocation projects
B13: Networks upgrade projects
B14: Non Network
B15: Pigging facilities projects
B16: Pipes upgrade projects
B17: Pipes washaway projects
B18: Primary mains integrity projects - SPM
B24: E13.1 - CAPEX - BY PROJECT
C25: EXPENDITURE
C26: =CONCATENATE("$, real ",dms_DollarReal) -> $, real June 2025
C27: =dms_y1 -> 2023-24 | D27: =dms_y2 -> 2024-25 | E27: =dms_y3 -> 2025-26 | F27: =dms_y4 -> 2026-27 | G27: =dms_y5 -> 2027-28 | H27: =dms_y6 -> 2028-29 | I27: =dms_y7 -> 2029-30
B28: A. DIRECT INTERNAL LABOUR EXPENDITURE
B29: =IF(ISBLANK(dms_E13_Projects_01),"",dms_E13_Projects_01) -> ALBV replacement projects | C29: 102562.4641 | D29: 83025.1897 | E29: 64082.42774 | F29: 156704.2738 | G29: 197580.8941 | H29: 60132.65101 | I29: 0
B30: =IF(ISBLANK(dms_E13_Projects_02),"",dms_E13_Projects_02) -> Allocations - Facilities projects | C30: 55853.65899 | D30: 59839.04009 | E30: 16785.27799 | F30: 16819.37264 | G30: 16851.47924 | H30: 16889.34348 | I30: 16930.51198
B31: =IF(ISBLANK(dms_E13_Projects_03),"",dms_E13_Projects_03) -> Allocations - Networks projects | C31: 1517.871369 | D31: 1521.559214 | E31: 1526.332237 | F31: 1529.688584 | G31: 1532.849224 | H31: 1536.576657 | I31: 1540.629369
B32: =IF(ISBLANK(dms_E13_Projects_04),"",dms_E13_Projects_04) -> Facility upgrade projects | C32: 318909.0687 | D32: 917465.7782 | E32: 872736.6675 | F32: 647475.1309 | G32: 450506.5774 | H32: 347176.1176 | I32: 386915.2238
B33: =IF(ISBLANK(dms_E13_Projects_05),"",dms_E13_Projects_05) -> Mains relocation projects | C33: 5505.528955 | D33: 25001.33538 | E33: 4175.49084 | F33: 4181.122331 | G33: 4186.425452 | H33: 4192.679575 | I33: 4199.47947
B34: =IF(ISBLANK(dms_E13_Projects_06),"",dms_E13_Projects_06) -> Networks upgrade projects | C34: 182439.786 | D34: 385979.2228 | E34: 160434.828 | F34: 160722.4472 | G34: 160993.2955 | H34: 161312.7147 | I34: 161660.0083
B35: =IF(ISBLANK(dms_E13_Projects_07),"",dms_E13_Projects_07) -> Non Network | C35: 514912.9133 | D35: 571329.1272 | E35: 152701.66 | F35: 203239.1705 | G35: 203431.3473 | H35: 97072.5208 | I35: 97189.97445
B36: =IF(ISBLANK(dms_E13_Projects_08),"",dms_E13_Projects_08) -> Pigging facilities projects | C36: 14566.95755 | D36: 69471.59006 | E36: 339509.6329 | F36: 278547.606 | G36: 157530.5804 | H36: 19669.6166 | I36: 0
B37: =IF(ISBLANK(dms_E13_Projects_09),"",dms_E13_Projects_09) -> Pipes upgrade projects | C37: 13525.80239 | D37: 49979.73625 | E37: 142650.2803 | F37: 64808.85435 | G37: 26126.36049 | H37: 0 | I37: 0
B38: =IF(ISBLANK(dms_E13_Projects_10),"",dms_E13_Projects_10) -> Pipes washaway projects | C38: 23575.30214 | D38: 54429.71478 | E38: 0 | F38: 0 | G38: 0 | H38: 0 | I38: 0
B39: =IF(ISBLANK(dms_E13_Projects_11),"",dms_E13_Projects_11) -> Primary mains integrity projects - SPM | C39: 111740.2125 | D39: 146520.2488 | E39: 177609.9382 | F39: 85192.28447 | G39: 43482.03451 | H39: 91315.66461 | I39: 6212.119385
B40: =IF(ISBLANK(dms_E13_Projects_12),"",dms_E13_Projects_12) -> 
B41: =IF(ISBLANK(dms_E13_Projects_13),"",dms_E13_Projects_13) -> 
B42: =IF(ISBLANK(dms_E13_Projects_14),"",dms_E13_Projects_14) -> 
B43: =IF(ISBLANK(dms_E13_Projects_15),"",dms_E13_Projects_15) -> 
B44: Aggregate of other projects or categories with total expenditure of less than $500,000
B45: Total | C45: =SUM(C29:C44) -> 1345109.566 | D45: =SUM(D29:D44) -> 2364562.543 | E45: 1932212.536 | F45: 1619219.951 | G45: 1262221.844 | H45: 799297.8851 | I45: 674647.9468
B47: B. DIRECT CONTRACTOR EXPENDITURE
B48: =IF(ISBLANK(dms_E13_Projects_01),"",dms_E13_Projects_01) -> ALBV replacement projects
B49: =IF(ISBLANK(dms_E13_Projects_02),"",dms_E13_Projects_02) -> Allocations - Facilities projects
B50: =IF(ISBLANK(dms_E13_Projects_03),"",dms_E13_Projects_03) -> Allocations - Networks projects
B51: =IF(ISBLANK(dms_E13_Projects_04),"",dms_E13_Projects_04) -> Facility upgrade projects
B52: =IF(ISBLANK(dms_E13_Projects_05),"",dms_E13_Projects_05) -> Mains relocation projects
B53: =IF(ISBLANK(dms_E13_Projects_06),"",dms_E13_Projects_06) -> Networks upgrade projects
B54: =IF(ISBLANK(dms_E13_Projects_07),"",dms_E13_Projects_07) -> Non Network
B55: =IF(ISBLANK(dms_E13_Projects_08),"",dms_E13_Projects_08) -> Pigging facilities projects
B56: =IF(ISBLANK(dms_E13_Projects_09),"",dms_E13_Projects_09) -> Pipes upgrade projects
B57: =IF(ISBLANK(dms_E13_Projects_10),"",dms_E13_Projects_10) -> Pipes washaway projects
B58: =IF(ISBLANK(dms_E13_Projects_11),"",dms_E13_Projects_11) -> Primary mains integrity projects - SPM
B59: =IF(ISBLANK(dms_E13_Projects_12),"",dms_E13_Projects_12) -> 
B60: =IF(ISBLANK(dms_E13_Projects_13),"",dms_E13_Projects_13) -> 
B61: =IF(ISBLANK(dms_E13_Projects_14),"",dms_E13_Projects_14) -> 
B62: =IF(ISBLANK(dms_E13_Projects_15),"",dms_E13_Projects_15) -> 
B63: Aggregate of other projects or categories with total expenditure of less than $500,000
B64: Total
B66: C. DIRECT MATERIAL EXPENDITURE
B67: =IF(ISBLANK(dms_E13_Projects_01),"",dms_E13_Projects_01) -> ALBV replacement projects | C67: 2236.585893 | D67: 35360.81686 | E67: 0 | F67: 0 | G67: 0 | H67: 0 | I67: 0
B68: =IF(ISBLANK(dms_E13_Projects_02),"",dms_E13_Projects_02) -> Allocations - Facilities projects | C68: 22469.3479 | D68: 34646.63405 | E68: 22584.99258 | F68: 22630.86774 | G68: 22674.06794 | H68: 22725.01518 | I68: 22780.40838
B69: =IF(ISBLANK(dms_E13_Projects_03),"",dms_E13_Projects_03) -> Allocations - Networks projects | C69: 0 | D69: 0 | E69: 0 | F69: 0 | G69: 0 | H69: 0 | I69: 0
B70: =IF(ISBLANK(dms_E13_Projects_04),"",dms_E13_Projects_04) -> Facility upgrade projects | C70: 4228.928329 | D70: 88980.80955 | E70: 0 | F70: 0 | G70: 0 | H70: 0 | I70: 0
B71: =IF(ISBLANK(dms_E13_Projects_05),"",dms_E13_Projects_05) -> Mains relocation projects | C71: 0 | D71: 0 | E71: 0 | F71: 0 | G71: 0 | H71: 0 | I71: 0
B72: =IF(ISBLANK(dms_E13_Projects_06),"",dms_E13_Projects_06) -> Networks upgrade projects | C72: 0 | D72: 0 | E72: 0 | F72: 0 | G72: 0 | H72: 0 | I72: 0
B73: =IF(ISBLANK(dms_E13_Projects_07),"",dms_E13_Projects_07) -> Non Network | C73: 7447506.647 | D73: 8326418.478 | E73: 4112184.938 | F73: 5551632.479 | G73: 9955672.808 | H73: 8195032.977 | I73: 7721068.689
B74: =IF(ISBLANK(dms_E13_Projects_08),"",dms_E13_Projects_08) -> Pigging facilities projects | C74: 0 | D74: 0 | E74: 46232.38864 | F74: 65492.36917 | G74: 666131.4889 | H74: 0 | I74: 0
B75: =IF(ISBLANK(dms_E13_Projects_09),"",dms_E13_Projects_09) -> Pipes upgrade projects | C75: 0 | D75: 0 | E75: 0 | F75: 0 | G75: 0 | H75: 0 | I75: 0
B76: =IF(ISBLANK(dms_E13_Projects_10),"",dms_E13_Projects_10) -> Pipes washaway projects | C76: 0 | D76: 0 | E76: 0 | F76: 0 | G76: 0 | H76: 0 | I76: 0
B77: =IF(ISBLANK(dms_E13_Projects_11),"",dms_E13_Projects_11) -> Primary mains integrity projects - SPM | C77: 0 | D77: 0 | E77: 0 | F77: 0 | G77: 0 | H77: 0 | I77: 0
B78: =IF(ISBLANK(dms_E13_Projects_12),"",dms_E13_Projects_12) -> 
B79: =IF(ISBLANK(dms_E13_Projects_13),"",dms_E13_Projects_13) -> 
B80: =IF(ISBLANK(dms_E13_Projects_14),"",dms_E13_Projects_14) -> 
B81: =IF(ISBLANK(dms_E13_Projects_15),"",dms_E13_Projects_15) -> 
B82: Aggregate of other projects or categories with total expenditure of less than $500,000
B83: Total | C83: =SUM(C67:C82) -> 7476441.509 | D83: =SUM(D67:D82) -> 8485406.739 | E83: 4181002.319 | F83: 5639755.716 | G83: 10644478.36 | H83: 8217757.993 | I83: 7743849.097
B85: D. OTHER DIRECT EXPENDITURE
B86: =IF(ISBLANK(dms_E13_Projects_01),"",dms_E13_Projects_01) -> ALBV replacement projects | C86: 0 | D86: 0 | E86: 0 | F86: 0 | G86: 0 | H86: 15104.29682 | I86: 0
B87: =IF(ISBLANK(dms_E13_Projects_02),"",dms_E13_Projects_02) -> Allocations - Facilities projects | C87: 0 | D87: 0 | E87: 0 | F87: 0 | G87: 0 | H87: 0 | I87: 0
B88: =IF(ISBLANK(dms_E13_Projects_03),"",dms_E13_Projects_03) -> Allocations - Networks projects | C88: 0 | D88: 0 | E88: 0 | F88: 0 | G88: 0 | H88: 0 | I88: 0
B89: =IF(ISBLANK(dms_E13_Projects_04),"",dms_E13_Projects_04) -> Facility upgrade projects | C89: 1514.970901 | D89: 12112.4528 | E89: 0 | F89: 0 | G89: 0 | H89: 0 | I89: 0
B90: =IF(ISBLANK(dms_E13_Projects_05),"",dms_E13_Projects_05) -> Mains relocation projects | C90: 0 | D90: 0 | E90: 0 | F90: 0 | G90: 0 | H90: 0 | I90: 0
B91: =IF(ISBLANK(dms_E13_Projects_06),"",dms_E13_Projects_06) -> Networks upgrade projects | C91: 27294.51846 | D91: 108017.6714 | E91: 16093.65359 | F91: 16122.50545 | G91: 16149.67498 | H91: 16181.71679 | I91: 16216.55475
B92: =IF(ISBLANK(dms_E13_Projects_07),"",dms_E13_Projects_07) -> Non Network | C92: 0 | D92: 0 | E92: 0 | F92: 0 | G92: 0 | H92: 0 | I92: 0
B93: =IF(ISBLANK(dms_E13_Projects_08),"",dms_E13_Projects_08) -> Pigging facilities projects | C93: 54.44467641 | D93: 0 | E93: 0 | F93: 0 | G93: 0 | H93: 0 | I93: 0
B94: =IF(ISBLANK(dms_E13_Projects_09),"",dms_E13_Projects_09) -> Pipes upgrade projects | C94: 1356.809995 | D94: 154.5802365 | E94: 0 | F94: 0 | G94: 0 | H94: 0 | I94: 0
B95: =IF(ISBLANK(dms_E13_Projects_10),"",dms_E13_Projects_10) -> Pipes washaway projects | C95: 2364.902625 | D95: 5459.992605 | E95: 0 | F95: 0 | G95: 0 | H95: 0 | I95: 0
B96: =IF(ISBLANK(dms_E13_Projects_11),"",dms_E13_Projects_11) -> Primary mains integrity projects - SPM | C96: 245303.0896 | D96: 442352.9084 | E96: 1751662.866 | F96: 567372.9466 | G96: 0 | H96: 0 | I96: 0
B97: =IF(ISBLANK(dms_E13_Projects_12),"",dms_E13_Projects_12) -> 
B98: =IF(ISBLANK(dms_E13_Projects_13),"",dms_E13_Projects_13) -> 
B99: =IF(ISBLANK(dms_E13_Projects_14),"",dms_E13_Projects_14) -> 
B100: =IF(ISBLANK(dms_E13_Projects_15),"",dms_E13_Projects_15) -> 
B101: Aggregate of other projects or categories with total expenditure of less than $500,000
B102: Total | C102: =SUM(C86:C101) -> 277888.7362 | D102: =SUM(D86:D101) -> 568097.6054 | E102: 1767756.519 | F102: 583495.4521 | G102: 16149.67498 | H102: 31286.01361 | I102: 16216.55475
B104: E. RELATED PARTY MARGIN EXPENDITURE
B105: Total
B106: Total | C106: =SUM(C105) -> 0 | D106: =SUM(D105) -> 0 | E106: 0 | F106: 0 | G106: 0 | H106: 0 | I106: 0
B108: F. CAPITAL CONTRIBUTIONS included in the above
B109: =IF(ISBLANK(dms_E13_Projects_01),"",dms_E13_Projects_01) -> ALBV replacement projects | C109: 0 | D109: 0 | E109: 0 | F109: 0 | G109: 0 | H109: 0 | I109: 0
B110: =IF(ISBLANK(dms_E13_Projects_02),"",dms_E13_Projects_02) -> Allocations - Facilities projects | C110: 0 | D110: 0 | E110: 0 | F110: 0 | G110: 0 | H110: 0 | I110: 0
B111: =IF(ISBLANK(dms_E13_Projects_03),"",dms_E13_Projects_03) -> Allocations - Networks projects | C111: 0 | D111: 0 | E111: 0 | F111: 0 | G111: 0 | H111: 0 | I111: 0
B112: =IF(ISBLANK(dms_E13_Projects_04),"",dms_E13_Projects_04) -> Facility upgrade projects | C112: 0 | D112: 0 | E112: 0 | F112: 0 | G112: 0 | H112: 0 | I112: 0
B113: =IF(ISBLANK(dms_E13_Projects_05),"",dms_E13_Projects_05) -> Mains relocation projects | C113: 0 | D113: 0 | E113: 0 | F113: 0 | G113: 0 | H113: 0 | I113: 0
B114: =IF(ISBLANK(dms_E13_Projects_06),"",dms_E13_Projects_06) -> Networks upgrade projects | C114: 0 | D114: 0 | E114: 0 | F114: 0 | G114: 0 | H114: 0 | I114: 0
B115: =IF(ISBLANK(dms_E13_Projects_07),"",dms_E13_Projects_07) -> Non Network | C115: 0 | D115: 0 | E115: 0 | F115: 0 | G115: 0 | H115: 0 | I115: 0
B116: =IF(ISBLANK(dms_E13_Projects_08),"",dms_E13_Projects_08) -> Pigging facilities projects | C116: 0 | D116: 0 | E116: 0 | F116: 0 | G116: 0 | H116: 0 | I116: 0
B117: =IF(ISBLANK(dms_E13_Projects_09),"",dms_E13_Projects_09) -> Pipes upgrade projects | C117: 0 | D117: 0 | E117: 0 | F117: 0 | G117: 0 | H117: 0 | I117: 0
B118: =IF(ISBLANK(dms_E13_Projects_10),"",dms_E13_Projects_10) -> Pipes washaway projects | C118: 0 | D118: 0 | E118: 0 | F118: 0 | G118: 0 | H118: 0 | I118: 0
B119: =IF(ISBLANK(dms_E13_Projects_11),"",dms_E13_Projects_11) -> Primary mains integrity projects - SPM | C119: 0 | D119: 0 | E119: 0 | F119: 0 | G119: 0 | H119: 0 | I119: 0
B120: =IF(ISBLANK(dms_E13_Projects_12),"",dms_E13_Projects_12) -> 
B121: =IF(ISBLANK(dms_E13_Projects_13),"",dms_E13_Projects_13) -> 
B122: =IF(ISBLANK(dms_E13_Projects_14),"",dms_E13_Projects_14) -> 
B123: =IF(ISBLANK(dms_E13_Projects_15),"",dms_E13_Projects_15) -> 
B124: Aggregate of other projects or categories with total expenditure of less than $500,000
B125: Total | C125: =SUM(C109:C124) -> 0 | D125: =SUM(D109:D124) -> 0 | E125: 0 | F125: 0 | G125: 0 | H125: 0 | I125: 0

Sheet E17. Step changes
B1: =INDEX(dms_Worksheet_List,MATCH(dms_Model,dms_Model_List)) -> REGULATORY REPORTING STATEMENT
B2: =dms_TradingNameFull -> Jemena Gas Networks (NSW) Ltd
B3: =dms_Header_Span -> 2023-24 to 2029-30
B4: E17. STEP CHANGES
B5: FINAL RIN TEMPLATE - FEBRUARY 2024
B7: E17.1 - STEP CHANGES FOR REFERENCE SERVICES
B8: E17.1.1 - FORECAST OPEX
D9: EXPENDITURE
D10: =CONCATENATE("$, real ",dms_DollarReal) -> $, real June 2025
B11: Step change | C11: Description | D11: =dms_y1 -> 2023-24 | E11: =dms_y2 -> 2024-25 | F11: =dms_y3 -> 2025-26 | G11: =dms_y4 -> 2026-27 | H11: =dms_y5 -> 2027-28 | I11: =dms_y6 -> 2028-29 | J11: =dms_y7 -> 2029-30
B12: Support for customers experiencing vulnerability | C12: Refer to attachment 6.2 | D12: 0 | E12: 0 | F12: 532511.5 | G12: 532511.5 | H12: 532511.5 | I12: 532511.5 | J12: 532511.5
B13: ICT services for new recurrent projects | C13: Refer to attachment 6.2 | D13: 0 | E13: 0 | F13: 755072.8008 | G13: 2255952.64 | H13: 3754534.837 | I13: 3928518.395 | J13: 4343799.95
B14: Emissions reduction – Climate change reporting | C14: Refer to attachment 6.2 | D14: 0 | E14: 0 | F14: 780498.0412 | G14: 707146.9015 | H14: 707146.9015 | I14: 707146.9015 | J14: 707146.9015
B15: Emissions measurement – Picarro leak detection services | C15: Refer to attachment 6.2 | D15: 0 | E15: 0 | F15: 4171421.939 | G15: 4142605.419 | H15: 4163043.927 | I15: 4163043.927 | J15: 4163043.927
B16: Pipeline Integrity Management Program | C16: Refer to attachment 6.2 | D16: 0 | E16: 0 | F16: 9304362.806 | G16: 3144759.401 | H16: 4075518.52 | I16: 4033489.334 | J16: 7575952.204
B22: Total | D22: =SUM(D12:D21) -> 0 | E22: 0 | F22: 15543867.09 | G22: 10782975.86 | H22: 13232755.69 | I22: 13364710.06 | J22: 17322454.48
B24: E17.1.2 - FORECAST CAPEX
D25: EXPENDITURE
D26: =CONCATENATE("$, real ", dms_DollarReal) -> $, real June 2025
B27: Step change | C27: Description | D27: =dms_y1 -> 2023-24 | E27: =dms_y2 -> 2024-25 | F27: =dms_y3 -> 2025-26 | G27: =dms_y4 -> 2026-27 | H27: =dms_y5 -> 2027-28 | I27: =dms_y6 -> 2028-29 | J27: =dms_y7 -> 2029-30
B28: None
B38: Total | D38: =SUM(D28:D37) -> 0 | E38: 0 | F38: 0 | G38: 0 | H38: 0 | I38: 0 | J38: 0
B42: E17.2 - CATEGORY SPECIFIC FORECASTS
D43: EXPENDITURE
D44: =CONCATENATE("$, real ",dms_DollarReal) -> $, real June 2025
B45: Category desription | D45: =dms_y1 -> 2023-24 | E45: =dms_y2 -> 2024-25 | F45: =dms_y3 -> 2025-26 | G45: =dms_y4 -> 2026-27 | H45: =dms_y5 -> 2027-28 | I45: =dms_y6 -> 2028-29 | J45: =dms_y7 -> 2029-30
B46: UAG costs | D46: 74402780.71 | E46: 74593426.17 | F46: 36108636.15 | G46: 32762974.54 | H46: 27760733.06 | I46: 25086821.73 | J46: 24050704.84
B47: Government levies & licence fees | D47: 4587280.351 | E47: 4599034.538 | F47: 4256838.36 | G47: 4256838.36 | H47: 4256838.36 | I47: 4256838.36 | J47: 4256838.36
B48: Safeguard mechanism costs | D48: 0 | E48: 0 | F48: 2163786.122 | G48: 2315518.142 | H48: 2089383.656 | I48: 1956894.478 | J48: 1888143.772
B49: Debt raising costs | D49: 0 | E49: 0 | F49: 1985463.365 | G49: 1967910.928 | H49: 1957346.615 | I49: 1928606.377 | J49: 1873993.25
B50: Movement in provisions | D50: 721604.4179 | E50: 0 | F50: 0 | G50: 0 | H50: 0 | I50: 0 | J50: 0
B71: Total | D71: =SUM(D46:D70) -> 79711665.48 | E71: 79192460.71 | F71: 44514724 | G71: 41303241.97 | H71: 36064301.69 | I71: 33229160.94 | J71: 32069680.22

Sheet E20. Opex
B1: =INDEX(dms_Worksheet_List,MATCH(dms_Model,dms_Model_List)) -> REGULATORY REPORTING STATEMENT
B2: =dms_TradingNameFull -> Jemena Gas Networks (NSW) Ltd
B3: =dms_Header_Span -> 2023-24 to 2029-30
B4: E20. OPERATING EXPENDITURE
B5: FINAL RIN TEMPLATE - FEBRUARY 2024
B8: IMPORTANT!
B9: =CONCATENATE("Has ",dms_TradingName," used a base-step-trend model to derive its opex forecast? ") -> Has JGN used a base-step-trend model to derive its opex forecast? | D9: Yes
B10: Yes / No | D10: $, real June 2025
B11: Please nominate the base year | D11: 2023-24
E12: 2015-16 | F12: 2016-17 | G12: 2017-18 | H12: 2018-19 | I12: 2019-20
B13: E20.1 - OPEX - BY DRIVER
B14: E20.1.1 - REFERENCE SERVICES
C15: EXPENDITURE
C16: =CONCATENATE("$, real ",dms_DollarReal) -> $, real June 2025
C17: =CRCP_y1 -> 2020-21 | D17: =CRCP_y2 -> 2021-22 | E17: =CRCP_y3 -> 2022-23 | F17: =dms_y1 -> 2023-24 | G17: =dms_y2 -> 2024-25 | H17: =dms_y3 -> 2025-26 | I17: =dms_y4 -> 2026-27 | J17: =dms_y5 -> 2027-28 | K17: =dms_y6 -> 2028-29 | L17: =dms_y7 -> 2029-30
B18: Base year total opex, excluding category specific | F18: 188618573.1 | G18: 189137777.9 | H18: 176653042.7 | I18: 176653042.7 | J18: 176653042.7 | K18: 176653042.7 | L18: 176653042.7
B19: Increment from base year to final year | G19: 4506068.657
B20: Price growth | H20: 1491139.358 | I20: 2788868.319 | J20: 3942387.733 | K20: 4977423.144 | L20: 5783425.45
B21: Output growth | H21: 1557804.698 | I21: 2666735.4 | J21: 3720276.951 | K21: 4966636.891 | L21: 6321167.886
B22: Productivity growth | H22: -1549749.933 | I22: -3127465.898 | J22: -4727609.655 | K22: -6354064.214 | L22: -8000049.31
B23: Step changes | H23: 15543867.09 | I23: 10782975.86 | J23: 13232755.69 | K23: 13364710.06 | L23: 17322454.48
B24: Category specific | F24: =IF(ISBLANK('E17. Step changes'!D71),"",'E17. Step changes'!D71) -> 79711665.48 | G24: =IF(ISBLANK('E17. Step changes'!E71),"",'E17. Step changes'!E71) -> 79192460.71 | H24: =IF(ISBLANK('E17. Step changes'!F71),"",'E17. Step changes'!F71) -> 44514724 | I24: =IF(ISBLANK('E17. Step changes'!G71),"",'E17. Step changes'!G71) -> 41303241.97 | J24: =IF(ISBLANK('E17. Step changes'!H71),"",'E17. Step changes'!H71) -> 36064301.69 | K24: =IF(ISBLANK('E17. Step changes'!I71),"",'E17. Step changes'!I71) -> 33229160.94 | L24: =IF(ISBLANK('E17. Step changes'!J71),"",'E17. Step changes'!J71) -> 32069680.22
B26: E20.1.2 - NON-REFERENCE SERVICES
C27: EXPENDITURE
C28: =CONCATENATE("$, real ",dms_DollarReal) -> $, real June 2025
C29: =CRCP_y1 -> 2020-21 | D29: =CRCP_y2 -> 2021-22 | E29: =CRCP_y3 -> 2022-23 | F29: =dms_y1 -> 2023-24 | G29: =dms_y2 -> 2024-25 | H29: =dms_y3 -> 2025-26 | I29: =dms_y4 -> 2026-27 | J29: =dms_y5 -> 2027-28 | K29: =dms_y6 -> 2028-29 | L29: =dms_y7 -> 2029-30
B30: Base year total opex, excluding category specific
B31: Increment from base year to final year
B32: Price growth
B33: Output growth
B34: Productivity growth
B35: Step changes
B36: Category specific
B40: E20.2 - OPEX - BY CATEGORY
B41: E20.2.1 - REFERENCE SERVICES
C42: EXPENDITURE
C43: =CONCATENATE("$, real ",dms_DollarReal) -> $, real June 2025
C44: =CRCP_y1 -> 2020-21 | D44: =CRCP_y2 -> 2021-22 | E44: =CRCP_y3 -> 2022-23 | F44: =dms_y1 -> 2023-24 | G44: =dms_y2 -> 2024-25 | H44: =dms_y3 -> 2025-26 | I44: =dms_y4 -> 2026-27 | J44: =dms_y5 -> 2027-28 | K44: =dms_y6 -> 2028-29 | L44: =dms_y7 -> 2029-30
B45: repairs and maintenance
B46: marketing and retail incentives
B47: debt raising
B48: equity raising
B49: unaccounted for gas
B50: jurisdictional charges
B51: GSL payments
B52: other opex
B53: TOTAL | F53: =SUM(F45:F52) -> 0 | G53: 0 | H53: 0 | I53: 0 | J53: 0 | K53: 0 | L53: 0
B55: E20.2.2 - NON-REFERENCE SERVICES
C56: EXPENDITURE
C57: =CONCATENATE("$, real ",dms_DollarReal) -> $, real June 2025
C58: =CRCP_y1 -> 2020-21 | D58: =CRCP_y2 -> 2021-22 | E58: =CRCP_y3 -> 2022-23 | F58: =dms_y1 -> 2023-24 | G58: =dms_y2 -> 2024-25 | H58: =dms_y3 -> 2025-26 | I58: =dms_y4 -> 2026-27 | J58: =dms_y5 -> 2027-28 | K58: =dms_y6 -> 2028-29 | L58: =dms_y7 -> 2029-30
B84: TOTAL | F84: =SUM(F59:F83) -> 0 | G84: =SUM(G59:G83) -> 0 | H84: 0 | I84: 0 | J84: 0 | K84: 0 | L84: 0
B88: E20.3 - OPEX - BY CATEGORY - RELATED PARTY MARGIN EXPENDITURE
B89: 20.3.1 - REFERENCE SERVICES
C90: EXPENDITURE
C91: =CONCATENATE("$, real ",dms_DollarReal) -> $, real June 2025
C92: =CRCP_y1 -> 2020-21 | D92: =CRCP_y2 -> 2021-22 | E92: =CRCP_y3 -> 2022-23 | F92: =dms_y1 -> 2023-24 | G92: =dms_y2 -> 2024-25 | H92: =dms_y3 -> 2025-26 | I92: =dms_y4 -> 2026-27 | J92: =dms_y5 -> 2027-28 | K92: =dms_y6 -> 2028-29 | L92: =dms_y7 -> 2029-30
B93: repairs and maintenance
B94: marketing and retail incentives
B95: debt raising
B96: equity raising
B97: unaccounted for gas
B98: jurisdictional charges
B99: GSL payments
B100: other opex
B101: TOTAL | F101: =SUM(F93:F100) -> 0 | G101: 0 | H101: 0 | I101: 0 | J101: 0 | K101: 0 | L101: 0
B103: 20.3.2 - NON-REFERENCE SERVICES
C104: EXPENDITURE
C105: =CONCATENATE("$, real ",dms_DollarReal) -> $, real June 2025
C106: =CRCP_y1 -> 2020-21 | D106: =CRCP_y2 -> 2021-22 | E106: =CRCP_y3 -> 2022-23 | F106: =dms_y1 -> 2023-24 | G106: =dms_y2 -> 2024-25 | H106: =dms_y3 -> 2025-26 | I106: =dms_y4 -> 2026-27 | J106: =dms_y5 -> 2027-28 | K106: =dms_y6 -> 2028-29 | L106: =dms_y7 -> 2029-30
B107: =IF(ISBLANK(B59),"",B59) -> 
B132: TOTAL | F132: =SUM(F107:F131) -> 0 | G132: =SUM(G107:G131) -> 0 | H132: 0 | I132: 0 | J132: 0 | K132: 0 | L132: 0

Sheet E21. ARS
B1: =INDEX(dms_Worksheet_List,MATCH(dms_Model,dms_Model_List)) -> REGULATORY REPORTING STATEMENT
B2: =dms_TradingNameFull -> Jemena Gas Networks (NSW) Ltd
B3: =dms_Header_Span -> 2023-24 to 2029-30
B4: E21. ANCILLARY REFERENCE SERVICES
B5: FINAL RIN TEMPLATE - FEBRUARY 2024
B7: E21.1 - VOLUMES
C8: NUMBER OF SERVICES
C9: 0's
B10: Description | C10: =dms_y1 -> 2023-24 | D10: =dms_y2 -> 2024-25 | E10: =dms_y3 -> 2025-26 | F10: =dms_y4 -> 2026-27 | G10: =dms_y5 -> 2027-28 | H10: =dms_y6 -> 2028-29 | I10: =dms_y7 -> 2029-30
B11: Hourly charge – non-standard retailer-initiated requests and queries | C11: 69.54031723 | D11: 69.16844387 | E11: 68.79657052 | F11: 68.42469717 | G11: 67.95985547 | H11: 67.40204544 | I11: 66.84423541
B12: Disconnection – Volume Customers – Completed | C12: 18310.1744 | D12: 18378.21652 | E12: 19202.71972 | F12: 21148.7646 | G12: 24445.80868 | H12: 31695.13094 | I12: 45816.14044
B13: Disconnection – Volume Customers – Wasted Visit | C13: 14031.86988 | D13: 14084.01347 | E13: 14715.86554 | F13: 15396.84283 | G13: 15923.78856 | H13: 18217.00098 | I13: 21066.52096
B14: Reconnection – Volume Customers – Completed | C14: 9252.913197 | D14: 8988.527067 | E14: 8899.883833 | F14: 8594.211072 | G14: 8349.011523 | H14: 8066.834256 | I14: 7539.614432
B15: Reconnection – Volume Customers – Wasted Visit | C15: 1653.904375 | D15: 1606.646893 | E15: 1590.802431 | F15: 1536.165204 | G15: 1492.337212 | H15: 1441.899668 | I15: 1347.662193
B16: Expedited reconnection | C16: 5465.897832 | D16: 5309.719173 | E16: 5257.355679 | F16: 5076.788106 | G16: 4931.94338 | H16: 4765.255108 | I16: 4453.814847
B17: Abolishment – Up to 25m3/hr – Completed | C17: 4271.949552 | D17: 4589.139942 | E17: 6150.158035 | F17: 8337.936367 | G17: 8815.050866 | H17: 10343.71844 | I17: 13281.63209
A18: Row inserted | B18: Special meter read – Completed | C18: 510960.5404 | D18: 517222.235 | E18: 521906.0004 | F18: 524417.3617 | G18: 524754.9354 | H18: 521852.2826 | I18: 513285.5239
A19: Row inserted | B19: Special meter read – Wasted Visit | C19: 29895.49128 | D19: 30261.8531 | E19: 30535.89279 | F19: 30682.82856 | G19: 30702.57946 | H19: 30532.74985 | I19: 30031.52237
B20: Total | C20: =SUM(C11:C19) -> 593912.2812 | D20: =SUM(D11:D19) -> 600509.5196 | E20: =SUM(E11:E19) -> 608327.475 | F20: 615259.3231 | G20: 619483.415 | H20: 626982.2739 | I20: 636889.2754
B22: E21.2 - omitted
B24: E21.3 - EXPENDITURE
C25: EXPENDITURE
C26: =CONCATENATE("$, real ",dms_DollarReal) -> $, real June 2025
C27: =dms_y1 -> 2023-24 | D27: =dms_y2 -> 2024-25 | E27: =dms_y3 -> 2025-26 | F27: =dms_y4 -> 2026-27 | G27: =dms_y5 -> 2027-28 | H27: =dms_y6 -> 2028-29 | I27: =dms_y7 -> 2029-30
B28: =IF(ISBLANK(B11),"",B11) -> Hourly charge – non-standard retailer-initiated requests and queries | C28: 13480.84831 | D28: 15240.42478 | E28: 13787.45711 | F28: 13779.98678 | G28: 13748.78647 | H28: 13708.60959 | I28: 13673.10596
B29: =IF(ISBLANK(B12),"",B12) -> Disconnection – Volume Customers – Completed | C29: 2340782.907 | D29: 2668509.381 | E29: 1569250.204 | F29: 1736732.717 | G29: 2016640.081 | H29: 2628602.69 | I29: 3821499.319
B30: Disconnection – Volume Customers – Wasted Visit | C30: 1176289.883 | D30: 1344261.059 | E30: 658557.6628 | F30: 692401.8263 | G30: 719364.3873 | H30: 827347.2448 | I30: 962247.1877
B31: Reconnection – Volume Customers – Completed | C31: 950196.4198 | D31: 1049580.379 | E31: 1021683.807 | F31: 991417.8171 | G31: 967524.0469 | H31: 939806.0852 | I31: 883419.8297
B32: Reconnection – Volume Customers – Wasted Visit | C32: 138646.5952 | D32: 153347.8265 | E32: 182620.0334 | F32: 177210.164 | G32: 172939.2916 | H32: 167984.8673 | I32: 157906.1523
B33: Expedited reconnection | C33: 1672450.17 | D33: 1843855.958 | E33: 1002475.103 | F33: 972778.1455 | G33: 949333.6027 | H33: 922136.7671 | I33: 866810.631
B34: Abolishment – Up to 25m3/hr – Completed | C34: 5622436.781 | D34: 6853575.604 | E34: 8807329.617 | F34: 11998724.53 | G34: 12743165.77 | H34: 15032721.51 | I34: 19413116.23
A35: Row inserted | B35: Special meter read – Completed | C35: 7335281.004 | D35: 8402847.889 | E35: 8631601.385 | F35: 8715547.601 | G35: 8760928.849 | H35: 8758901.055 | I35: 8664508.588
A36: Row inserted | B36: Special meter read – Wasted Visit | C36: 429175.6641 | D36: 491637.3103 | E36: 505021.3148 | F36: 509932.8748 | G36: 512588.0597 | H36: 512469.4167 | I36: 506946.663
B37: Total | C37: =SUM(C28:C36) -> 19678740.27 | D37: 22822855.83 | E37: 22392326.58 | F37: 25808525.67 | G37: 26856232.88 | H37: 29803678.25 | I37: 35290127.71

Sheet E25. Escalators
B1: =INDEX(dms_Worksheet_List,MATCH(dms_Model,dms_Model_List)) -> REGULATORY REPORTING STATEMENT
B2: =dms_TradingNameFull -> Jemena Gas Networks (NSW) Ltd
B3: =dms_Header_Span -> 2023-24 to 2029-30
B4: E25. ESCALATORS
B5: FINAL RIN TEMPLATE - FEBRUARY 2024
B7: E25.1 - FORECAST CAPEX AND OPEX PRICE CHANGES
C8: Price changes (% YoY real)
C9: =dms_y1 -> 2023-24 | D9: =dms_y2 -> 2024-25 | E9: =dms_y3 -> 2025-26 | F9: =dms_y4 -> 2026-27 | G9: =dms_y5 -> 2027-28 | H9: =dms_y6 -> 2028-29 | I9: =dms_y7 -> 2029-30
B10: E25.1.1 - OPEX
B11: Consumer price index | C11: 0.033 | D11: 0.031 | E11: 0.02789756045 | F11: 0.02789756045 | G11: 0.02789756045 | H11: 0.02789756045 | I11: 0.02789756045
B12: Real labour escalation | E12: 0.01410423958 | F12: 0.009780034371 | G12: 0.009120565513 | H12: 0.01065893064 | I12: 0.01146686671
B17: E25.1.2 - CAPEX
B18: Consumer price index | C18: 0.04051987768 | D18: 0.032 | E18: 0.02789756045 | F18: 0.02789756045 | G18: 0.02789756045 | H18: 0.02789756045 | I18: 0.02789756045
B19: Real labour escalation | C19: 0.005496037201 | D19: 0.01101761158 | E19: 0.01410423958 | F19: 0.009780034371 | G19: 0.009120565513 | H19: 0.01065893064 | I19: 0.01146686671

Sheet N1. Demand
B1: =INDEX(dms_Worksheet_List,MATCH(dms_Model,dms_Model_List)) -> REGULATORY REPORTING STATEMENT
B2: =dms_TradingNameFull -> Jemena Gas Networks (NSW) Ltd
B3: =dms_Header_Span -> 2023-24 to 2029-30
B4: N1. DEMAND
B5: FINAL RIN TEMPLATE - FEBRUARY 2024
B7: N1.1 - DEMAND - BY CUSTOMER (GAS) TYPE
C8: VOLUME
C9: GJ
C10: =dms_y1 -> 2023-24 | D10: =dms_y2 -> 2024-25 | E10: =dms_y3 -> 2025-26 | F10: =dms_y4 -> 2026-27 | G10: =dms_y5 -> 2027-28 | H10: =dms_y6 -> 2028-29 | I10: =dms_y7 -> 2029-30
B11: Residential | C11: 27907590.24 | D11: 27893078.68 | E11: 27871515.71 | F11: 27678948.98 | G11: 27231417.92 | H11: 26586477.33 | I11: 25593196.75
B12: Commercial | C12: 13113223.63 | D12: 12905584.53 | E12: 12650295.27 | F12: 12307867.03 | G12: 11884976.02 | H12: 11385743.05 | I12: 10736290.43
B13: Industrial | C13: 45989918.67 | D13: 47064081.67 | E13: 47272683.67 | F13: 48963100.67 | G13: 48622231.67 | H13: 47220799.67 | I13: 48578813.67
B14: Total | C14: =SUM(C11:C13) -> 87010732.54 | D14: 87862744.89 | E14: 87794494.64 | F14: 88949916.68 | G14: 87738625.61 | H14: 85193020.06 | I14: 84908300.86
B18: N1.2 - DEMAND - BY TARIFF
C19: VOLUME
C20: GJ
B21: Tariff | C21: =dms_y1 -> 2023-24 | D21: =dms_y2 -> 2024-25 | E21: =dms_y3 -> 2025-26 | F21: =dms_y4 -> 2026-27 | G21: =dms_y5 -> 2027-28 | H21: =dms_y6 -> 2028-29 | I21: =dms_y7 -> 2029-30
B22: Volume - Individual metered (VI-Coastal)
B23: Volume - Individual metered (VI-Country)
B24: Volume - Boundary metered (VB-Coastal)
B25: Volume - Boundary metered (VB-Country)
B26: Volume - Individual metered (VI) small | C26: 27359519.58 | D26: 27208656.34 | E26: 27020705.26 | F26: 26660116.37 | G26: 26075771.37 | H26: 25308627.97 | I26: 24208376.26
B27: Volume - Individual metered (VI) large | C27: 12861233.65 | D27: 12790315.46 | E27: 12701962.93 | F27: 12532456.38 | G27: 12257765.97 | H27: 11897145.22 | I27: 11379936.05
B28: Volume - Boundary metered (VB) | C28: 710060.6365 | D28: 709691.4149 | E28: 709142.782 | F28: 704243.2529 | G28: 692856.5947 | H28: 676447.1907 | I28: 651174.8746
B29: Volume - Residential distributed generation technology (VRT3) | C29: 0 | D29: 0 | E29: 0 | F29: 0 | G29: 0 | H29: 0 | I29: 0
B30: Volume - Residential distributed generation technology (VRT4)
B31: Volume - Residential distributed generation technology (VRT6) | C31: 0 | D31: 0 | E31: 0 | F31: 0 | G31: 0 | H31: 0 | I31: 0
B32: Volume - Residential distributed generation technology (VRT10) | C32: 0 | D32: 0 | E32: 0 | F32: 0 | G32: 0 | H32: 0 | I32: 0
B33: Demand - Capacity coastal (DC1) | C33: 2742527.067 | D33: 3624177.067 | E33: 3624177.067 | F33: 3324177.067 | G33: 3328177.067 | H33: 3432027.067 | I33: 3335703.067
B34: Demand - Capacity coastal (DC2) | C34: 3706547.768 | D34: 3741547.768 | E34: 3741547.768 | F34: 3741547.768 | G34: 3741547.768 | H34: 3741547.768 | I34: 3741547.768
B35: Demand - Capacity coastal (DC3) | C35: 6818744.888 | D35: 6833744.888 | E35: 6863744.888 | F35: 6878744.888 | G35: 6893744.888 | H35: 6723744.888 | I35: 6733744.888
B36: Demand - Capacity coastal (DC4) | C36: 1045875.302 | D36: 1045875.302 | E36: 1045875.302 | F36: 1045875.302 | G36: 1045875.302 | H36: 1045875.302 | I36: 1045875.302
B37: Demand - Capacity coastal (DC5)
B38: Demand - Capacity coastal (DC6) | C38: 4539353.151 | D38: 4284376.151 | E38: 4315699.151 | F38: 4333854.151 | G38: 4346097.151 | H38: 4356746.151 | I38: 4362189.151
B39: Demand - Capacity coastal (DC7) | C39: 1381648.067 | D39: 1381648.067 | E39: 1381648.067 | F39: 1381648.067 | G39: 1381648.067 | H39: 1381648.067 | I39: 1381648.067
B40: Demand - Capacity coastal (DC8)
B41: Demand - Capacity coastal (DC9)
B42: Demand - Capacity coastal (DC10) | C42: 392436.9505 | D42: 392436.9505 | E42: 392436.9505 | F42: 392436.9505 | G42: 392436.9505 | H42: 392436.9505 | I42: 392436.9505
B43: Demand - Capacity coastal (DC11) | C43: 0 | D43: 0 | E43: 0 | F43: 0 | G43: 0 | H43: 0 | I43: 0
B44: Demand - Capacity country (DC Country) - Distance | C44: 0 | D44: 0 | E44: 0 | F44: 0 | G44: 0 | H44: 0 | I44: 0
B45: Demand - Capacity country (DC Country) - Pressure reduction | C45: 2679354.11 | D45: 2679354.11 | E45: 2679354.11 | F45: 2679354.11 | G45: 2679354.11 | H45: 2679354.11 | I45: 2679354.11
B46: Demand - Capacity - First response (DCFR1)
B47: Demand - Capacity - First response (DCFR6)
B48: Demand - Throughput (DT) | C48: 238247.338 | D48: 238247.338 | E48: 238247.338 | F48: 238247.338 | G48: 238247.338 | H48: 238247.338 | I48: 238247.338
B49: Demand - Major end-user (throughput) (DMT1)
B50: Demand - Major end-user (throughput) (DMT2)
B51: Demand - Major end-user (throughput) (DMT3) | C51: 0 | D51: 0 | E51: 0 | F51: 0 | G51: 0 | H51: 0 | I51: 0
B52: Demand - Major end-user (throughput) (DMT4) | C52: 0 | D52: 0 | E52: 0 | F52: 0 | G52: 0 | H52: 0 | I52: 0
B53: Demand - Major end-user (throughput) (DMT5) | C53: 0 | D53: 0 | E53: 0 | F53: 0 | G53: 0 | H53: 0 | I53: 0
B54: Demand - Major end-user (throughput) - First response (DMTFR3)
B55: Prudent discounts
B97: Total | C97: =SUM(C22:C96) -> 64475548.51 | D97: 64930070.85 | E97: 64714541.61 | F97: 63912701.65 | G97: 63073522.57 | H97: 61873848.02 | I97: 60150233.82

Sheet N2. Network characteristics
B1: =INDEX(dms_Worksheet_List,MATCH(dms_Model,dms_Model_List)) -> REGULATORY REPORTING STATEMENT
B2: =dms_TradingNameFull -> Jemena Gas Networks (NSW) Ltd
B3: =dms_Header_Span -> 2023-24 to 2029-30
B4: N2. NETWORK CHARACTERISTICS
B5: FINAL RIN TEMPLATE - FEBRUARY 2024
B7: N2.1 - NETWORK LENGTH - BY PRESSURE AND ASSET TYPE
D8: LENGTH
D9: KM
D10: =dms_y1 -> 2023-24 | E10: =dms_y2 -> 2024-25 | F10: =dms_y3 -> 2025-26 | G10: =dms_y4 -> 2026-27 | H10: =dms_y5 -> 2027-28 | I10: =dms_y6 -> 2028-29 | J10: =dms_y7 -> 2029-30
B11: N2.1.1 - LOW PRESSURE
C12: Cast Iron | D12: 35.68011 | E12: 35.68011 | F12: 35.68011 | G12: 35.68011 | H12: 12.68011 | I12: 0 | J12: 0
C13: PVC | D13: 0 | E13: 0 | F13: 0 | G13: 0 | H13: 0 | I13: 0 | J13: 0
C14: Polyamide | D14: 956.9036315 | E14: 958.0346028 | F14: 958.8583983 | G14: 959.7144728 | H14: 960.556945 | I14: 961.2930805 | J14: 961.9122674
C15: High density polyethylene (80) | D15: 28.55916 | E15: 28.55916 | F15: 28.55916 | G15: 28.55916 | H15: 28.55916 | I15: 28.55916 | J15: 28.55916
C16: High density polyethylene (100) | D16: 71.00660469 | E16: 91.53659678 | F16: 106.0650945 | G16: 120.9266156 | H16: 159.3043611 | I16: 204.8504783 | J16: 224.3947997
C17: High density polyethylene (250) | D17: 0 | E17: 0 | F17: 0 | G17: 0 | H17: 0 | I17: 0 | J17: 0
C18: High density polyethylene (575) | D18: 0 | E18: 0 | F18: 0 | G18: 0 | H18: 0 | I18: 0 | J18: 0
C19: Medium density polyethylene | D19: 0 | E19: 0 | F19: 0 | G19: 0 | H19: 0 | I19: 0 | J19: 0
C20: Other polyethylene | D20: 33.537985 | E20: 33.537985 | F20: 33.537985 | G20: 33.537985 | H20: 33.537985 | I20: 33.537985 | J20: 33.537985
C21: Unprotected steel | D21: 0 | E21: 0 | F21: 0 | G21: 0 | H21: 0 | I21: 0 | J21: 0
C22: Protected steel | D22: 5.521447 | E22: 5.521447 | F22: 5.521447 | G22: 5.521447 | H22: 5.521447 | I22: 5.521447 | J22: 5.521447
C23: Other | D23: 0.289765 | E23: 0.289765 | F23: 0.289765 | G23: 0.289765 | H23: 0.289765 | I23: 0.289765 | J23: 0.289765
B24: N2.1.2 - MEDIUM PRESSURE
C25: Cast Iron | D25: 34.8606 | E25: 34.8606 | F25: 25.8606 | G25: 16.8606 | H25: 7.8606 | I25: 7.8606 | J25: 7.8606
C26: PVC | D26: 0 | E26: 0 | F26: 0 | G26: 0 | H26: 0 | I26: 0 | J26: 0
C27: Polyamide | D27: 19138.33736 | E27: 19147.20423 | F27: 19153.11387 | G27: 19159.60052 | H27: 19166.218 | I27: 19172.06051 | J27: 19176.96366
C28: High density polyethylene (80) | D28: 640.033548 | E28: 640.033548 | F28: 640.033548 | G28: 640.033548 | H28: 640.033548 | I28: 640.033548 | J28: 640.033548
C29: High density polyethylene (100) | D29: 3009.220641 | E29: 3172.783671 | F29: 3291.226583 | G29: 3421.781143 | H29: 3554.674792 | I29: 3664.960512 | J29: 3788.879421
C30: High density polyethylene (250) | D30: 0 | E30: 0 | F30: 0 | G30: 0 | H30: 0 | I30: 0 | J30: 0
C31: High density polyethylene (575) | D31: 0 | E31: 0 | F31: 0 | G31: 0 | H31: 0 | I31: 0 | J31: 0
C32: Medium density polyethylene | D32: 0 | E32: 0 | F32: 0 | G32: 0 | H32: 0 | I32: 0 | J32: 0
C33: Other polyethylene | D33: 355.821307 | E33: 355.821307 | F33: 355.821307 | G33: 355.821307 | H33: 355.821307 | I33: 355.821307 | J33: 355.821307
C34: Unprotected steel | D34: 0 | E34: 0 | F34: 0 | G34: 0 | H34: 0 | I34: 0 | J34: 0
C35: Protected steel | D35: 357.621191 | E35: 357.311191 | F35: 357.311191 | G35: 357.311191 | H35: 357.311191 | I35: 357.311191 | J35: 327.111191
C36: Other | D36: 1.579684 | E36: 1.579684 | F36: 1.579684 | G36: 1.579684 | H36: 1.579684 | I36: 1.579684 | J36: 1.579684
B37: N2.1.3 - HIGH PRESSURE
C38: Cast Iron | D38: 0 | E38: 0 | F38: 0 | G38: 0 | H38: 0 | I38: 0 | J38: 0
C39: PVC | D39: 0 | E39: 0 | F39: 0 | G39: 0 | H39: 0 | I39: 0 | J39: 0
C40: Polyamide | D40: 0 | E40: 0 | F40: 0 | G40: 0 | H40: 0 | I40: 0 | J40: 0
C41: High density polyethylene (80) | D41: 0 | E41: 0 | F41: 0 | G41: 0 | H41: 0 | I41: 0 | J41: 0
C42: High density polyethylene (100) | D42: 9.529463 | E42: 9.529463 | F42: 9.529463 | G42: 9.529463 | H42: 9.529463 | I42: 9.529463 | J42: 9.529463
C43: High density polyethylene (250) | D43: 0 | E43: 0 | F43: 0 | G43: 0 | H43: 0 | I43: 0 | J43: 0
C44: High density polyethylene (575) | D44: 0 | E44: 0 | F44: 0 | G44: 0 | H44: 0 | I44: 0 | J44: 0
C45: Medium density polyethylene | D45: 0 | E45: 0 | F45: 0 | G45: 0 | H45: 0 | I45: 0 | J45: 0
C46: Other polyethylene | D46: 0 | E46: 0 | F46: 0 | G46: 0 | H46: 0 | I46: 0 | J46: 0
C47: Unprotected steel | D47: 0 | E47: 0 | F47: 0 | G47: 0 | H47: 0 | I47: 0 | J47: 0
C48: Protected steel | D48: 1449.428478 | E48: 1449.428478 | F48: 1462.428478 | G48: 1468.528478 | H48: 1472.828478 | I48: 1489.978478 | J48: 1490.598478
C49: Other | D49: 0 | E49: 0 | F49: 0 | G49: 0 | H49: 0 | I49: 0 | J49: 0
B50: N2.1.4 - TRANSMISSION
C51: Protected steel | D51: 414.5671876 | E51: 414.5671876 | F51: 414.5671876 | G51: 414.5671876 | H51: 414.5671876 | I51: 414.5671876 | J51: 414.5671876
C52: Other | D52: 0 | E52: 0 | F52: 0 | G52: 0 | H52: 0 | I52: 0 | J52: 0
C53: Total | D53: =SUM(D12:D52) -> 26542.49816 | E53: 26736.27903 | F53: 26879.98387 | G53: 27029.84267 | H53: 27180.87403 | I53: 27347.7544 | J53: 27467.15997
B57: N2.2 - CITY GATES / REGULATORS
D58: VOLUMES
D59: 0's
D60: =dms_y1 -> 2023-24 | E60: =dms_y2 -> 2024-25 | F60: =dms_y3 -> 2025-26 | G60: =dms_y4 -> 2026-27 | H60: =dms_y5 -> 2027-28 | I60: =dms_y6 -> 2028-29 | J60: =dms_y7 -> 2029-30
C61: City Gate | D61: 75 | E61: 75 | F61: 76 | G61: 76 | H61: 79 | I61: 82 | J61: 83
C62: Field Regulator | D62: 0 | E62: 0 | F62: 0 | G62: 0 | H62: 0 | I62: 0 | J62: 0
C63: District Regulator | D63: 648 | E63: 650 | F63: 652 | G63: 655 | H63: 655 | I63: 655 | J63: 656
C64: Total | D64: =SUM(D61:D63) -> 723 | E64: =SUM(E61:E63) -> 725 | F64: =SUM(F61:F63) -> 728 | G64: =SUM(G61:G63) -> 731 | H64: 734 | I64: 737 | J64: 739

Sheet S1. Cust. no.-by type
B1: =INDEX(dms_Worksheet_List,MATCH(dms_Model,dms_Model_List)) -> REGULATORY REPORTING STATEMENT
B2: =dms_TradingNameFull -> Jemena Gas Networks (NSW) Ltd
B3: =dms_Header_Span -> 2023-24 to 2029-30
B4: S1. CUSTOMER NUMBERS
B5: FINAL RIN TEMPLATE - FEBRUARY 2024
B7: S1.1 - CUSTOMER NUMBERS - BY CUSTOMER (GAS) TYPE
C8: NUMBER OF CUSTOMERS
C9: =dms_y1 -> 2023-24 | D9: =dms_y2 -> 2024-25 | E9: =dms_y3 -> 2025-26 | F9: =dms_y4 -> 2026-27 | G9: =dms_y5 -> 2027-28 | H9: =dms_y6 -> 2028-29 | I9: =dms_y7 -> 2029-30
B10: A. RESIDENTIAL
B11: Customer numbers - beginning of year | C11: 1480471.35 | D11: 1500778.723 | E11: 1518170.087 | F11: 1529073.394 | G11: 1533488.912 | H11: 1531408.62 | I11: 1516500.914
B12: Customer numbers - end of year | C12: 1500778.723 | D12: 1518170.087 | E12: 1529073.394 | F12: 1533488.912 | G12: 1531408.62 | H12: 1516500.914 | I12: 1480630.365
B13: Total customer connections | C13: 41743.88533 | D13: 39181.22169 | E13: 35075.42677 | F13: 32732.79014 | G13: 29985.2897 | H13: 25914.87997 | I13: 21988.38626
B14: Total customer disconnections | C14: 21436.51829 | D14: 21789.85216 | E14: 24172.12191 | F14: 28317.26745 | G14: 32065.58262 | H14: 40822.58975 | I14: 57858.93466
B15: B. COMMERCIAL
B16: Customer numbers - beginning of year | C16: 34266.02145 | D16: 34107.69387 | E16: 33941.48071 | F16: 33767.78023 | G16: 33611.57677 | H16: 33447.38147 | I16: 33275.34883
B17: Customer numbers - end of year | C17: 34107.69387 | D17: 33941.48071 | E17: 33767.78023 | F17: 33611.57677 | G17: 33447.38147 | H17: 33275.34883 | I17: 33095.60982
B18: Total customer connections | C18: 994.7043403 | D18: 1010.700868 | E18: 1006.242045 | F18: 1012.026354 | G18: 1029.886449 | H18: 1042.791229 | I18: 1056.965642
B19: Total customer disconnections | C19: 1153.050226 | D19: 1177.893028 | E19: 1179.920293 | F19: 1168.209616 | G19: 1194.060279 | H19: 1214.800932 | I19: 1236.679982
B20: C. INDUSTRIAL
B21: Customer numbers - beginning of year | C21: 380 | D21: 380 | E21: 380 | F21: 380 | G21: 380 | H21: 380 | I21: 380
B22: Customer numbers - end of year | C22: 380 | D22: 380 | E22: 380 | F22: 380 | G22: 380 | H22: 380 | I22: 380
B23: Total customer connections | C23: 0 | D23: 0 | E23: 0 | F23: 0 | G23: 0 | H23: 0 | I23: 0
B24: Total customer disconnections | C24: 0 | D24: 0 | E24: 0 | F24: 0 | G24: 0 | H24: 0 | I24: 0
B28: S1.3 - CUSTOMER DISCONNECTIONS - BY CUSTOMER (GAS) TYPE
C29: NUMBER OF CUSTOMERS
C30: =dms_y1 -> 2023-24 | D30: =dms_y2 -> 2024-25 | E30: =dms_y3 -> 2025-26 | F30: =dms_y4 -> 2026-27 | G30: =dms_y5 -> 2027-28 | H30: =dms_y6 -> 2028-29 | I30: =dms_y7 -> 2029-30
B31: A. RESIDENTIAL
B32: Disconnection - meter not removed | C32: 17381.43421 | D32: 17553.77277 | E32: 18403.84364 | F32: 20367.14458 | G32: 23632.51685 | H32: 30869.75952 | I32: 44970.39373
B33: Disconnection - meter removed | C33: 0 | D33: 0 | E33: 0 | F33: 0 | G33: 0 | H33: 0 | I33: 0
B34: Disconnection - other | C34: 0 | D34: 0 | E34: 0 | F34: 0 | G34: 0 | H34: 0 | I34: 0
B35: Abolishment | C35: 4055.084073 | D35: 4236.079395 | E35: 5768.278276 | F35: 7950.122868 | G35: 8433.065768 | H35: 9952.830239 | I35: 12888.54092
B36: B. COMMERCIAL
B37: Disconnection - meter not removed | C37: 928.7401851 | D37: 825.4437507 | E37: 798.8760844 | F37: 781.6200178 | G37: 813.2918307 | H37: 825.3714288 | I37: 845.7467079
B38: Disconnection - meter removed | C38: 0 | D38: 0 | E38: 0 | F38: 0 | G38: 0 | H38: 0 | I38: 0
B39: Disconnection - other | C39: 0 | D39: 0 | E39: 0 | F39: 0 | G39: 0 | H39: 0 | I39: 0
B40: Abolishment | C40: 224.3100405 | D40: 352.4492771 | E40: 381.0442088 | F40: 386.5895984 | G40: 380.768448 | H40: 389.4295033 | I40: 390.9332737
B41: C. INDUSTRIAL
B42: Disconnection - meter not removed | C42: 0 | D42: 0 | E42: 0 | F42: 0 | G42: 0 | H42: 0 | I42: 0
B43: Disconnection - meter removed | C43: 0 | D43: 0 | E43: 0 | F43: 0 | G43: 0 | H43: 0 | I43: 0
B44: Disconnection - other | C44: 0 | D44: 0 | E44: 0 | F44: 0 | G44: 0 | H44: 0 | I44: 0
B45: Abolishment | C45: 0 | D45: 0 | E45: 0 | F45: 0 | G45: 0 | H45: 0 | I45: 0
B48: S1.4 - CONNECTION ACTIVITIES - BY CUSTOMER (GAS) TYPE
C49: NUMBER OF CONNECTIONS
C50: =dms_y1 -> 2023-24 | D50: =dms_y2 -> 2024-25 | E50: =dms_y3 -> 2025-26 | F50: =dms_y4 -> 2026-27 | G50: =dms_y5 -> 2027-28 | H50: =dms_y6 -> 2028-29 | I50: =dms_y7 -> 2029-30
B51: A. RESIDENTIAL
B52: New connections (no previous supply) | C52: 27670.742 | D52: 25530.27266 | E52: 21551.01241 | F52: 19684.78421 | G52: 17331.00136 | H52: 13707.1332 | I52: 10611.92815
B53: Reconnections (previous supply at the connection point) | C53: 14073.14333 | D53: 13650.94903 | E53: 13524.41436 | F53: 13048.00592 | G53: 12654.28833 | H53: 12207.74677 | I53: 11376.45811
B54: B. COMMERCIAL
B55: New connections (no previous supply) | C55: 583.5663403 | D55: 591.2320722 | E55: 598.9985011 | F55: 606.8669499 | G55: 614.8387587 | H55: 622.9152853 | I55: 631.0979052
B56: Reconnections (previous supply at the connection point) | C56: 411.138 | D56: 419.4687956 | E56: 407.2435435 | F56: 405.1594045 | G56: 415.0476905 | H56: 419.8759436 | I56: 425.8677365
B57: C. INDUSTRIAL
B58: New connections (no previous supply) | C58: 0 | D58: 0 | E58: 0 | F58: 0 | G58: 0 | H58: 0 | I58: 0
B59: Reconnections (previous supply at the connection point) | C59: 0 | D59: 0 | E59: 0 | F59: 0 | G59: 0 | H59: 0 | I59: 0
B62: S1.5 - DORMANT CONNECTIONS - BY CUSTOMER (GAS) TYPE
C63: NUMBER OF DORMANT CONNECTIONS
C64: =dms_y1 -> 2023-24 | D64: =dms_y2 -> 2024-25 | E64: =dms_y3 -> 2025-26 | F64: =dms_y4 -> 2026-27 | G64: =dms_y5 -> 2027-28 | H64: =dms_y6 -> 2028-29 | I64: =dms_y7 -> 2029-30
B65: A. RESIDENTIAL
B66: Dormant connection <= 12 months | C66: 20555.33333 | D66: 19486.66667 | E66: 18418 | F66: 17349.33333 | G66: 16280.66667 | H66: 15212 | I66: 14143.33333
B67: Dormant connection > 12 months | C67: 30794.66667 | D67: 31796.33333 | E67: 32798 | F67: 33799.66667 | G67: 34801.33333 | H67: 35803 | I67: 36804.66667
B68: B. COMMERCIAL
B69: Dormant connection <= 12 months | C69: 757 | D69: 707 | E69: 657 | F69: 607 | G69: 557 | H69: 507 | I69: 457
B70: Dormant connection > 12 months | C70: 2244.666667 | D70: 2300.333333 | E70: 2356 | F70: 2411.666667 | G70: 2467.333333 | H70: 2523 | I70: 2578.666667
B71: C. INDUSTRIAL
B72: Dormant connection <= 12 months | C72: 0 | D72: 0 | E72: 0 | F72: 0 | G72: 0 | H72: 0 | I72: 0
B73: Dormant connection > 12 months | C73: 0 | D73: 0 | E73: 0 | F73: 0 | G73: 0 | H73: 0 | I73: 0

Sheet S1.2 Cust. no.-by tariff
B1: =INDEX(dms_Worksheet_List,MATCH(dms_Model,dms_Model_List)) -> REGULATORY REPORTING STATEMENT
B2: =dms_TradingNameFull -> Jemena Gas Networks (NSW) Ltd
B3: =dms_Header_Span -> 2023-24 to 2029-30
B4: S1. CUSTOMER NUMBERS
B5: FINAL RIN TEMPLATE - FEBRUARY 2024
B7: S1.2 - CUSTOMER (GAS) NUMBERS - BY TARIFF
B8: S1.2.1 - CUSTOMER NUMBERS - BEGINNING OF YEAR
C9: NUMBER OF CUSTOMERS
C10: =dms_y1 -> 2023-24 | D10: =dms_y2 -> 2024-25 | E10: =dms_y3 -> 2025-26 | F10: =dms_y4 -> 2026-27 | G10: =dms_y5 -> 2027-28 | H10: =dms_y6 -> 2028-29 | I10: =dms_y7 -> 2029-30
B11: =IF(ISBLANK('N1. Demand'!B22),"",'N1. Demand'!B22) -> Volume - Individual metered (VI-Coastal) | C11: 1411545.288 | D11: =C92 -> 1430353.7 | E11: 1446435.794 | F11: 0 | G11: 0 | H11: 0 | I11: 0
B12: =IF(ISBLANK('N1. Demand'!B23),"",'N1. Demand'!B23) -> Volume - Individual metered (VI-Country) | C12: 102305.084 | D12: =C93 -> 103631.8691 | E12: 104764.5107 | F12: 0 | G12: 0 | H12: 0 | I12: 0
B13: =IF(ISBLANK('N1. Demand'!B24),"",'N1. Demand'!B24) -> Volume - Boundary metered (VB-Coastal) | C13: 885 | D13: =C94 -> 898.8468018 | E13: 909.2628125 | F13: 0 | G13: 0 | H13: 0 | I13: 0
B14: =IF(ISBLANK('N1. Demand'!B25),"",'N1. Demand'!B25) -> Volume - Boundary metered (VB-Country) | C14: 1 | D14: =C95 -> 1 | E14: 1 | F14: 0 | G14: 0 | H14: 0 | I14: 0
B15: =IF(ISBLANK('N1. Demand'!B26),"",'N1. Demand'!B26) -> Volume - Individual metered (VI) small | C15: 0 | D15: =C96 -> 0 | E15: 0 | F15: 1546841.226 | G15: 1551056.793 | H15: 1548835.213 | I15: 1533909.928
B16: =IF(ISBLANK('N1. Demand'!B27),"",'N1. Demand'!B27) -> Volume - Individual metered (VI) large | C16: 0 | D16: =C97 -> 0 | E16: 0 | F16: 15082.15532 | G16: 15123.25833 | H16: 15101.59727 | I16: 14956.07137
B17: =IF(ISBLANK('N1. Demand'!B28),"",'N1. Demand'!B28) -> Volume - Boundary metered (VB) | C17: 0 | D17: =C98 -> 0 | E17: 0 | F17: 916.7929996 | G17: 919.4375263 | H17: 918.1915866 | I17: 909.2630604
B18: =IF(ISBLANK('N1. Demand'!B29),"",'N1. Demand'!B29) -> Volume - Residential distributed generation technology (VRT3) | C18: 0 | D18: =C99 -> 0 | E18: 0 | F18: 0 | G18: 0 | H18: 0 | I18: 0
B19: =IF(ISBLANK('N1. Demand'!B30),"",'N1. Demand'!B30) -> Volume - Residential distributed generation technology (VRT4) | C19: 1 | D19: =C100 -> 1 | E19: 1 | F19: 1 | G19: 1 | H19: 1 | I19: 1
B20: =IF(ISBLANK('N1. Demand'!B31),"",'N1. Demand'!B31) -> Volume - Residential distributed generation technology (VRT6) | C20: 0 | D20: =C101 -> 0 | E20: 0 | F20: 0 | G20: 0 | H20: 0 | I20: 0
B21: =IF(ISBLANK('N1. Demand'!B32),"",'N1. Demand'!B32) -> Volume - Residential distributed generation technology (VRT10) | C21: 0 | D21: =C102 -> 0 | E21: 0 | F21: 0 | G21: 0 | H21: 0 | I21: 0
B22: =IF(ISBLANK('N1. Demand'!B33),"",'N1. Demand'!B33) -> Demand - Capacity coastal (DC1) | C22: 33 | D22: =C103 -> 33 | E22: 35 | F22: 35 | G22: 35 | H22: 35 | I22: 35
B23: =IF(ISBLANK('N1. Demand'!B34),"",'N1. Demand'!B34) -> Demand - Capacity coastal (DC2) | C23: 74 | D23: =C104 -> 74 | E23: 74 | F23: 74 | G23: 74 | H23: 74 | I23: 74
B24: =IF(ISBLANK('N1. Demand'!B35),"",'N1. Demand'!B35) -> Demand - Capacity coastal (DC3) | C24: 100 | D24: =C105 -> 100 | E24: 100 | F24: 100 | G24: 100 | H24: 100 | I24: 100
B25: =IF(ISBLANK('N1. Demand'!B36),"",'N1. Demand'!B36) -> Demand - Capacity coastal (DC4) | C25: 43 | D25: =C106 -> 43 | E25: 43 | F25: 43 | G25: 43 | H25: 43 | I25: 43
B26: =IF(ISBLANK('N1. Demand'!B37),"",'N1. Demand'!B37) -> Demand - Capacity coastal (DC5) | C26: 2 | D26: =C107 -> 2 | E26: 2 | F26: 2 | G26: 2 | H26: 2 | I26: 2
B27: =IF(ISBLANK('N1. Demand'!B38),"",'N1. Demand'!B38) -> Demand - Capacity coastal (DC6) | C27: 27 | D27: =C108 -> 27 | E27: 27 | F27: 27 | G27: 27 | H27: 27 | I27: 27
B28: =IF(ISBLANK('N1. Demand'!B39),"",'N1. Demand'!B39) -> Demand - Capacity coastal (DC7) | C28: 18 | D28: =C109 -> 18 | E28: 18 | F28: 18 | G28: 18 | H28: 18 | I28: 18
B29: =IF(ISBLANK('N1. Demand'!B40),"",'N1. Demand'!B40) -> Demand - Capacity coastal (DC8) | C29: 3 | D29: =C110 -> 3 | E29: 3 | F29: 3 | G29: 3 | H29: 3 | I29: 3
B30: =IF(ISBLANK('N1. Demand'!B41),"",'N1. Demand'!B41) -> Demand - Capacity coastal (DC9) | C30: 2 | D30: =C111 -> 2 | E30: 2 | F30: 2 | G30: 2 | H30: 2 | I30: 2
B31: =IF(ISBLANK('N1. Demand'!B42),"",'N1. Demand'!B42) -> Demand - Capacity coastal (DC10) | C31: 11 | D31: =C112 -> 11 | E31: 11 | F31: 11 | G31: 11 | H31: 11 | I31: 11
B32: =IF(ISBLANK('N1. Demand'!B43),"",'N1. Demand'!B43) -> Demand - Capacity coastal (DC11) | C32: 0 | D32: =C113 -> 0 | E32: 0 | F32: 0 | G32: 0 | H32: 0 | I32: 0
B33: =IF(ISBLANK('N1. Demand'!B44),"",'N1. Demand'!B44) -> Demand - Capacity country (DC Country) - Distance | C33: 44 | D33: =C114 -> 44 | E33: 44 | F33: 44 | G33: 44 | H33: 44 | I33: 44
B34: =IF(ISBLANK('N1. Demand'!B45),"",'N1. Demand'!B45) -> Demand - Capacity country (DC Country) - Pressure reduction | D34: =C115 -> 
B35: =IF(ISBLANK('N1. Demand'!B46),"",'N1. Demand'!B46) -> Demand - Capacity - First response (DCFR1) | C35: 1 | D35: =C116 -> 1 | E35: 1 | F35: 1 | G35: 1 | H35: 1 | I35: 1
B36: =IF(ISBLANK('N1. Demand'!B47),"",'N1. Demand'!B47) -> Demand - Capacity - First response (DCFR6) | C36: 3 | D36: =C117 -> 3 | E36: 3 | F36: 3 | G36: 3 | H36: 3 | I36: 3
B37: =IF(ISBLANK('N1. Demand'!B48),"",'N1. Demand'!B48) -> Demand - Throughput (DT) | C37: 12 | D37: =C118 -> 12 | E37: 12 | F37: 12 | G37: 12 | H37: 12 | I37: 12
B38: =IF(ISBLANK('N1. Demand'!B49),"",'N1. Demand'!B49) -> Demand - Major end-user (throughput) (DMT1) | C38: 1 | D38: =C119 -> 1 | E38: 1 | F38: 1 | G38: 1 | H38: 1 | I38: 1
B39: =IF(ISBLANK('N1. Demand'!B50),"",'N1. Demand'!B50) -> Demand - Major end-user (throughput) (DMT2) | C39: 1 | D39: =C120 -> 1 | E39: 1 | F39: 1 | G39: 1 | H39: 1 | I39: 1
B40: =IF(ISBLANK('N1. Demand'!B51),"",'N1. Demand'!B51) -> Demand - Major end-user (throughput) (DMT3) | C40: 0 | D40: =C121 -> 0 | E40: 0 | F40: 0 | G40: 0 | H40: 0 | I40: 0
B41: =IF(ISBLANK('N1. Demand'!B52),"",'N1. Demand'!B52) -> Demand - Major end-user (throughput) (DMT4) | C41: 0 | D41: =C122 -> 0 | E41: 0 | F41: 0 | G41: 0 | H41: 0 | I41: 0
B42: =IF(ISBLANK('N1. Demand'!B53),"",'N1. Demand'!B53) -> Demand - Major end-user (throughput) (DMT5) | C42: 0 | D42: =C123 -> 0 | E42: 0 | F42: 0 | G42: 0 | H42: 0 | I42: 0
B43: =IF(ISBLANK('N1. Demand'!B54),"",'N1. Demand'!B54) -> Demand - Major end-user (throughput) - First response (DMTFR3) | C43: 1 | D43: =C124 -> 1 | E43: 1 | F43: 1 | G43: 1 | H43: 1 | I43: 1
B44: =IF(ISBLANK('N1. Demand'!B55),"",'N1. Demand'!B55) -> Prudent discounts | C44: 4 | D44: =C125 -> 4 | E44: 2 | F44: 2 | G44: 2 | H44: 2 | I44: 2
B45: =IF(ISBLANK('N1. Demand'!B56),"",'N1. Demand'!B56) ->  | D45: =C126 -> 
B46: =IF(ISBLANK('N1. Demand'!B57),"",'N1. Demand'!B57) ->  | D46: =C127 -> 
B47: =IF(ISBLANK('N1. Demand'!B58),"",'N1. Demand'!B58) ->  | D47: =C128 -> 
B48: =IF(ISBLANK('N1. Demand'!B59),"",'N1. Demand'!B59) ->  | D48: =C129 -> 
B49: =IF(ISBLANK('N1. Demand'!B60),"",'N1. Demand'!B60) ->  | D49: =C130 -> 
B50: =IF(ISBLANK('N1. Demand'!B61),"",'N1. Demand'!B61) ->  | D50: =C131 ->  | E50: =D131 ->  | F50: =E131 ->  | G50: =F131 ->  | H50: =G131 ->  | I50: =H131 -> 
B51: =IF(ISBLANK('N1. Demand'!B62),"",'N1. Demand'!B62) -> 
B52: =IF(ISBLANK('N1. Demand'!B63),"",'N1. Demand'!B63) -> 
B53: =IF(ISBLANK('N1. Demand'!B64),"",'N1. Demand'!B64) ->  | D53: =C134 -> 
B54: =IF(ISBLANK('N1. Demand'!B65),"",'N1. Demand'!B65) ->  | D54: =C135 -> 
B55: =IF(ISBLANK('N1. Demand'!B66),"",'N1. Demand'!B66) ->  | D55: =C136 -> 
B56: =IF(ISBLANK('N1. Demand'!B67),"",'N1. Demand'!B67) ->  | D56: =C137 -> 
B57: =IF(ISBLANK('N1. Demand'!B68),"",'N1. Demand'!B68) ->  | D57: =C138 -> 
B58: =IF(ISBLANK('N1. Demand'!B69),"",'N1. Demand'!B69) ->  | D58: =C139 ->  | E58: =D139 ->  | F58: =E139 ->  | G58: =F139 ->  | H58: =G139 ->  | I58: =H139 -> 
B59: =IF(ISBLANK('N1. Demand'!B70),"",'N1. Demand'!B70) -> 
B60: =IF(ISBLANK('N1. Demand'!B71),"",'N1. Demand'!B71) -> 
B61: =IF(ISBLANK('N1. Demand'!B72),"",'N1. Demand'!B72) -> 
B62: =IF(ISBLANK('N1. Demand'!B73),"",'N1. Demand'!B73) -> 
B63: =IF(ISBLANK('N1. Demand'!B74),"",'N1. Demand'!B74) -> 
B64: =IF(ISBLANK('N1. Demand'!B75),"",'N1. Demand'!B75) -> 
B65: =IF(ISBLANK('N1. Demand'!B76),"",'N1. Demand'!B76) -> 
B66: =IF(ISBLANK('N1. Demand'!B77),"",'N1. Demand'!B77) -> 
B67: =IF(ISBLANK('N1. Demand'!B78),"",'N1. Demand'!B78) -> 
B68: =IF(ISBLANK('N1. Demand'!B79),"",'N1. Demand'!B79) -> 
B69: =IF(ISBLANK('N1. Demand'!B80),"",'N1. Demand'!B80) -> 
B70: =IF(ISBLANK('N1. Demand'!B81),"",'N1. Demand'!B81) -> 
B71: =IF(ISBLANK('N1. Demand'!B82),"",'N1. Demand'!B82) -> 
B72: =IF(ISBLANK('N1. Demand'!B83),"",'N1. Demand'!B83) -> 
B73: =IF(ISBLANK('N1. Demand'!B84),"",'N1. Demand'!B84) -> 
B74: =IF(ISBLANK('N1. Demand'!B85),"",'N1. Demand'!B85) -> 
B75: =IF(ISBLANK('N1. Demand'!B86),"",'N1. Demand'!B86) -> 
B76: =IF(ISBLANK('N1. Demand'!B87),"",'N1. Demand'!B87) -> 
B77: =IF(ISBLANK('N1. Demand'!B88),"",'N1. Demand'!B88) -> 
B78: =IF(ISBLANK('N1. Demand'!B89),"",'N1. Demand'!B89) -> 
B79: =IF(ISBLANK('N1. Demand'!B90),"",'N1. Demand'!B90) -> 
B80: =IF(ISBLANK('N1. Demand'!B91),"",'N1. Demand'!B91) -> 
B81: =IF(ISBLANK('N1. Demand'!B92),"",'N1. Demand'!B92) -> 
B82: =IF(ISBLANK('N1. Demand'!B93),"",'N1. Demand'!B93) -> 
B83: =IF(ISBLANK('N1. Demand'!B94),"",'N1. Demand'!B94) -> 
B84: =IF(ISBLANK('N1. Demand'!B95),"",'N1. Demand'!B95) -> 
B85: =IF(ISBLANK('N1. Demand'!B96),"",'N1. Demand'!B96) -> 
B86: Total | C86: =SUM(C11:C85) -> 1515117.372 | D86: =SUM(D11:D85) -> 1535266.416 | E86: 1552491.568 | F86: 1563221.174 | G86: 1567480.489 | H86: 1565236.002 | I86: 1550156.263
B88: S1.2.2 - CUSTOMER NUMBERS - END OF YEAR
C89: VOLUMES
C90: 0's
C91: =dms_y1 -> 2023-24 | D91: =dms_y2 -> 2024-25 | E91: =dms_y3 -> 2025-26 | F91: =dms_y4 -> 2026-27 | G91: =dms_y5 -> 2027-28 | H91: =dms_y6 -> 2028-29 | I91: =dms_y7 -> 2029-30
B92: =IF(ISBLANK(B11),"",B11) -> Volume - Individual metered (VI-Coastal) | C92: 1430353.7 | D92: 1446435.794 | E92: 0 | F92: 0 | G92: 0 | H92: 0 | I92: 0
B93: Volume - Individual metered (VI-Country) | C93: 103631.8691 | D93: 104764.5107 | E93: 0 | F93: 0 | G93: 0 | H93: 0 | I93: 0
B94: Volume - Boundary metered (VB-Coastal) | C94: 898.8468018 | D94: 909.2628125 | E94: 0 | F94: 0 | G94: 0 | H94: 0 | I94: 0
B95: Volume - Boundary metered (VB-Country) | C95: 1 | D95: 1 | E95: 0 | F95: 0 | G95: 0 | H95: 0 | I95: 0
B96: Volume - Individual metered (VI) small | C96: 0 | D96: 0 | E96: 1546841.226 | F96: 1551056.793 | G96: 1548835.213 | H96: 1533909.928 | I96: 1498229.023
B97: Volume - Individual metered (VI) large | C97: 0 | D97: 0 | E97: 15082.15532 | F97: 15123.25833 | G97: 15101.59727 | H97: 14956.07137 | I97: 14608.17209
B98: Volume - Boundary metered (VB) | C98: 0 | D98: 0 | E98: 916.7929996 | F98: 919.4375263 | G98: 918.1915866 | H98: 909.2630604 | I98: 887.7794831
B99: Volume - Residential distributed generation technology (VRT3) | C99: 0 | D99: 0 | E99: 0 | F99: 0 | G99: 0 | H99: 0 | I99: 0
B100: Volume - Residential distributed generation technology (VRT4) | C100: 1 | D100: 1 | E100: 1 | F100: 1 | G100: 1 | H100: 1 | I100: 1
B101: Volume - Residential distributed generation technology (VRT6) | C101: 0 | D101: 0 | E101: 0 | F101: 0 | G101: 0 | H101: 0 | I101: 0
B102: Volume - Residential distributed generation technology (VRT10) | C102: 0 | D102: 0 | E102: 0 | F102: 0 | G102: 0 | H102: 0 | I102: 0
B103: Demand - Capacity coastal (DC1) | C103: 33 | D103: 35 | E103: 35 | F103: 35 | G103: 35 | H103: 35 | I103: 35
B104: Demand - Capacity coastal (DC2) | C104: 74 | D104: 74 | E104: 74 | F104: 74 | G104: 74 | H104: 74 | I104: 74
B105: Demand - Capacity coastal (DC3) | C105: 100 | D105: 100 | E105: 100 | F105: 100 | G105: 100 | H105: 100 | I105: 100
B106: Demand - Capacity coastal (DC4) | C106: 43 | D106: 43 | E106: 43 | F106: 43 | G106: 43 | H106: 43 | I106: 43
B107: Demand - Capacity coastal (DC5) | C107: 2 | D107: 2 | E107: 2 | F107: 2 | G107: 2 | H107: 2 | I107: 2
B108: Demand - Capacity coastal (DC6) | C108: 27 | D108: 27 | E108: 27 | F108: 27 | G108: 27 | H108: 27 | I108: 27
B109: Demand - Capacity coastal (DC7) | C109: 18 | D109: 18 | E109: 18 | F109: 18 | G109: 18 | H109: 18 | I109: 18
B110: Demand - Capacity coastal (DC8) | C110: 3 | D110: 3 | E110: 3 | F110: 3 | G110: 3 | H110: 3 | I110: 3
B111: Demand - Capacity coastal (DC9) | C111: 2 | D111: 2 | E111: 2 | F111: 2 | G111: 2 | H111: 2 | I111: 2
B112: Demand - Capacity coastal (DC10) | C112: 11 | D112: 11 | E112: 11 | F112: 11 | G112: 11 | H112: 11 | I112: 11
B113: Demand - Capacity coastal (DC11) | C113: 0 | D113: 0 | E113: 0 | F113: 0 | G113: 0 | H113: 0 | I113: 0
B114: Demand - Capacity country (DC Country) - Distance | C114: 44 | D114: 44 | E114: 44 | F114: 44 | G114: 44 | H114: 44 | I114: 44
B115: Demand - Capacity country (DC Country) - Pressure reduction
B116: Demand - Capacity - First response (DCFR1) | C116: 1 | D116: 1 | E116: 1 | F116: 1 | G116: 1 | H116: 1 | I116: 1
B117: Demand - Capacity - First response (DCFR6) | C117: 3 | D117: 3 | E117: 3 | F117: 3 | G117: 3 | H117: 3 | I117: 3
B118: Demand - Throughput (DT) | C118: 12 | D118: 12 | E118: 12 | F118: 12 | G118: 12 | H118: 12 | I118: 12
B119: Demand - Major end-user (throughput) (DMT1) | C119: 1 | D119: 1 | E119: 1 | F119: 1 | G119: 1 | H119: 1 | I119: 1
B120: Demand - Major end-user (throughput) (DMT2) | C120: 1 | D120: 1 | E120: 1 | F120: 1 | G120: 1 | H120: 1 | I120: 1
B121: Demand - Major end-user (throughput) (DMT3) | C121: 0 | D121: 0 | E121: 0 | F121: 0 | G121: 0 | H121: 0 | I121: 0
B122: Demand - Major end-user (throughput) (DMT4) | C122: 0 | D122: 0 | E122: 0 | F122: 0 | G122: 0 | H122: 0 | I122: 0
B123: Demand - Major end-user (throughput) (DMT5) | C123: 0 | D123: 0 | E123: 0 | F123: 0 | G123: 0 | H123: 0 | I123: 0
B124: =IF(ISBLANK(B43),"",B43) -> Demand - Major end-user (throughput) - First response (DMTFR3) | C124: 1 | D124: 1 | E124: 1 | F124: 1 | G124: 1 | H124: 1 | I124: 1
B125: Prudent discounts | C125: 4 | D125: 2 | E125: 2 | F125: 2 | G125: 2 | H125: 2 | I125: 2
B141: =IF(ISBLANK(B60),"",B60) -> 
B167: Total | C167: =SUM(C92:C166) -> 1535266.416 | D167: =SUM(D92:D166) -> 1552491.568 | E167: =SUM(E92:E166) -> 1563221.174 | F167: =SUM(F92:F166) -> 1567480.489 | G167: =SUM(G92:G166) -> 1565236.002 | H167: =SUM(H92:H166) -> 1550156.263 | I167: =SUM(I92:I166) -> 1514105.975
B169: S1.2.3 - TOTAL CUSTOMER CONNECTIONS
C170: VOLUMES
C171: 0's
C172: =dms_y1 -> 2023-24 | D172: =dms_y2 -> 2024-25 | E172: =dms_y3 -> 2025-26 | F172: =dms_y4 -> 2026-27 | G172: =dms_y5 -> 2027-28 | H172: =dms_y6 -> 2028-29 | I172: =dms_y7 -> 2029-30
B173: =IF(ISBLANK(B11),"",B11) -> Volume - Individual metered (VI-Coastal) | C173: 39827.48131 | D173: 37455.08617 | E173: 0 | F173: 0 | G173: 0 | H173: 0 | I173: 0
B174: Volume - Individual metered (VI-Country) | C174: 2886.080815 | D174: 2713.269211 | E174: 0 | F174: 0 | G174: 0 | H174: 0 | I174: 0
B175: Volume - Boundary metered (VB-Coastal) | C175: 24.99952512 | D175: 23.54113901 | E175: 0 | F175: 0 | G175: 0 | H175: 0 | I175: 0
B176: Volume - Boundary metered (VB-Country) | C176: 0.02802878038 | D176: 0.02603950427 | E176: 0 | F176: 0 | G176: 0 | H176: 0 | I176: 0
B177: Volume - Individual metered (VI) small | C177: 0 | D177: 0 | E177: 35712.29993 | F177: 33399.36594 | G177: 30697.66719 | H177: 26681.69986 | I177: 22809.43487
B178: Volume - Individual metered (VI) large | C178: 0 | D178: 0 | E178: 348.2053912 | F178: 325.6536069 | G178: 299.3112522 | H178: 260.1543938 | I178: 222.3986752
B179: Volume - Boundary metered (VB) | C179: 0 | D179: 0 | E179: 21.16348802 | F179: 19.796951 | G179: 18.19770715 | H179: 15.81694048 | I179: 13.51835305
B180: Volume - Residential distributed generation technology (VRT3) | C180: 0 | D180: 0 | E180: 0 | F180: 0 | G180: 0 | H180: 0 | I180: 0
B181: Volume - Residential distributed generation technology (VRT4) | C181: 0 | D181: 0 | E181: 0 | F181: 0 | G181: 0 | H181: 0 | I181: 0
B182: Volume - Residential distributed generation technology (VRT6) | C182: 0 | D182: 0 | E182: 0 | F182: 0 | G182: 0 | H182: 0 | I182: 0
B183: Volume - Residential distributed generation technology (VRT10) | C183: 0 | D183: 0 | E183: 0 | F183: 0 | G183: 0 | H183: 0 | I183: 0
B184: Demand - Capacity coastal (DC1) | C184: 0 | D184: 0 | E184: 0 | F184: 0 | G184: 0 | H184: 0 | I184: 0
B185: Demand - Capacity coastal (DC2) | C185: 0 | D185: 0 | E185: 0 | F185: 0 | G185: 0 | H185: 0 | I185: 0
B186: Demand - Capacity coastal (DC3) | C186: 0 | D186: 0 | E186: 0 | F186: 0 | G186: 0 | H186: 0 | I186: 0
B187: Demand - Capacity coastal (DC4) | C187: 0 | D187: 0 | E187: 0 | F187: 0 | G187: 0 | H187: 0 | I187: 0
B188: Demand - Capacity coastal (DC5) | C188: 0 | D188: 0 | E188: 0 | F188: 0 | G188: 0 | H188: 0 | I188: 0
B189: Demand - Capacity coastal (DC6) | C189: 0 | D189: 0 | E189: 0 | F189: 0 | G189: 0 | H189: 0 | I189: 0
B190: Demand - Capacity coastal (DC7) | C190: 0 | D190: 0 | E190: 0 | F190: 0 | G190: 0 | H190: 0 | I190: 0
B191: Demand - Capacity coastal (DC8) | C191: 0 | D191: 0 | E191: 0 | F191: 0 | G191: 0 | H191: 0 | I191: 0
B192: Demand - Capacity coastal (DC9) | C192: 0 | D192: 0 | E192: 0 | F192: 0 | G192: 0 | H192: 0 | I192: 0
B193: Demand - Capacity coastal (DC10) | C193: 0 | D193: 0 | E193: 0 | F193: 0 | G193: 0 | H193: 0 | I193: 0
B194: Demand - Capacity coastal (DC11) | C194: 0 | D194: 0 | E194: 0 | F194: 0 | G194: 0 | H194: 0 | I194: 0
B195: Demand - Capacity country (DC Country) - Distance | C195: 0 | D195: 0 | E195: 0 | F195: 0 | G195: 0 | H195: 0 | I195: 0
B196: Demand - Capacity country (DC Country) - Pressure reduction | C196: 0 | D196: 0 | E196: 0 | F196: 0 | G196: 0 | H196: 0 | I196: 0
B197: Demand - Capacity - First response (DCFR1) | C197: 0 | D197: 0 | E197: 0 | F197: 0 | G197: 0 | H197: 0 | I197: 0
B198: Demand - Capacity - First response (DCFR6) | C198: 0 | D198: 0 | E198: 0 | F198: 0 | G198: 0 | H198: 0 | I198: 0
B199: Demand - Throughput (DT) | C199: 0 | D199: 0 | E199: 0 | F199: 0 | G199: 0 | H199: 0 | I199: 0
B200: Demand - Major end-user (throughput) (DMT1) | C200: 0 | D200: 0 | E200: 0 | F200: 0 | G200: 0 | H200: 0 | I200: 0
B201: Demand - Major end-user (throughput) (DMT2) | C201: 0 | D201: 0 | E201: 0 | F201: 0 | G201: 0 | H201: 0 | I201: 0
B202: Demand - Major end-user (throughput) (DMT3) | C202: 0 | D202: 0 | E202: 0 | F202: 0 | G202: 0 | H202: 0 | I202: 0
B203: Demand - Major end-user (throughput) (DMT4) | C203: 0 | D203: 0 | E203: 0 | F203: 0 | G203: 0 | H203: 0 | I203: 0
B204: Demand - Major end-user (throughput) (DMT5) | C204: 0 | D204: 0 | E204: 0 | F204: 0 | G204: 0 | H204: 0 | I204: 0
B205: =IF(ISBLANK(B43),"",B43) -> Demand - Major end-user (throughput) - First response (DMTFR3) | C205: 0 | D205: 0 | E205: 0 | F205: 0 | G205: 0 | H205: 0 | I205: 0
B206: Prudent discounts | C206: 0 | D206: 0 | E206: 0 | F206: 0 | G206: 0 | H206: 0 | I206: 0
B222: =IF(ISBLANK(B60),"",B60) -> 
B248: Total | C248: =SUM(C173:C247) -> 42738.58968 | D248: =SUM(D173:D247) -> 40191.92256 | E248: =SUM(E173:E247) -> 36081.66881 | F248: =SUM(F173:F247) -> 33744.81649 | G248: =SUM(G173:G247) -> 31015.17615 | H248: =SUM(H173:H247) -> 26957.6712 | I248: =SUM(I173:I247) -> 23045.3519
B250: S1.2.4 - TOTAL CUSTOMER DISCONNECTIONS
C251: VOLUMES
C252: 0's
C253: =dms_y1 -> 2023-24 | D253: =dms_y2 -> 2024-25 | E253: =dms_y3 -> 2025-26 | F253: =dms_y4 -> 2026-27 | G253: =dms_y5 -> 2027-28 | H253: =dms_y6 -> 2028-29 | I253: =dms_y7 -> 2029-30
B254: =IF(ISBLANK(B11),"",B11) -> Volume - Individual metered (VI-Coastal) | C254: 21050.89626 | D254: 21403.7752 | E254: 0 | F254: 0 | G254: 0 | H254: 0 | I254: 0
B255: Volume - Individual metered (VI-Country) | C255: 1525.443886 | D255: 1550.502486 | E255: 0 | F255: 0 | G255: 0 | H255: 0 | I255: 0
B256: Volume - Boundary metered (VB-Coastal) | C256: 13.21354986 | D256: 13.4526255 | E256: 0 | F256: 0 | G256: 0 | H256: 0 | I256: 0
B257: Volume - Boundary metered (VB-Country) | C257: 0.01481466889 | D257: 0.01488032074 | E257: 0 | F257: 0 | G257: 0 | H257: 0 | I257: 0
B258: Volume - Individual metered (VI) small | C258: 0 | D258: 0 | E258: 25092.51276 | F258: 29183.62998 | G258: 32919.15685 | H258: 41607.0451 | I258: 58490.64832
B259: Volume - Individual metered (VI) large | C259: 0 | D259: 0 | E259: 244.6593538 | F259: 284.5489457 | G259: 320.9714276 | H259: 405.6808843 | I259: 570.3009641
B260: Volume - Boundary metered (VB) | C260: 0 | D260: 0 | E260: 14.87008942 | F260: 17.29813954 | G260: 19.51461564 | H260: 24.66470124 | I260: 34.66535838
B261: Volume - Residential distributed generation technology (VRT3) | C261: 0 | D261: 0 | E261: 0 | F261: 0 | G261: 0 | H261: 0 | I261: 0
B262: Volume - Residential distributed generation technology (VRT4) | C262: 0 | D262: 0 | E262: 0 | F262: 0 | G262: 0 | H262: 0 | I262: 0
B263: Volume - Residential distributed generation technology (VRT6) | C263: 0 | D263: 0 | E263: 0 | F263: 0 | G263: 0 | H263: 0 | I263: 0
B264: Volume - Residential distributed generation technology (VRT10) | C264: 0 | D264: 0 | E264: 0 | F264: 0 | G264: 0 | H264: 0 | I264: 0
B265: Demand - Capacity coastal (DC1) | C265: 0 | D265: 0 | E265: 0 | F265: 0 | G265: 0 | H265: 0 | I265: 0
B266: Demand - Capacity coastal (DC2) | C266: 0 | D266: 0 | E266: 0 | F266: 0 | G266: 0 | H266: 0 | I266: 0
B267: Demand - Capacity coastal (DC3) | C267: 0 | D267: 0 | E267: 0 | F267: 0 | G267: 0 | H267: 0 | I267: 0
B268: Demand - Capacity coastal (DC4) | C268: 0 | D268: 0 | E268: 0 | F268: 0 | G268: 0 | H268: 0 | I268: 0
B269: Demand - Capacity coastal (DC5) | C269: 0 | D269: 0 | E269: 0 | F269: 0 | G269: 0 | H269: 0 | I269: 0
B270: Demand - Capacity coastal (DC6) | C270: 0 | D270: 0 | E270: 0 | F270: 0 | G270: 0 | H270: 0 | I270: 0
B271: Demand - Capacity coastal (DC7) | C271: 0 | D271: 0 | E271: 0 | F271: 0 | G271: 0 | H271: 0 | I271: 0
B272: Demand - Capacity coastal (DC8) | C272: 0 | D272: 0 | E272: 0 | F272: 0 | G272: 0 | H272: 0 | I272: 0
B273: Demand - Capacity coastal (DC9) | C273: 0 | D273: 0 | E273: 0 | F273: 0 | G273: 0 | H273: 0 | I273: 0
B274: Demand - Capacity coastal (DC10) | C274: 0 | D274: 0 | E274: 0 | F274: 0 | G274: 0 | H274: 0 | I274: 0
B275: Demand - Capacity coastal (DC11) | C275: 0 | D275: 0 | E275: 0 | F275: 0 | G275: 0 | H275: 0 | I275: 0
B276: Demand - Capacity country (DC Country) - Distance | C276: 0 | D276: 0 | E276: 0 | F276: 0 | G276: 0 | H276: 0 | I276: 0
B277: Demand - Capacity country (DC Country) - Pressure reduction | C277: 0 | D277: 0 | E277: 0 | F277: 0 | G277: 0 | H277: 0 | I277: 0
B278: Demand - Capacity - First response (DCFR1) | C278: 0 | D278: 0 | E278: 0 | F278: 0 | G278: 0 | H278: 0 | I278: 0
B279: Demand - Capacity - First response (DCFR6) | C279: 0 | D279: 0 | E279: 0 | F279: 0 | G279: 0 | H279: 0 | I279: 0
B280: Demand - Throughput (DT) | C280: 0 | D280: 0 | E280: 0 | F280: 0 | G280: 0 | H280: 0 | I280: 0
B281: Demand - Major end-user (throughput) (DMT1) | C281: 0 | D281: 0 | E281: 0 | F281: 0 | G281: 0 | H281: 0 | I281: 0
B282: Demand - Major end-user (throughput) (DMT2) | C282: 0 | D282: 0 | E282: 0 | F282: 0 | G282: 0 | H282: 0 | I282: 0
B283: Demand - Major end-user (throughput) (DMT3) | C283: 0 | D283: 0 | E283: 0 | F283: 0 | G283: 0 | H283: 0 | I283: 0
B284: Demand - Major end-user (throughput) (DMT4) | C284: 0 | D284: 0 | E284: 0 | F284: 0 | G284: 0 | H284: 0 | I284: 0
... 5 more rows

Sheet S10. Supply Quality
B1: =INDEX(dms_Worksheet_List,MATCH(dms_Model,dms_Model_List)) -> REGULATORY REPORTING STATEMENT
B2: =dms_TradingNameFull -> Jemena Gas Networks (NSW) Ltd
B3: =dms_Header_Span -> 2023-24 to 2029-30
B4: S10. SUPPLY QUALITY
B5: FINAL RIN TEMPLATE - FEBRUARY 2024
B7: S10.1 - PRESSURE FAULTS
C8: NUMBER OF EVENTS
C9: =dms_y1 -> 2023-24 | D9: =dms_y2 -> 2024-25 | E9: =dms_y3 -> 2025-26 | F9: =dms_y4 -> 2026-27 | G9: =dms_y5 -> 2027-28 | H9: =dms_y6 -> 2028-29 | I9: =dms_y7 -> 2029-30
B10: Poor Pressure events - mains | C10: 0 | D10: 0 | E10: 0 | F10: 0 | G10: 0 | H10: 0 | I10: 0
B11: Poor Pressure events - services | C11: 918.75 | D11: 918.75 | E11: 918.75 | F11: 918.75 | G11: 918.75 | H11: 918.75 | I11: 918.75
B12: Poor Pressure event - meters | C12: 0 | D12: 0 | E12: 0 | F12: 0 | G12: 0 | H12: 0 | I12: 0
B13: Pressure events impacting 5+ customers | C13: 0 | D13: 0 | E13: 0 | F13: 0 | G13: 0 | H13: 0 | I13: 0
B14: Pressure events with >12 hr resolution | C14: 555.75 | D14: 555.75 | E14: 555.75 | F14: 555.75 | G14: 555.75 | H14: 555.75 | I14: 555.75

Sheet S11. Network reliability
B1: =INDEX(dms_Worksheet_List,MATCH(dms_Model,dms_Model_List)) -> REGULATORY REPORTING STATEMENT
B2: =dms_TradingNameFull -> Jemena Gas Networks (NSW) Ltd
B3: =dms_Header_Span -> 2023-24 to 2029-30
B4: S11. NETWORK RELIABILITY
B5: FINAL RIN TEMPLATE - FEBRUARY 2024
B7: S11.1 - NETWORK OUTAGES
B8: S11.1.1 - PLANNED
C9: NUMBER OF EVENTS
C10: =dms_y1 -> 2023-24 | D10: =dms_y2 -> 2024-25 | E10: =dms_y3 -> 2025-26 | F10: =dms_y4 -> 2026-27 | G10: =dms_y5 -> 2027-28 | H10: =dms_y6 -> 2028-29 | I10: =dms_y7 -> 2029-30
B11: Count of outage events | C11: 25334.75 | D11: 25334.75 | E11: 25334.75 | F11: 25334.75 | G11: 25334.75 | H11: 25334.75 | I11: 25334.75
B12: Outages affecting 5+ customers | C12: 1 | D12: 1 | E12: 1 | F12: 1 | G12: 1 | H12: 1 | I12: 1
B13: Outages with >12 hr supply interruption | C13: 0.25 | D13: 0.25 | E13: 0.25 | F13: 0.25 | G13: 0.25 | H13: 0.25 | I13: 0.25
B15: S11.1.2 - UNPLANNED
C16: NUMBER OF EVENTS
C17: =dms_y1 -> 2023-24 | D17: =dms_y2 -> 2024-25 | E17: =dms_y3 -> 2025-26 | F17: =dms_y4 -> 2026-27 | G17: =dms_y5 -> 2027-28 | H17: =dms_y6 -> 2028-29 | I17: =dms_y7 -> 2029-30
B18: Count of outage events | C18: 5194.75 | D18: 5194.75 | E18: 5194.75 | F18: 5194.75 | G18: 5194.75 | H18: 5194.75 | I18: 5194.75
B19: Outages affecting 5+ customers | C19: 32.5 | D19: 32.5 | E19: 32.5 | F19: 32.5 | G19: 32.5 | H19: 32.5 | I19: 32.5
B20: Outages with >12 hr supply interruption | C20: 2465 | D20: 2465 | E20: 2465 | F20: 2465 | G20: 2465 | H20: 2465 | I20: 2465
B24: S11.3 - UNACCOUNTED FOR GAS - TRANSMISSION AND DISTRIBUTION
C25: VOLUME
C26: GJ
B27: Place of loss | C27: =dms_y1 -> 2023-24 | D27: =dms_y2 -> 2024-25 | E27: =dms_y3 -> 2025-26 | F27: =dms_y4 -> 2026-27 | G27: =dms_y5 -> 2027-28 | H27: =dms_y6 -> 2028-29 | I27: =dms_y7 -> 2029-30
B28: Forecast UAG | C28: 2752340 | D28: 2751920 | E28: 2804270 | F28: 2807110 | G28: 2705640 | H28: 2607520 | I28: 2532600
B38: Total | C38: =SUM(C28:C37) -> 2752340 | D38: 2751920 | E38: 2804270 | F38: 2807110 | G38: 2705640 | H38: 2607520 | I38: 2532600

Sheet F3. Revenue
B1: =INDEX(dms_Worksheet_List,MATCH(dms_Model,dms_Model_List)) -> REGULATORY REPORTING STATEMENT
B2: =dms_TradingNameFull -> Jemena Gas Networks (NSW) Ltd
B3: =dms_Header_Span -> 2023-24 to 2029-30
B4: F3. REVENUE
B5: FINAL RIN TEMPLATE - FEBRUARY 2024
B7: F3.1 - REFERENCE SERVICES
B8: F3.1.1 - REVENUE - BY TARIFF
C9: REVENUE
C10: =CONCATENATE("$, real ",dms_DollarReal) -> $, real June 2025
B11: Tariff | C11: =dms_y1 -> 2023-24 | D11: =dms_y2 -> 2024-25 | E11: =dms_y3 -> 2025-26 | F11: =dms_y4 -> 2026-27 | G11: =dms_y5 -> 2027-28 | H11: =dms_y6 -> 2028-29 | I11: =dms_y7 -> 2029-30
B12: =IF(ISBLANK('N1. Demand'!B22),"",'N1. Demand'!B22) -> Volume - Individual metered (VI-Coastal)
B13: =IF(ISBLANK('N1. Demand'!B23),"",'N1. Demand'!B23) -> Volume - Individual metered (VI-Country)
B14: =IF(ISBLANK('N1. Demand'!B24),"",'N1. Demand'!B24) -> Volume - Boundary metered (VB-Coastal)
B15: =IF(ISBLANK('N1. Demand'!B25),"",'N1. Demand'!B25) -> Volume - Boundary metered (VB-Country)
B16: =IF(ISBLANK('N1. Demand'!B26),"",'N1. Demand'!B26) -> Volume - Individual metered (VI) small | C16: 390508432.1 | D16: 436834439.7 | E16: 442013035.3 | F16: 446417308.4 | G16: 447511511.4 | H16: 445391914.2 | I16: 437340344.8
B17: =IF(ISBLANK('N1. Demand'!B27),"",'N1. Demand'!B27) -> Volume - Individual metered (VI) large | C17: 69657309.53 | D17: 77920754.77 | E17: 79485071.05 | F17: 80016515.65 | G17: 79882724.23 | H17: 79150345.7 | I17: 77315825.32
B18: =IF(ISBLANK('N1. Demand'!B28),"",'N1. Demand'!B28) -> Volume - Boundary metered (VB) | C18: 7040568.012 | D18: 7673907.912 | E18: 7167574.565 | F18: 7268961.506 | G18: 7310555.855 | H18: 7298546.921 | I18: 7189091.617
B19: =IF(ISBLANK('N1. Demand'!B29),"",'N1. Demand'!B29) -> Volume - Residential distributed generation technology (VRT3) | C19: 0 | D19: 0 | E19: 0 | F19: 0 | G19: 0 | H19: 0 | I19: 0
B20: =IF(ISBLANK('N1. Demand'!B30),"",'N1. Demand'!B30) -> Volume - Residential distributed generation technology (VRT4)
B21: =IF(ISBLANK('N1. Demand'!B31),"",'N1. Demand'!B31) -> Volume - Residential distributed generation technology (VRT6) | C21: 0 | D21: 0 | E21: 0 | F21: 0 | G21: 0 | H21: 0 | I21: 0
B22: =IF(ISBLANK('N1. Demand'!B32),"",'N1. Demand'!B32) -> Volume - Residential distributed generation technology (VRT10) | C22: 0 | D22: 0 | E22: 0 | F22: 0 | G22: 0 | H22: 0 | I22: 0
B23: =IF(ISBLANK('N1. Demand'!B33),"",'N1. Demand'!B33) -> Demand - Capacity coastal (DC1) | C23: 2751082.724 | D23: 3421828.879 | E23: 4166746.578 | F23: 4246941.39 | G23: 4372181.847 | H23: 4411989.132 | I23: 4495169.543
B24: =IF(ISBLANK('N1. Demand'!B34),"",'N1. Demand'!B34) -> Demand - Capacity coastal (DC2) | C24: 5695308.627 | D24: 6917917.384 | E24: 6063967.032 | F24: 6178292.624 | G24: 6294773.627 | H24: 6413450.678 | I24: 6534365.178
B25: =IF(ISBLANK('N1. Demand'!B35),"",'N1. Demand'!B35) -> Demand - Capacity coastal (DC3) | C25: 10641719.63 | D25: 12853947.22 | E25: 11467116.07 | F25: 11691357.1 | G25: 11922661.23 | H25: 12085745.7 | I25: 12313601.5
B26: =IF(ISBLANK('N1. Demand'!B36),"",'N1. Demand'!B36) -> Demand - Capacity coastal (DC4) | C26: 4510247.04 | D26: 5581171.278 | E26: 4245618.006 | F26: 4325661.778 | G26: 4407214.636 | H26: 4490305.032 | I26: 4574961.953
B27: =IF(ISBLANK('N1. Demand'!B37),"",'N1. Demand'!B37) -> Demand - Capacity coastal (DC5)
B28: =IF(ISBLANK('N1. Demand'!B38),"",'N1. Demand'!B38) -> Demand - Capacity coastal (DC6) | C28: 2428953.625 | D28: 2774383.974 | E28: 2383658.731 | F28: 2430186.689 | G28: 2477236.52 | H28: 2523940.523 | I28: 2571525.048
B29: =IF(ISBLANK('N1. Demand'!B39),"",'N1. Demand'!B39) -> Demand - Capacity coastal (DC7) | C29: 2000212.651 | D29: 2425414.627 | E29: 2442751.747 | F29: 2488805.599 | G29: 2535727.717 | H29: 2583534.47 | I29: 2632242.536
B30: =IF(ISBLANK('N1. Demand'!B40),"",'N1. Demand'!B40) -> Demand - Capacity coastal (DC8)
B31: =IF(ISBLANK('N1. Demand'!B41),"",'N1. Demand'!B41) -> Demand - Capacity coastal (DC9)
B32: =IF(ISBLANK('N1. Demand'!B42),"",'N1. Demand'!B42) -> Demand - Capacity coastal (DC10) | C32: 710916.0816 | D32: 866867.8664 | E32: 676802.7747 | F32: 689562.7184 | G32: 702563.2287 | H32: 715808.8411 | I32: 729304.1766
B33: =IF(ISBLANK('N1. Demand'!B43),"",'N1. Demand'!B43) -> Demand - Capacity coastal (DC11) | C33: 0 | D33: 0 | E33: 0 | F33: 0 | G33: 0 | H33: 0 | I33: 0
B34: =IF(ISBLANK('N1. Demand'!B44),"",'N1. Demand'!B44) -> Demand - Capacity country (DC Country) - Distance | C34: 3699122.639 | D34: 4528471.656 | E34: 4154962.308 | F34: 4233296.924 | G34: 4313108.403 | H34: 4394424.589 | I34: 4477273.851
B35: =IF(ISBLANK('N1. Demand'!B45),"",'N1. Demand'!B45) -> Demand - Capacity country (DC Country) - Pressure reduction | C35: 260646.5559 | D35: 316626.4459 | E35: 273798.5329 | F35: 278960.5298 | G35: 284219.8473 | H35: 289578.3201 | I35: 295037.8176
B36: =IF(ISBLANK('N1. Demand'!B46),"",'N1. Demand'!B46) -> Demand - Capacity - First response (DCFR1)
B37: =IF(ISBLANK('N1. Demand'!B47),"",'N1. Demand'!B47) -> Demand - Capacity - First response (DCFR6)
B38: =IF(ISBLANK('N1. Demand'!B48),"",'N1. Demand'!B48) -> Demand - Throughput (DT) | C38: 1144108.162 | D38: 1204821.052 | E38: 1308298.594 | F38: 1332964.297 | G38: 1358095.029 | H38: 1383699.558 | I38: 1409786.816
B39: =IF(ISBLANK('N1. Demand'!B49),"",'N1. Demand'!B49) -> Demand - Major end-user (throughput) (DMT1)
B40: =IF(ISBLANK('N1. Demand'!B50),"",'N1. Demand'!B50) -> Demand - Major end-user (throughput) (DMT2)
B41: =IF(ISBLANK('N1. Demand'!B51),"",'N1. Demand'!B51) -> Demand - Major end-user (throughput) (DMT3) | C41: 0 | D41: 0 | E41: 0 | F41: 0 | G41: 0 | H41: 0 | I41: 0
B42: =IF(ISBLANK('N1. Demand'!B52),"",'N1. Demand'!B52) -> Demand - Major end-user (throughput) (DMT4) | C42: 0 | D42: 0 | E42: 0 | F42: 0 | G42: 0 | H42: 0 | I42: 0
B43: =IF(ISBLANK('N1. Demand'!B53),"",'N1. Demand'!B53) -> Demand - Major end-user (throughput) (DMT5) | C43: 0 | D43: 0 | E43: 0 | F43: 0 | G43: 0 | H43: 0 | I43: 0
B44: =IF(ISBLANK('N1. Demand'!B54),"",'N1. Demand'!B54) -> Demand - Major end-user (throughput) - First response (DMTFR3)
B45: =IF(ISBLANK('N1. Demand'!B55),"",'N1. Demand'!B55) -> Prudent discounts
B46: =IF(ISBLANK('N1. Demand'!B56),"",'N1. Demand'!B56) -> 
B47: =IF(ISBLANK('N1. Demand'!B57),"",'N1. Demand'!B57) -> 
B48: =IF(ISBLANK('N1. Demand'!B58),"",'N1. Demand'!B58) -> 
B49: =IF(ISBLANK('N1. Demand'!B59),"",'N1. Demand'!B59) -> 
B50: =IF(ISBLANK('N1. Demand'!B60),"",'N1. Demand'!B60) -> 
B51: =IF(ISBLANK('N1. Demand'!B61),"",'N1. Demand'!B61) -> 
B52: =IF(ISBLANK('N1. Demand'!B62),"",'N1. Demand'!B62) -> 
B53: =IF(ISBLANK('N1. Demand'!B63),"",'N1. Demand'!B63) -> 
B54: =IF(ISBLANK('N1. Demand'!B64),"",'N1. Demand'!B64) -> 
B55: =IF(ISBLANK('N1. Demand'!B65),"",'N1. Demand'!B65) -> 
B56: =IF(ISBLANK('N1. Demand'!B66),"",'N1. Demand'!B66) -> 
B57: =IF(ISBLANK('N1. Demand'!B67),"",'N1. Demand'!B67) -> 
B58: =IF(ISBLANK('N1. Demand'!B68),"",'N1. Demand'!B68) -> 
B59: =IF(ISBLANK('N1. Demand'!B69),"",'N1. Demand'!B69) -> 
B60: =IF(ISBLANK('N1. Demand'!B70),"",'N1. Demand'!B70) -> 
B61: =IF(ISBLANK('N1. Demand'!B71),"",'N1. Demand'!B71) -> 
B62: =IF(ISBLANK('N1. Demand'!B72),"",'N1. Demand'!B72) -> 
B63: =IF(ISBLANK('N1. Demand'!B73),"",'N1. Demand'!B73) -> 
B64: =IF(ISBLANK('N1. Demand'!B74),"",'N1. Demand'!B74) -> 
B65: =IF(ISBLANK('N1. Demand'!B75),"",'N1. Demand'!B75) -> 
B66: =IF(ISBLANK('N1. Demand'!B76),"",'N1. Demand'!B76) -> 
B67: =IF(ISBLANK('N1. Demand'!B77),"",'N1. Demand'!B77) -> 
B68: =IF(ISBLANK('N1. Demand'!B78),"",'N1. Demand'!B78) -> 
B69: =IF(ISBLANK('N1. Demand'!B79),"",'N1. Demand'!B79) -> 
B70: =IF(ISBLANK('N1. Demand'!B80),"",'N1. Demand'!B80) -> 
B71: =IF(ISBLANK('N1. Demand'!B81),"",'N1. Demand'!B81) -> 
B72: =IF(ISBLANK('N1. Demand'!B82),"",'N1. Demand'!B82) -> 
B73: =IF(ISBLANK('N1. Demand'!B83),"",'N1. Demand'!B83) -> 
B74: =IF(ISBLANK('N1. Demand'!B84),"",'N1. Demand'!B84) -> 
B75: =IF(ISBLANK('N1. Demand'!B85),"",'N1. Demand'!B85) -> 
B76: =IF(ISBLANK('N1. Demand'!B86),"",'N1. Demand'!B86) -> 
B77: =IF(ISBLANK('N1. Demand'!B87),"",'N1. Demand'!B87) -> 
B78: =IF(ISBLANK('N1. Demand'!B88),"",'N1. Demand'!B88) -> 
B79: =IF(ISBLANK('N1. Demand'!B89),"",'N1. Demand'!B89) -> 
B80: =IF(ISBLANK('N1. Demand'!B90),"",'N1. Demand'!B90) -> 
B81: =IF(ISBLANK('N1. Demand'!B91),"",'N1. Demand'!B91) -> 
B82: =IF(ISBLANK('N1. Demand'!B92),"",'N1. Demand'!B92) -> 
B83: =IF(ISBLANK('N1. Demand'!B93),"",'N1. Demand'!B93) -> 
B84: =IF(ISBLANK('N1. Demand'!B94),"",'N1. Demand'!B94) -> 
B85: =IF(ISBLANK('N1. Demand'!B95),"",'N1. Demand'!B95) -> 
B86: =IF(ISBLANK('N1. Demand'!B96),"",'N1. Demand'!B96) -> 
B87: Total | C87: =SUM(C12:C86) -> 501048627.4 | D87: 563320552.7 | E87: 565849401.2 | F87: 571598815.2 | G87: 573372573.5 | H87: 571133283.7 | I87: 561878530.2
B89: F3.1.2 - STAND ALONE COST PER UNIT - BY TARIFF CLASS
C90: STAND ALONE COST PER UNIT
C91: =CONCATENATE("$, real ",dms_DollarReal) -> $, real June 2025
B92: Tariff Class | C92: =dms_y1 -> 2023-24 | D92: =dms_y2 -> 2024-25 | E92: =dms_y3 -> 2025-26 | F92: =dms_y4 -> 2026-27 | G92: =dms_y5 -> 2027-28 | H92: =dms_y6 -> 2028-29 | I92: =dms_y7 -> 2029-30
B93: Volume - Individual metered (VI) small | C93: 1872796356 | D93: 1730966631 | E93: 1721524163 | F93: 1708886554 | G93: 1698564721 | H93: 1689202554 | I93: 1679235426
B94: Volume - Individual metered (VI) large | C94: 1665309079 | D94: 1531399608 | E94: 1516553089 | F94: 1500080443 | G94: 1486732473 | H94: 1474256708 | I94: 1461725241
B95: Volume - Boundary metered (VB) | C95: 335361760.8 | D95: 322786280.8 | E95: 323971892.2 | F95: 325356280.7 | G95: 326904675.6 | H95: 324275941.9 | I95: 320841521.2
B96: Volume - Residential distributed generation technology (VRT3) | C96: 197855283.8 | D96: 198763770.8 | E96: 201582974.1 | F96: 204808254.8 | G96: 207900942.3 | H96: 206286498.8 | I96: 203808505.8
B97: Volume - Residential distributed generation technology (VRT4) | C97: 197343655.5 | D97: 198300119.5 | E97: 201125909.8 | F97: 204358251.2 | G97: 207456685.9 | H97: 205846151.6 | I97: 203371869.9
B98: Volume - Residential distributed generation technology (VRT6) | C98: 161753845.4 | D98: 166350673.6 | E98: 169676272.3 | F98: 173444360.1 | G98: 176978879.8 | H98: 175664961.1 | I98: 173472287.4
B99: Volume - Residential distributed generation technology (VRT10) | C99: 161753845.4 | D99: 166350673.6 | E99: 169676272.3 | F99: 173444360.1 | G99: 176978879.8 | H99: 175664961.1 | I99: 173472287.4
B100: Demand - Capacity country (DC Country) | C100: 340225386.4 | D100: 328251639.9 | E100: 329286417.5 | F100: 330565128.7 | G100: 332054206.7 | H100: 329363280.5 | I100: 325884739.2
B101: Demand - Capacity coastal (DC1) | C101: 336915414.3 | D101: 323991897.9 | E101: 324895904.4 | F101: 326033643.8 | G101: 327407522.6 | H101: 324638576.6 | I101: 321086469.2
B102: Demand - Capacity coastal (DC2) | C102: 349632736.7 | D102: 335578585.3 | E102: 336321695.5 | F102: 337274795.2 | G102: 338491492.3 | H102: 335620764.5 | I102: 331979749.4
B103: Demand - Capacity coastal (DC3) | C103: 362798298 | D103: 347704421.3 | E103: 348285965.8 | F103: 349025442.7 | G103: 350045371.9 | H103: 347057846.5 | I103: 343331601.3
B104: Demand - Capacity coastal (DC4) | C104: 343987671.1 | D104: 330300911.7 | E104: 331110096.9 | F104: 332167623.7 | G104: 333488336.2 | H104: 330674199.3 | I104: 327065592.8
B105: Demand - Capacity coastal (DC5) | C105: 338548346.8 | D105: 325307283.9 | E105: 326183481.1 | F105: 327325346.2 | G105: 328721786.1 | H105: 325953887 | I105: 322381242.9
B106: Demand - Capacity coastal (DC6) | C106: 302334955.4 | D106: 292831436.1 | E106: 294194437.7 | F106: 295801484 | G106: 297544526.8 | H106: 295036239.4 | I106: 291745999.6
B107: Demand - Capacity coastal (DC7) | C107: 302709429.5 | D107: 292982056.4 | E107: 294332877.6 | F107: 295966745.6 | G107: 297754186.8 | H107: 295259295.4 | I107: 291956472.1
B108: Demand - Capacity coastal (DC8) | C108: 298372059.9 | D108: 288973398 | E108: 290376809.5 | F108: 292083081.8 | G108: 293938530.9 | H108: 291483141.5 | I108: 288207649.4
B109: Demand - Capacity coastal (DC9) | C109: 293739666.3 | D109: 284882732.6 | E109: 286349635.7 | F109: 288100568.5 | G109: 289979130.6 | H109: 287549320.4 | I109: 284312957.8
B110: Demand - Capacity coastal (DC10) | C110: 296047294.5 | D110: 286881550.2 | E110: 288315293.4 | F110: 290050538.2 | G110: 291927567 | H110: 289488347.2 | I110: 286230452.8
B111: Demand - Capacity coastal (DC11) | C111: 292203578.4 | D111: 283373392.5 | E111: 284855512.4 | F111: 286647568.4 | G111: 288573644.8 | H111: 286165697.8 | I111: 282934349.4
B112: Demand - Throughput (DT) | C112: 162388493.8 | D112: 166978800.1 | E112: 170298288.5 | F112: 174048618.1 | G112: 177562340.4 | H112: 176238998.5 | I112: 174044489.9
A113: Row inserted | B113: Demand - Major end-user (throughput) (DMT1) | C113: 335659887.3 | D113: 322749272.9 | E113: 323665367.4 | F113: 324838237.5 | G113: 326253259.4 | H113: 323502955.1 | I113: 319954477.5
A114: Row inserted | B114: Demand - Major end-user (throughput) (DMT2) | C114: 347844022.3 | D114: 333808250.6 | E114: 334568580.9 | F114: 335571726.5 | G114: 336847034.6 | H114: 334002863 | I114: 330367018.9
A115: Row inserted | B115: Demand - Major end-user (throughput) (DMT3) | C115: 357858110.1 | D115: 342815000.8 | E115: 343444109.5 | F115: 344321819.8 | G115: 345503640.1 | H115: 342589466.4 | I115: 338877504.4
A116: Row inserted | B116: Demand - Major end-user (throughput) (DMT4) | C116: 161753845.4 | D116: 166350673.6 | E116: 169676272.3 | F116: 173444360.1 | G116: 176978879.8 | H116: 175664961.1 | I116: 173472287.4
A117: Row inserted | B117: Demand - Major end-user (throughput) (DMT5) | C117: 161753845.4 | D117: 166350673.6 | E117: 169676272.3 | F117: 173444360.1 | G117: 176978879.8 | H117: 175664961.1 | I117: 173472287.4
A118: Row inserted | B118: Demand - Capacity - First response (DCFR1) | C118: 334970920.9 | D118: 322067387.3 | E118: 322990115.8 | F118: 324182265.8 | G118: 325619867.3 | H118: 322879793.6 | I118: 319333308.2
A119: Row inserted | B119: Demand - Capacity - First response (DCFR6) | C119: 309819489.7 | D119: 300239048.3 | E119: 301529981 | F119: 302927577.7 | G119: 304425325 | H119: 301805896 | I119: 298494014.5
A120: Row inserted | B120: Demand - Major end-user (throughput) - First response (DMTFR3) | C120: 358134332 | D120: 343217763.4 | E120: 343849241.8 | F120: 344697244.3 | G120: 345836634.8 | H120: 342907189.2 | I120: 339201188.3
B122: F3.1.3 - AVOIDABLE COST PER UNIT - BY TARIFF CLASS
C123: AVOIDABLE COST PER UNIT
C124: =CONCATENATE("$, real ",dms_DollarReal) -> $, real June 2025
B125: Tariff Class | C125: =dms_y1 -> 2023-24 | D125: =dms_y2 -> 2024-25 | E125: =dms_y3 -> 2025-26 | F125: =dms_y4 -> 2026-27 | G125: =dms_y5 -> 2027-28 | H125: =dms_y6 -> 2028-29 | I125: =dms_y7 -> 2029-30
B126: =IF(ISBLANK(B93),"",B93) -> Volume - Individual metered (VI) small | C126: 129746453.8 | D126: 129488201.3 | E126: 132696064.3 | F126: 134503874.1 | G126: 135383085.1 | H126: 136885957.6 | I126: 138574995.7
B127: =IF(ISBLANK(B94),"",B94) -> Volume - Individual metered (VI) large | C127: 50380273.48 | D127: 48820419.99 | E127: 48770110.26 | F127: 48228461.55 | G127: 47429646.47 | H127: 47128267.67 | I127: 47130876.39
B128: Volume - Boundary metered (VB) | C128: 633635.9925 | D128: 703755.0542 | E128: 784047.4331 | F128: 839891.8898 | G128: 850454.0633 | H128: 877473.9692 | I128: 917057.8557
B129: Volume - Residential distributed generation technology (VRT3) | C129: 0 | D129: 0 | E129: 0 | F129: 0 | G129: 0 | H129: 0 | I129: 0
B130: Volume - Residential distributed generation technology (VRT4) | C130: 0 | D130: 0 | E130: 0 | F130: 0 | G130: 0 | H130: 0 | I130: 0
B131: Volume - Residential distributed generation technology (VRT6) | C131: 0 | D131: 0 | E131: 0 | F131: 0 | G131: 0 | H131: 0 | I131: 0
B132: Volume - Residential distributed generation technology (VRT10) | C132: 0 | D132: 0 | E132: 0 | F132: 0 | G132: 0 | H132: 0 | I132: 0
B133: Demand - Capacity country (DC Country) | C133: 740267.1701 | D133: 715512.6386 | E133: 696370.6889 | F133: 642015.4 | G133: 578623.8247 | H133: 549763.7524 | I133: 543832.5693
B134: Demand - Capacity coastal (DC1) | C134: 728785.8682 | D134: 704951.6179 | E134: 685564.8301 | F134: 630149.3014 | G134: 565443.2585 | H134: 536025.2728 | I134: 530070.5861
B135: Demand - Capacity coastal (DC2) | C135: 1058972.406 | D135: 1024103.35 | E135: 997537.1689 | F135: 922251.621 | G135: 834482.6037 | H135: 794507.4744 | I135: 786254.1389
B136: Demand - Capacity coastal (DC3) | C136: 1887789.772 | D136: 1825913.945 | E136: 1776824.489 | F136: 1636956.331 | G136: 1473734.511 | H136: 1399477.7 | I136: 1384335.234
B137: Demand - Capacity coastal (DC4) | C137: 371930.4659 | D137: 359477.0897 | E137: 351621.9741 | F137: 329993.922 | G137: 304914.9872 | H137: 293422.1995 | I137: 290891.1173
B138: Demand - Capacity coastal (DC5) | C138: 12644.69076 | D138: 12237.26273 | E138: 11855.54052 | F138: 10746.16371 | G138: 9446.92398 | H138: 8858.247839 | I138: 8743.619974
B139: Demand - Capacity coastal (DC6) | C139: 1111918.65 | D139: 1075815.838 | E139: 1044186.901 | F139: 952957.2546 | G139: 846258.5826 | H139: 797839.4751 | I139: 788242.3578
B140: Demand - Capacity coastal (DC7) | C140: 382473.2845 | D140: 369878.0243 | E140: 360030.508 | F140: 332026.3953 | G140: 299357.9415 | H140: 284489.6572 | I140: 281444.2893
B141: Demand - Capacity coastal (DC8) | C141: 40408.67787 | D141: 39056.19165 | E141: 38211.72561 | F141: 35890.63456 | G141: 33200.08932 | H141: 31966.64277 | I141: 31693.95896
B142: Demand - Capacity coastal (DC9) | C142: 448074.3537 | D142: 433636.8277 | E142: 420110.2074 | F142: 380798.586 | G142: 334759.0255 | H142: 313898.8332 | I142: 309836.9065
B143: Demand - Capacity coastal (DC10) | C143: 125486.932 | D143: 121307.6642 | E143: 118428.0005 | F143: 110385.2801 | G143: 101034.1963 | H143: 96762.04547 | I143: 95850.50219
B144: Demand - Capacity coastal (DC11) | C144: 0 | D144: 0 | E144: 0 | F144: 0 | G144: 0 | H144: 0 | I144: 0
B145: Demand - Throughput (DT) | C145: 202408.0536 | D145: 195886.2085 | E145: 189775.8457 | F145: 172017.6573 | G145: 151220.2657 | H145: 141797.1177 | I145: 139962.2288
A146: Row inserted | B146: Demand - Major end-user (throughput) (DMT1) | C146: 328365.9941 | D146: 317433.7818 | E146: 310135.0047 | F146: 289850.151 | G146: 266287.1792 | H146: 255510.8219 | I146: 253186.06
A147: Row inserted | B147: Demand - Major end-user (throughput) (DMT2) | C147: 488548.6635 | D147: 472059.3864 | E147: 462713.3506 | F147: 437473.698 | G147: 408315.6192 | H147: 394896.6828 | I147: 391814.4074
A148: Row inserted | B148: Demand - Major end-user (throughput) (DMT3) | C148: 312204.3796 | D148: 301095.9189 | E148: 299570.7688 | F148: 297935.9548 | G148: 296605.2545 | H148: 295700.1412 | I148: 294840.823
A149: Row inserted | B149: Demand - Major end-user (throughput) (DMT4) | C149: 0 | D149: 0 | E149: 0 | F149: 0 | G149: 0 | H149: 0 | I149: 0
A150: Row inserted | B150: Demand - Major end-user (throughput) (DMT5) | C150: 0 | D150: 0 | E150: 0 | F150: 0 | G150: 0 | H150: 0 | I150: 0
A151: Row inserted | B151: Demand - Capacity - First response (DCFR1) | C151: 108612.9789 | D151: 104761.4884 | E151: 104096.6898 | F151: 103091.7776 | G151: 102108.3892 | H151: 101562.678 | I151: 101230.0423
A152: Row inserted | B152: Demand - Capacity - First response (DCFR6) | C152: 3499227.072 | D152: 3386202.144 | E152: 3282504.333 | F152: 2981825.151 | G152: 2629830.962 | H152: 2470270.227 | I152: 2439031.452
A153: Row inserted | B153: Demand - Major end-user (throughput) - First response (DMTFR3) | C153: 894552.1183 | D153: 864679.6723 | E153: 845574.4115 | F153: 792847.5551 | G153: 731680.7279 | H153: 703664.2976 | I153: 697525.8248
B156: F3.2 - ANCILLARY REFERENCE SERVICES
C157: REVENUE
C158: =CONCATENATE("$, real ",dms_DollarReal) -> $, real June 2025
B159: Service Name | C159: =dms_y1 -> 2023-24 | D159: =dms_y2 -> 2024-25 | E159: =dms_y3 -> 2025-26 | F159: =dms_y4 -> 2026-27 | G159: =dms_y5 -> 2027-28 | H159: =dms_y6 -> 2028-29 | I159: =dms_y7 -> 2029-30
B160: Hourly charge – non-standard retailer-initiated requests and queries | C160: 13480.84831 | D160: 15240.42478 | E160: 13787.45711 | F160: 13779.98678 | G160: 13748.78647 | H160: 13708.60959 | I160: 13673.10596
B161: Disconnection – Volume Customers – Completed | C161: 2340782.907 | D161: 2668509.381 | E161: 1569250.204 | F161: 1736732.717 | G161: 2016640.081 | H161: 2628602.69 | I161: 3821499.319
B162: Disconnection – Volume Customers – Wasted Visit | C162: 1176289.883 | D162: 1344261.059 | E162: 658557.6628 | F162: 692401.8263 | G162: 719364.3873 | H162: 827347.2448 | I162: 962247.1877
B163: Reconnection – Volume Customers – Completed | C163: 950196.4198 | D163: 1049580.379 | E163: 1021683.807 | F163: 991417.8171 | G163: 967524.0469 | H163: 939806.0852 | I163: 883419.8297
B164: Reconnection – Volume Customers – Wasted Visit | C164: 138646.5952 | D164: 153347.8265 | E164: 182620.0334 | F164: 177210.164 | G164: 172939.2916 | H164: 167984.8673 | I164: 157906.1523
B165: Expedited reconnection | C165: 1672450.17 | D165: 1843855.958 | E165: 1002475.103 | F165: 972778.1455 | G165: 949333.6027 | H165: 922136.7671 | I165: 866810.631
B166: Abolishment – Up to 25m3/hr – Completed | C166: 5622436.781 | D166: 6853575.604 | E166: 8807329.617 | F166: 11998724.53 | G166: 12743165.77 | H166: 15032721.51 | I166: 19413116.23
B167: Special meter read – Completed | C167: 7335281.004 | D167: 8402847.889 | E167: 8631601.385 | F167: 8715547.601 | G167: 8760928.849 | H167: 8758901.055 | I167: 8664508.588
B168: Special meter read – Wasted Visit | C168: 429175.6641 | D168: 491637.3103 | E168: 505021.3148 | F168: 509932.8748 | G168: 512588.0597 | H168: 512469.4167 | I168: 506946.663
B169: Total | C169: =SUM(C160:C168) -> 19678740.27 | D169: 22822855.83 | E169: =SUM(E160:E168) -> 22392326.58 | F169: =SUM(F160:F168) -> 25808525.67 | G169: 26856232.88 | H169: 29803678.25 | I169: 35290127.71
B172: F3.3 - REBATEABLE SERVICES
C173: REVENUE
C174: =CONCATENATE("$, real ",dms_DollarReal) -> $, real June 2025
B175: Service Name | C175: =dms_y1 -> 2023-24 | D175: =dms_y2 -> 2024-25 | E175: =dms_y3 -> 2025-26 | F175: =dms_y4 -> 2026-27 | G175: =dms_y5 -> 2027-28 | H175: =dms_y6 -> 2028-29 | I175: =dms_y7 -> 2029-30
B176: None
B182: Total | C182: =SUM(C176:C181) -> 0 | D182: =SUM(D176:D181) -> 0 | E182: 0 | F182: 0 | G182: 0 | H182: 0 | I182: 0
B185: F3.4 - NON-REFERENCE SERVICES
C186: REVENUE
C187: =CONCATENATE("$, real ",dms_DollarReal) -> $, real June 2025
B188: Service Name | C188: =dms_y1 -> 2023-24 | D188: =dms_y2 -> 2024-25 | E188: =dms_y3 -> 2025-26 | F188: =dms_y4 -> 2026-27 | G188: =dms_y5 -> 2027-28 | H188: =dms_y6 -> 2028-29 | I188: =dms_y7 -> 2029-30
B195: Total
B198: F3.5 - TOTAL REVENUE
C199: REVENUE
C200: =CONCATENATE("$, real ",dms_DollarReal) -> $, real June 2025
C201: =dms_y1 -> 2023-24 | D201: =dms_y2 -> 2024-25 | E201: =dms_y3 -> 2025-26 | F201: =dms_y4 -> 2026-27 | G201: =dms_y5 -> 2027-28 | H201: =dms_y6 -> 2028-29 | I201: =dms_y7 -> 2029-30
B202: Total | C202: =SUM(C195,C182,C169,C87) -> 520727367.6 | D202: 586143408.6 | E202: 588241727.8 | F202: 597407340.9 | G202: 600228806.4 | H202: 600936961.9 | I202: 597168657.9

Sheet Additional disclosures
B2: N1.2 - DEMAND - BY TARIFF (previous tariff classes) - Additional disclosure
C3: VOLUME
C4: GJ
B5: Tariff | C5: 2023-24 | D5: 2024-25
B6: Volume - Individual metered (VI-Coastal) | C6: 36148880.47 | D6: 35949483.85
B7: Volume - Individual metered (VI-Country) | C7: 4071872.766 | D7: 4049487.948
B8: Volume - Boundary metered (VB-Coastal) | C8: 709731.7945 | D8: 709362.5729
B9: Volume - Boundary metered (VB-Country) | C9: 328.842 | D9: 328.842
B10: Total | C10: 40930813.87 | D10: 40708663.21
B12: F3.1 - REFERENCE SERVICES - Additional disclosure
B13: F3.1.1 - REVENUE - BY TARIFF (previous tariff classes)
C14: REVENUE
C15: $, real June 2025
B16: Tariff | C16: 2023-24 | D16: 2024-25
B17: Volume - Individual metered (VI-Coastal) | C17: 424177709.4 | D17: 473921029.7
B18: Volume - Individual metered (VI-Country) | C18: 35988032.22 | D18: 40834164.72
B19: Volume - Boundary metered (VB-Coastal) | C19: 7034530.25 | D19: 7667322.215
B20: Volume - Boundary metered (VB-Country) | C20: 6037.762243 | D20: 6585.697154
B21: Total | C21: 467206309.6 | D21: 522429102.3

Sheet AER CF (hidden)
B1: AER CONDITIONAL FORMATTING
B3: CELLS FLAGED "Y" and greyed out will be greyed out in the worksheets.
B4: CONDITIONAL FORMATTING MAP
F5: =INDEX(dms_CF_3.6.1, MATCH(dms_TradingName,dms_CF_TradingName))="Y" | G5: =INDEX(dms_CF_3.6.5, MATCH(dms_TradingName,dms_CF_TradingName))="Y" | H5: =INDEX(dms_CF_3.6.6.1, MATCH(dms_TradingName,dms_CF_TradingName))="Y" | I5: =INDEX(dms_CF_3.6.6.2, MATCH(dms_TradingName,dms_CF_TradingName))="Y" | J5: =INDEX(dms_CF_3.6.6.3, MATCH(dms_TradingName,dms_CF_TradingName))="Y" | K5: =INDEX(dms_CF_3.6.7.1, MATCH(dms_TradingName,dms_CF_TradingName))="Y" | L5: =INDEX(dms_CF_3.6.7.2, MATCH(dms_TradingName,dms_CF_TradingName))="Y" | M5: =INDEX(dms_CF_3.6.7.3, MATCH(dms_TradingName,dms_CF_TradingName))="Y" | N5: =INDEX(dms_CF_3.6.7.4, MATCH(dms_TradingName,dms_CF_TradingName))="Y" | O5: =INDEX(dms_CF_3.6.8, MATCH(dms_TradingName,dms_CF_TradingName))="Y" | P5: =INDEX(dms_CF_4.1, MATCH(dms_TradingName,dms_CF_TradingName))="Y" | Q5: =INDEX(dms_CF_6.8, MATCH(dms_TradingName,dms_CF_TradingName))="Y" | R5: =INDEX(dms_CF_7.12, MATCH(dms_TradingName,dms_CF_TradingName))="Y" | S5: =INDEX(dms_CF_8.1_A, MATCH(dms_TradingName,dms_CF_TradingName))="Y" | T5: =INDEX(dms_CF_8.1_B, MATCH(dms_TradingName,dms_CF_TradingName))="Y" | U5: =INDEX(dms_CF_8.1_Neg, MATCH(dms_TradingName,dms_CF_TradingName))="Y" -> FALSE | V5: =INDEX(dms_CF_4.4.1_Neg, MATCH(dms_TradingName,dms_CF_TradingName))="Y" | Y5: =INDEX(dms_CF_F10, MATCH(dms_TradingName,dms_CF_TradingName))="Y"
B6: dms_CF_TradingName | C6: JurisdictionList | D6: Sector | E6: Segment | F6: dms_CF_3.6.1 | G6: dms_CF_3.6.5 | H6: dms_CF_3.6.6.1 | I6: dms_CF_3.6.6.2 | J6: dms_CF_3.6.6.3 | K6: dms_CF_3.6.7.1 | L6: dms_CF_3.6.7.2 | M6: dms_CF_3.6.7.3 | N6: dms_CF_3.6.7.4 | O6: dms_CF_3.6.8 | P6: dms_CF_4.1 | Q6: dms_CF_6.8 (set from dms_MAIFI_flag) | R6: dms_CF_7.12 | S6: dms_CF_8.1_A (and 8.4) | T6: dms_CF_8.1_B (and 8.4) | U6: dms_CF_8.1_Neg (and 8.4) | V6: dms_CF_4.4.1 | W6: dms_CF_MAIFI_flag (set from dms_MAIFI_flag) | X6: 9.5 TUOS (set from Jurisdiction) | Y6: dms_CF_F10
B7: Amadeus | C7: NT | D7: Gas | E7: Transmission | F7: - | G7: - | H7: - | I7: - | J7: - | K7: - | L7: - | M7: - | N7: - | O7: - | P7: - | Q7: - | R7: - | S7: - | T7: - | U7: - | V7: - | W7: - | X7: - | Y7: -
B8: APA GasNet | C8: Vic | D8: Gas | E8: Transmission | F8: - | G8: - | H8: - | I8: - | J8: - | K8: - | L8: - | M8: - | N8: - | O8: - | P8: - | Q8: - | R8: - | S8: - | T8: - | U8: - | V8: - | W8: - | X8: - | Y8: -
B12: Confidential
B13: Amended
B15: Worksheet 6.2 STPIS reliability
B16: Formula | F16: Applied to:
B18: =INDEX(dms_CBD_flag,MATCH(dms_TradingName,dms_TradingName_List))="NO" | F18: $D$11,$D$17,$D$23,$D$33,$D$39,$D$45,$D$55,$D$61,$D$67,$D$77,$D$83,$D$89
B19: =INDEX(dms_Urban_flag,MATCH(dms_TradingName,dms_TradingName_List))="NO" | F19: $D$12,$D$18,$D$24,$D$56,$D$62,$D$78,$D$68,$D$84
B20: =INDEX(dms_ShortRural_flag,MATCH(dms_TradingName,dms_TradingName_List))="NO" | F20: $D$13,$D$19,$D$25,$D$57,$D$63,$D$69,$D$79,$D$85
B21: =INDEX(dms_LongRural_flag,MATCH(dms_TradingName,dms_TradingName_List))="NO" | F21: $D$14,$D$20,$D$26,$D$58,$D$64,$D$65,$D$70,$D$71,$D$80,$D$86
B22: =INDEX(dms_FeederType_5_flag,MATCH(dms_TradingName,dms_TradingName_List))="NO" | F22: $D$87,$D$81,$D$71,$D$65,$D$59,$D$49,$D$43,$D$37,$D$21,$D$15
B23: =dms_MAIFI_Flag="No" | F23: $D$55:$D$72
B26: Business & other details
B27: =(INDEX(dms_Model_Span,MATCH(dms_Model,dms_Model_List))>1)
B28: =(INDEX(dms_Model_Span,MATCH(dms_Model,dms_Model_List))=1)
B31: STYLES IN USE
B32: HEADING ONE | C32: dms_1
B33: HEADING TWO | C33: dms_2
B34: HEADING THREE | C34: dms_3
B35: HEADING FOUR | C35: dms_4
B36: HEADING FIVE | C36: dms_5
B37: 5.111 | C37: dms_NUM
B38: 0.0545 | C38: dms_NUM%
B39: 5.5555 | C39: dms_NUM3d
B40: Text description | C40: dms_Row_Locked
B41: Text description | C41: dms_Row1
B42: Text description | C42: dms_Row2
B43: Total | C43: dms_T1
B44: Total | C44: dms_T2
B45: EXPENSES | C45: dms_BH
B46: 2019 | C46: dms_BY1
B47: 2019 | C47: dms_BY2
B48: VOLUMES | C48: dms_GH
B49: 2019 | C49: dms_GY1
B50: 2019 | C50: dms_GY2

Sheet AER NRs (hidden)
B1: AER NAMED RANGES
V2: =dms_TradingNameFull -> Jemena Gas Networks (NSW) Ltd
B3: DROP DOWN SELECTORS USED IN WORKBOOKS
B5: COVER SHEET | C5: dms_DataQuality_List | D5: dms_Confid_status_List
C6: -- select -- | D6: -- select --
C7: Actual | D7: Public
C8: Estimate | D8: Confidential
C9: Consolidated
C12: For all files either AER or business needs to be able to specify the type of submission | D12: For PTRM & RFM templates we must provide a choice in case they change their form of control - otherwise it is drawn from the business specific lookup table above.
C13: dms_SourceList | D13: dms_FormControl_Choices
C14: -- select -- | D14: Revenue cap
C15: After appeal | D15: Revenue yield
C16: Draft decision | D16: Tariff cap
C17: Final decision | D17: Weighted average price cap
C18: PTRM update 1
C19: PTRM update 2
C20: PTRM update 3
C21: PTRM update 4
C22: PTRM update 5
C23: PTRM update 6
C24: PTRM update 7
C25: Reallocated
C26: Recast
C27: Regulatory proposal
C28: Reporting
C29: Revised regulatory proposal
K32: This is used to create an image to insert on 6.3 STPIS sheet - not for dropdown lists. | N32: GAS
B33: CA & RESET RINS DNSP | C33: dms_DNSP_020301_SubstationType | D33: dms_DNSP_020301_ProjectType | E33: dms_DNSP_020301_ProjectTrigger | F33: dms_DNSP_020302_ProjectType | G33: dms_DNSP_020302_ProjectTrigger | H33: dms_STPIS_Exclusion_List | I33: dms_Reason_Interruption | J33: dms_Reason_Interruption_Detailed | K33: Reason for interruption | N33: dms_N0205_AssetType
C34: Subtransmission substation | D34: New substation establishment | E34: Demand growth | F34: New line on new route - single circuit | G34: Demand growth | H34: Weather | I34: Animal | J34: Animal impact | K34: Animal | L34: Animal impact | N34: Cast Iron
C35: Zone substation | D35: Substation upgrade - capacity | E35: Voltage issues | F35: New line on new route - dual circuit | G35: Voltage issues | H35: Equipment failure | I35: Asset failure | J35: Animal nesting/burrowing, etc and other | L35: Animal nesting/burrowing, etc and other | N35: PVC
C36: Switching station | D36: Substation upgrade - voltage | E36: Reactive power issue | F36: New line on new route - other | G36: Reactive power issue | H36: Operational error | I36: Other | J36: Other | L36: Other | N36: Polyamide
C37: Other | D37: Other | E37: Fault level issues | F37: Line rebuild over existing route - single circuit | G37: Fault level issues | H37: Vegetation | I37: Overloads | J37: LV | K37: Asset failure | L37: LV | N37: High density polyethylene (80)
E38: Safety | F38: Line rebuild over existing route - dual circuit | G38: Net market benefit | H38: Animals | I38: Planned | J38: Distribution substation | L38: Distribution substation | N38: High density polyethylene (100)
E39: Environment | F39: Reconductor - Single circuit | G39: Safety | H39: Third party impacts | I39: Network business | J39: HV | L39: HV | N39: High density polyethylene (250)
E40: Other | F40: Reconductor - Dual circuit | G40: Environment | H40: Transmission failure | I40: Third party | J40: Zone substation | L40: Zone substation | N40: High density polyethylene (575)
F41: Reconductor - Other | G41: Other | H41: Load shedding | I41: Unknown | J41: Subtransmission | L41: Subtransmission | N41: Medium density polyethylene
F42: Line upgrade - raising/retensoring | H42: Inter-distributor connection failure | I42: Vegetation | J42: insert description of 'other' | K42: Other | L42: insert description of 'other' | N42: Unprotected steel
F43: Line upgrade - voltage upgrade | H43: Other | I43: Weather | J43: Network error | K43: Overloads | N43: Protected steel
F44: Line upgrade - capacity | I44: 2 - STPIS Exclusion (3.3)(a) | J44: Switching and protection error | K44: Planned | N44: Other
F45: String spare circuit | I45: 3 - STPIS Exclusion (3.3)(a) | J45: Fire | K45: Network business | L45: Network error
F46: Other | I46: 4 - STPIS Exclusion (3.3)(a) | J46: Other | L46: Switching and protection error
I47: 5 - STPIS Exclusion (3.3)(a) | J47: Dig-in | K47: Third party | L47: Fire
I48: 6 - STPIS Exclusion (3.3)(a) | J48: Unauthorised access | L48: Other
I49: 7 - STPIS Exclusion (3.3)(a) | J49: Vehicle impact | L49: Dig-in
J50: Unknown | L50: Unauthorised access
J51: Blow-in/Fall-in - NSP responsibility | L51: Vehicle impact
J52: Grow-in - NSP responsibility | K52: Unknown | L52: Unknown
J53: Blow-in/Fall-in - Other responsible party | K53: Vegetation | L53: Blow-in/Fall-in - NSP responsibility
J54: Grow-in - Other responsible party | L54: Grow-in - NSP responsibility
L55: Blow-in/Fall-in - Other responsible party
L56: Grow-in - Other responsible party
K57: Weather
K58: 2 - STPIS Exclusion (3.3)(a)
K59: 3 - STPIS Exclusion (3.3)(a)
K60: 4 - STPIS Exclusion (3.3)(a)
K61: 5 - STPIS Exclusion (3.3)(a)
K62: 6 - STPIS Exclusion (3.3)(a)
K63: 7 - STPIS Exclusion (3.3)(a)
B66: CA & RESET RINS TNSP | C66: dms_TNSP_0203_SubstationType | D66: dms_TNSP_020301_ProjectType | E66: dms_TNSP_020301_ProjectTrigger | F66: dms_TNSP_020302_ProjectType | G66: dms_TNSP_0203_ProjectTrigger
C67: Terminal station | D67: New substation establishment | E67: Demand growth | F67: New line on new route - single circuit | G67: Demand growth
C68: Switching station | D68: Capacity upgrade | E68: Voltage issues | F68: New line on new route - dual circuit | G68: Voltage issues
C69: Transmission substation | D69: Voltage upgrade | E69: Reactive power issue | F69: New line on new route - other | G69: Reactive power issue
C70: Other | D70: Other | E70: Fault level issues | F70: Line rebuild over existing route - single circuit | G70: Fault level issues
E71: Net market benefit | F71: Line rebuild over existing route - dual circuit | G71: Net market benefit
E72: Safety | F72: Reconductor - Single circuit | G72: Safety
E73: Environment | F73: Reconductor - Dual circuit | G73: Environment
E74: Other | F74: Reconductor - Other | G74: Other
F75: Line upgrade - raising/retensoring
F76: Line upgrade - voltage upgrade
F77: Line upgrade - capacity
F78: String spare circuit
F79: Other
B83: NAMED RANGES USED IN ETL PROCESS
M84: GAS ARR & RESET
B85: CA & RESET RINS DNSP ONLY | C85: dms_020303_01_UOM | D85: dms_020501_01_UOM | E85: dms_020501_02_UOM | F85: dms_020501_03_UOM | G85: dms_020501_04_UOM | H85: dms_020701_01_UOM | I85: dms_020701_02_UOM | J85: dms_020701_01_Rows | K85: dms_040102_01_UOM | L85: dms_040102_04_UOM | M85: dms_S140101_UOM | N85: dms_S140201_UOM | O85: dms_E050201_UOM | P85: dms_E050202_UOM
C86: Circuit line length in km | D86: 0's | E86: 0's | F86: 0's | G86: 0's | H86: km | I86: km | J86: Route line length within zone | K86: 0's | L86: days | M86: number | N86: number per km | O86: per metre per connection | P86: metres per connection
C87: Circuit line length in km | D87: 0's | E87: 0's | F87: 0's | G87: 0's | H87: 0's | I87: 0's | J87: Number of maintenance spans | K87: 0's | L87: 0's | M87: number | N87: number | O87: per service per connection | P87: number per connection
C88: Circuit line length in km | D88: MVA added | E88: MVA added | F88: MVA added | G88: MVA added | H88: km | I88: km | J88: Total length of maintenance spans | K88: 0's | L88: $0s | M88: number | N88: number | O88: number per connection | P88: number per connection
C89: Circuit line length in km | D89: 0's | E89: 0's | F89: 0's | G89: 0's | H89: km | I89: km | J89: Length of vegetation corridors | K89: $0s | L89: 0's | M89: km
C90: Number | D90: total spend $0s | E90: total spend $0s | F90: total spend $0s | G90: total spend $0s | H90: 0's | I90: 0's | J90: Average number of trees per maintenance span
C91: Number | D91: net circuit km added | E91: net circuit km added | F91: net circuit km added | G91: net circuit km added | H91: years | I91: years | J91: Average frequency of cutting cycle
C92: Number | D92: total spend $0s | E92: total spend $0s | F92: total spend $0s | G92: total spend $0s
D93: net circuit km added | E93: net circuit km added | F93: net circuit km added | G93: net circuit km added
D94: total spend $0s | E94: total spend $0s | F94: total spend $0s | G94: total spend $0s
D95: 0's | F95: $0s
D96: 0's
D97: 0's
D98: $0s
B101: CA & RESET RINS TNSP ONLY | C101: dms_020701_01_UOM
C102: km
C103: 0's
C104: km
C105: 0's
C106: km
C107: metres
C108: years
B111: CA & RESET RINS DNSP & TNSP | C111: dms_020603_01_UOM
C112: 0's
C113: 0's
C114: 0's
C115: 0's
C116: (per cent)
B119: EB & RESET RINS DNSP ONLY | C119: dms_030601_01_UOM | D119: dms_030601_02_UOM | E119: dms_030701_01_UOM | F119: dms_030702_01_UOM | G119: dms_030703_01_UOM
C120: minutes/customer | D120: minutes/customer | E120: Customer / km | F120: % | G120: km
C121: minutes/customer | D121: minutes/customer | E121: MWh/customer | F121: Number of spans
C122: interruptions/customer | D122: interruptions/customer | E122: kVA / customer | F122: Number of spans
C123: interruptions/customer | D123: interruptions/customer | F123: Number of spans
F124: Number of spans
F125: Years
F126: Years
F127: Trees
F128: Trees
F129: Defects
F130: Defects
F131: Spans
F132: km
F133: Spans
C135: WHEN INSERTING COVER SHEET INTO A TNSP FILE - APPLY THESE NAMED RANGES
B136: EB & RESET RINS TNSP ONLY | C136: dms_030601_01_UOM | E136: dms_030701_01_UOM | F136: dms_030702_01_UOM
C137: % | E137: Number of spans | F137: km
C138: number | E138: Years | F138: %
C139: number | E139: Trees | F139: km
C140: % | E140: Defects | F140: number
C141: number | E141: Number of spans
C142: number | E142: km
C143: % | E143: km
C144: number | E144: Number of spans
C145: number
C146: %
C147: number
C148: %
C149: number
C150: %
C151: number
B153: EB & RESET RINS DNSP & TNSP | C153: dms_EB_RAB_PIT
C154: Beginning of year
C155: End of year
C156: End of year
C157: End of year
C158: End of year
C159: End of year
B161: ARR DNSP ONLY | C161: dms_030605_UOM | D161: dms_03060703_UOM | E161: dms_E020202_UOM | F161: Spare
C162: number | D162: number | E162: Length of mains replaced
C163: number | D163: number | E163: Number of services replaced
C164: number | D164: number
C165: number | D165: number
C166: number | D166: (per cent)
C167: number
C168: number
C169: number
C170: number
C171: number
C172: number
C173: number
C174: (per cent)
C175: (per cent)
B177: RFM | C177: dms_Beg | D177: dms_Mid | E177: dms_End
C178: Beginning of year | D178: Mid year | E178: End of Year
B180: PTRM | C180: dms_PTRM_RAB_PIT | D180: dms_PTRM_TAB_PIT | E180: DMS_Xfactor
C181: Beginning of year | D181: Beginning of year | E181: x factors
C182: End of year | D182: End of year
C183: End of year | D183: End of year
C184: End of year | D184: End of year
C185: End of year
B188: STPIS & MIC NAMED RANGES
B190: These "row descriptions" are the column headings in the various templates but become row descriptions in the ETL process
B192: Table 6.3 sustained interruptions - row descriptions | C192: dms_060301_CustNo_Affected_Row | D192: dms_060301_Avg_Duration_Sustained_Int_Row | E192: dms_060301_Effect_unplanned_SAIDI_Row | F192: dms_060301_Effect_unplanned_SAIFI_Row
C193: Number of customers affected by the interruption | D193: Average duration of sustained customer interruption | E193: Effect on unplanned SAIDI | F193: Effect on unplanned SAIFI
B196: Table 6.1 telephone answering - row descriptions and start date | C196: dms_060101_Rows | D196: dms_060102_Rows | E196: dms_060101_StartDateTxt
C197: Total number of calls (after removing excluded events) | D197: Number of calls answered within 30 seconds (after excluding excluded events) | E197: =dms_060701_StartDateTxt -> 1-Jul-2018
B200: Table 6.8.1 - row descriptions | C200: dms_060801_01_Rows | D200: dms_060801_02_Rows | E200: dms_060801_03_Rows | F200: dms_060801_04_Rows
C201: Number of interruptions | D201: Duration of interruptions | E201: Total unplanned minutes off supply | F201: Effect on unplanned MAIFI
B204: Table 7.9.4 - market impact component - row descriptions | C204: dms_070904_01_Rows | D204: without exclusions | E204: with exclusions
B207: These headings (Lists) are determined from the INDEX/MATCH function on the NSP selected on the Business & other details sheet
B209: Table 6.7.1 - daily performance data - unplanned - MAIFI -- row descriptions and header named range values | C209: dms_060701_Feeder_Header_Lvl4 | D209: =INDEX(dms_FeederName_1,MATCH(dms_TradingName,dms_TradingName_List)) -> CBD | E209: =INDEX(dms_FeederName_1,MATCH(dms_TradingName,dms_TradingName_List)) -> CBD | F209: =INDEX(dms_FeederName_2,MATCH(dms_TradingName,dms_TradingName_List)) -> Urban | G209: =INDEX(dms_FeederName_2,MATCH(dms_TradingName,dms_TradingName_List)) -> Urban | H209: =INDEX(dms_FeederName_3,MATCH(dms_TradingName,dms_TradingName_List)) -> Short rural | I209: =INDEX(dms_FeederName_3,MATCH(dms_TradingName,dms_TradingName_List)) -> Short rural | J209: =INDEX(dms_FeederName_4,MATCH(dms_TradingName,dms_TradingName_List)) -> Long rural | K209: =INDEX(dms_FeederName_4,MATCH(dms_TradingName,dms_TradingName_List)) -> Long rural | L209: =IF((INDEX(dms_FeederName_5,MATCH(dms_TradingName,dms_TradingName_List))=0),"Network",(INDEX(dms_FeederName_5,MATCH(dms_TradingName,dms_TradingName_List)))) -> Network | M209: =IF((INDEX(dms_FeederName_5,MATCH(dms_TradingName,dms_TradingName_List))=0),"Network",(INDEX(dms_FeederName_5,MATCH(dms_TradingName,dms_TradingName_List)))) -> Network | N209: Network | O209: Network
C211: dms_060701_Rows | D211: All events | E211: After removing excluded events | F211: All events | G211: After removing excluded events | H211: All events | I211: After removing excluded events | J211: All events | K211: After removing excluded events | L211: All events | M211: After removing excluded events | N211: All events | O211: After removing excluded events
D212: the number of column headings changes from 10 to 12 depending on the number of feeder categories for the NSP
C214: dms_0603_FeederList | D214: =INDEX(dms_FeederName_1,MATCH(dms_TradingName,dms_TradingName_List)) -> CBD | E214: =INDEX(dms_FeederName_2,MATCH(dms_TradingName,dms_TradingName_List)) -> Urban | F214: =INDEX(dms_FeederName_3,MATCH(dms_TradingName,dms_TradingName_List)) -> Short rural | G214: =INDEX(dms_FeederName_4,MATCH(dms_TradingName,dms_TradingName_List)) -> Long rural
B217: Use these to add to specific worksheets in existing files | C217: Use these to add to specific worksheets in existing files
B220: ARRs 6.7 STPIS daily performance | C220: dms_060101_Values | D220: dms_060102_Values | E220: dms_060701_Values
C221: dms_LeapYear
B224: ARR's 6.8 STPIS exclusions | C224: dms_060801_Event_Date | D224: dms_060801_OutageID | E224: dms_060801_FeederID | F224: dms_060801_FeederClass | G224: dms_060801_CauseID | H224: dms_060801_01_Values | I224: dms_060801_02_Values | J224: dms_060801_03_Values | K224: dms_060801_Excl_Cat | L224: dms_060801_04_Values
C225: dms_060801_StartCell
B228: CA 6.3 sustained interruptions | C228: dms_060301_Event_Date | D228: dms_060301_Event_Time | E228: dms_060301_AssetID | F228: dms_060301_FeederClass | G228: dms_060301_Reason | H228: dms_060301_DetailedReason | I228: dms_060301_CustNo_Affected_Values | J228: dms_060301_Avg_Duration_Sustained_Int_Values | K228: dms_060301_Effect_unplanned_SAIDI_Values | L228: dms_060301_Effect_unplanned_SAIFI_Values | M228: dms_060301_MED
B232: PTRM input sheet | C232: DMS_50_01_01a | D232: DMS_50_01_01aa | E232: DMS_50_01_01b | F232: DMS_50_01_01bb | G232: DMS_50_01_01c | H232: DMS_50_01_01d | I232: DMS_50_01_01dd

Sheet AER lookups (hidden)
B1: AER LOOKUP TABLES
V2: =dms_TradingNameFull -> Jemena Gas Networks (NSW) Ltd
B3: Data in these columns used for data validation and database purposes.
B4: Date last modified: | C4: 2017-01-16 | D4: added (Albury and Victora) for AGN
C5: 2016-10-17 | D5: updated TransGrid's correct legal name, corrected TasNetworks (T) to June financial year
C6: 2017-02-01 | D6: inserted Power and Water, added NRs (dms_FeederCat_1 and dms_FeederCat_2)
C7: 2017-03-03 | D7: inserted AEMO as a business
C8: 2018-03-28 | D8: major changes to accommodate STPIS
C9: Template Version | D9: 5
AA11: FOR ELECTRICITY BUSINESSES ONLY
AA12: Feeder Types | AE12: TasNetworks (D) | AF12: Feeder Names
AA14: CBD | AB14: Urban | AC14: Short rural | AD14: long rural | AE14: EXTRA
B15: dms_TradingName_List | C15: dms_TradingNameFull_List | D15: dms_ABN_List | E15: dms_UniqueID_List | F15: dms_JurisdictionList | G15: dms_Sector_List | H15: dms_Segment_List | I15: dms_FormControl_List | J15: dms_RPT_List | K15: dms_RPTMonth_List | L15: dms_CRCPlength_List | M15: dms_FRCPlength_List | N15: dms_PRCPlength_List | O15: dms_663_List | P15: dms_DeterminationRef_List | Q15: dms_Addr1_List | R15: dms_Addr2_List | S15: dms_Suburb_List | T15: dms_State_List | U15: dms_PostCode_List | V15: dms_PAddr1_List | W15: dms_PAddr2_List | X15: dms_PSuburb_List | Y15: dms_PState_List | Z15: dms_PPostCode_List | AA15: dms_CBD_flag | AB15: dms_Urban_flag | AC15: dms_ShortRural_flag | AD15: dms_LongRural_flag | AE15: dms_FeederType_5_flag | AF15: dms_FeederName_1 | AG15: dms_FeederName_2 | AH15: dms_FeederName_3 | AI15: dms_FeederName_4 | AJ15: dms_FeederName_5 | AK15: dms_Public_Lighting_List | AL15: Name
B16: AGN (Albury and Victoria) | C16: Australian Gas Networks Limited (reporting data for Albury and Victoria) | D16: 19078551685 | E16: GDDVIC100 | F16: Vic | G16: Gas | H16: Distribution | I16: Tariff cap | J16: Financial | K16: June | L16: 5 | M16: 5 | N16: 5 | O16: x | Q16: Level 6 | R16: 400 King William Street | S16: ADELAIDE | T16: SA | U16: 5000 | V16: PO Box 6468 | W16: Halifax Street | X16: ADELAIDE | Y16: SA | Z16: 5000 | AA16: NO | AB16: NO | AC16: NO | AD16: NO | AE16: NO | AF16: CBD | AG16: Urban | AH16: Short rural | AI16: Long rural | AK16: NO | AL16: =B16 -> AGN (Albury and Victoria)
B17: AGN (Albury) | C17: Australian Gas Networks Limited (reporting data for Albury) | D17: 19078551685 | E17: GDDVIC200 | F17: Vic | G17: Gas | H17: Distribution | I17: Tariff cap | J17: Financial | K17: June | L17: 5 | M17: 5 | N17: 5 | O17: x | Q17: Level 6 | R17: 400 King William Street | S17: ADELAIDE | T17: SA | U17: 5000 | V17: PO Box 6468 | W17: Halifax Street | X17: ADELAIDE | Y17: SA | Z17: 5000 | AA17: NO | AB17: NO | AC17: NO | AD17: NO | AE17: NO | AF17: CBD | AG17: Urban | AH17: Short rural | AI17: Long rural | AK17: NO | AL17: AGN (Albury)
B18: AGN (SA) | C18: Australian Gas Networks Limited (reporting data for SA) | D18: 19078551685 | E18: GDDSTH100 | F18: SA | G18: Gas | H18: Distribution | I18: Tariff cap | J18: Financial | K18: June | L18: 5 | M18: 5 | N18: 5 | O18: 5 | P18: distribution determination | Q18: Level 6 | R18: 400 King William Street | S18: ADELAIDE | T18: SA | U18: 5000 | V18: PO Box 6468 | W18: Halifax Street | X18: ADELAIDE | Y18: SA | Z18: 5000 | AA18: NO | AB18: NO | AC18: NO | AD18: NO | AE18: NO | AF18: CBD | AG18: Urban | AH18: Short rural | AI18: Long rural | AK18: NO | AL18: AGN (SA)
B19: AGN (Victoria) | C19: Australian Gas Networks Limited (reporting data for Victoria) | D19: 19078551685 | E19: GDDVIC300 | F19: Vic | G19: Gas | H19: Distribution | I19: Tariff cap | J19: Financial | K19: June | L19: 5 | M19: 5 | N19: 5 | O19: x | Q19: Level 6 | R19: 400 King William Street | S19: ADELAIDE | T19: SA | U19: 5000 | V19: PO Box 6468 | W19: Halifax Street | X19: ADELAIDE | Y19: SA | Z19: 5000 | AA19: NO | AB19: NO | AC19: NO | AD19: NO | AE19: NO | AF19: CBD | AG19: Urban | AH19: Short rural | AI19: Long rural | AK19: NO | AL19: AGN (Victoria)
B20: Amadeus | C20: APT Pipelines (NT) Pty Ltd | D20: 39009737393 | E20: GTTNTY100 | F20: NT | G20: Gas | H20: Transmission | I20: Tariff cap | J20: Financial | K20: June | L20: 5 | M20: 5 | N20: 5 | O20: x | P20: n/a | Q20: Level 19, HSBC Building | R20: 580 George Street | S20: SYDNEY | T20: NSW | U20: 2000 | V20: Level 19, HSBC Building | W20: 580 George Street | X20: SYDNEY | Y20: NSW | Z20: 2000 | AA20: NO | AB20: NO | AC20: NO | AD20: NO | AE20: NO | AF20: CBD | AG20: Urban | AH20: Short rural | AI20: Long rural | AK20: NO | AL20: Amadeus
B21: APA GasNet | C21: APA GasNet Australia (Operations) Pty Ltd | D21: 065083009 | E21: GNTNSW100 | F21: Vic | G21: Gas | H21: Transmission | I21: Weighted average price cap | J21: Financial | K21: June | L21: 5 | M21: 5 | N21: 5 | O21: x | Q21: Level 19, HSBC Building | R21: 580 George Street | S21: SYDNEY | T21: NSW | U21: 2000 | V21: PO Box R41 | X21: ROYAL EXCHANGE | Y21: NSW | Z21: 1225 | AA21: Alexandra Curran | AB21: 02 9275 0020 | AC21: alexandra.curran@apa.com.au | AD21: NO | AE21: NO | AF21: NO | AG21: NO | AH21: NO | AI21: - | AJ21: CBD | AK21: Urban | AL21: APA GasNet
B22: APA VTS | C22: APA VTS Australia (Operations) Pty Ltd | D22: 65083009 | E22: GTTVIC100 | F22: Vic | G22: Gas | H22: Transmission | I22: Tariff cap | J22: Financial | K22: June | L22: 5 | M22: 5 | N22: 5 | O22: x | Q22: Level 19, HSBC Building | R22: 580 George Street | S22: SYDNEY | T22: NSW | U22: 2000 | V22: PO Box R41 | X22: ROYAL EXCHANGE | Y22: NSW | Z22: 1225 | AA22: NO | AB22: NO | AC22: NO | AD22: NO | AE22: NO | AF22: CBD | AG22: Urban | AH22: Short rural | AI22: Long rural | AK22: NO | AL22: APA VTS
B23: AusNet (Gas) | C23: AusNet Gas Services | D23: 086015036 | E23: GDDVIC400 | F23: Vic | G23: Gas | H23: Distribution | I23: Tariff cap | J23: Financial | K23: June | L23: 5 | M23: 5 | N23: 5 | O23: - | P23: - | Q23: Level 31 | R23: 2 Southbank Boulevard | S23: SOUTHBANK | T23: Vic | U23: 3008 | Y23: Vic | AA23: NO | AB23: NO | AC23: NO | AD23: NO | AE23: NO | AF23: CBD | AG23: Urban | AH23: Short rural | AI23: Long rural | AK23: NO | AL23: AusNet (Gas)
B24: Australian Distribution Co. (Gas) | C24: Australian Gas Distribution Co. | D24: 11222333444 | E24: GDXXX000 | F24: Vic | G24: Gas | H24: Distribution | I24: Tariff cap | J24: Financial | K24: June | L24: 5 | M24: 5 | N24: 5 | O24: - | P24: - | Q24: 123 Straight Street | S24: MELBOURNE | T24: Vic | U24: 3000 | V24: PO Box 123 | X24: MELBOURNE | Y24: Vic | Z24: 3000 | AA24: NO | AB24: NO | AC24: NO | AD24: NO | AE24: NO | AF24: CBD | AG24: Urban | AH24: Short rural | AI24: Long rural | AK24: NO | AL24: Australian Distribution Co. (Gas)
B25: Australian Transmission Co. (Gas) | C25: Australian Transmission Co. (Gas) | D25: 11222333444 | E25: GTXXX000 | F25: NSW | G25: Gas | H25: Transmission | I25: Tariff cap | J25: Financial | K25: June | L25: 5 | M25: 5 | N25: 5 | O25: 5 | P25: transmission determination | Q25: 123 Straight Street | S25: SYDNEY | T25: NSW | U25: 2000 | V25: PO Box 123 | X25: SYDNEY | Y25: NSW | Z25: 2000 | AA25: NO | AB25: NO | AC25: NO | AD25: NO | AE25: NO | AF25: CBD | AG25: Urban | AH25: Short rural | AI25: Long rural | AK25: NO | AL25: Australian Transmission Co. (Gas)
B26: Evoenergy Gas | C26: Icon Distribution Investments Limited (ABN 83 073 025 224) and Jemena Networks (ACT) Pty Ltd (ABN 24 008 552 663) | D26: 76670568688 | E26: GDDACT100 | F26: ACT | G26: Gas | H26: Distribution | I26: Tariff cap | J26: Financial | K26: June | L26: 5 | M26: 5 | N26: 5 | O26: x | Q26: 40 Bunda Street | S26: CANBERRA | T26: ACT | U26: 2600 | V26: GPO BOX 366 | X26: CANBERRA | Y26: ACT | Z26: 2601 | AA26: NO | AB26: NO | AC26: NO | AD26: NO | AE26: NO | AF26: CBD | AG26: Urban | AH26: Short rural | AI26: Long rural | AK26: NO | AL26: Evoenergy Gas
B27: JGN | C27: Jemena Gas Networks (NSW) Ltd | D27: 003 004 322 | E27: GDDNSW100 | F27: NSW | G27: Gas | H27: Distribution | I27: Tariff cap | J27: Financial | K27: June | L27: 5 | M27: 5 | N27: 5 | AA27: NO | AB27: NO | AC27: NO | AD27: NO | AE27: NO | AF27: CBD | AG27: Urban | AH27: Short rural | AI27: Long rural | AK27: NO | AL27: JGN
B28: Multinet Gas | C28: Multinet Gas (DB No.1) Pty Ltd (ACN 086 026 986), Multinet Gas (DB No.2) Pty Ltd (ACN 086 230 122) | D28: 086026986 | E28: GDDVIC500 | F28: Vic | G28: Gas | H28: Distribution | I28: Tariff cap | J28: Financial | K28: June | L28: 5 | M28: 5 | N28: 5 | O28: x | Q28: 43-45 Centreway | S28: MT WAVERLEY | T28: Vic | U28: 3149 | Y28: Vic | AA28: NO | AB28: NO | AC28: NO | AD28: NO | AE28: NO | AF28: CBD | AG28: Urban | AH28: Short rural | AI28: Long rural | AK28: NO | AL28: Multinet Gas
B29: Roma to Brisbane Pipeline | C29: APT Petroleum Pipelines Limited t/a Roma to Brisbane Pipeline | D29: 009 737 393 | E29: GTTQLD100 | F29: Qld | G29: Gas | H29: Transmission | I29: Tariff cap | J29: Financial | K29: June | L29: 5 | M29: 5 | N29: 5 | O29: x | P29: n/a | Q29: 580 George Street | S29: SYDNEY | T29: NSW | U29: 2000 | V29: PO Box R41 | X29: ROYAL EXCHANGE | Y29: NSW | Z29: 1225 | AA29: NO | AB29: NO | AC29: NO | AD29: NO | AE29: NO | AF29: CBD | AG29: Urban | AH29: Short rural | AI29: Long rural | AK29: NO | AL29: Roma to Brisbane Pipeline
B34: The Reg Year Ending (dms_RYE) must be set to the last year of the regulatory period. For forecast data is is usually (FRCP_y5) for actual it is a single year (CRY). For historical actual data the RYE will need to be set manually in the business details sheet by setting the dms_Multiyear_flag to 1 and putting the correct value in 'dms_Specified_FinalYear. See cells C67:C68
B35: dms_Model_List | C35: dms_Model_Name_Format1 | D35: dms_Worksheet_List | E35: dms_Model_Span_List
B36: ARR | C36: Annual Reporting | D36: =IF(dms_MultiYear_ResponseFlag="yes","NEW HISTORICAL ANNUAL REPORTING","ANNUAL REPORTING") -> ANNUAL REPORTING | E36: 1
B37: CA | C37: Category Analysis | D37: =IF(dms_MultiYear_ResponseFlag="yes","NEW HISTORICAL CATEGORY ANALYSIS","CATEGORY ANALYSIS") -> CATEGORY ANALYSIS | E37: 1
B38: CESS | C38: Capitlal Expenditure | D38: CAPITLAL EXPENDITURE SHARING SCHEMING | E38: 5
B39: CPI | C39: CPI | D39: CPI | E39: 5
B40: EB | C40: Economic Benchmarking | D40: =IF(dms_MultiYear_ResponseFlag="yes","NEW HISTORICAL ECONOMIC BENCHMARKING","ECONOMIC BENCHMARKING") -> ECONOMIC BENCHMARKING | E40: 1
B41: EBSS | C41: Efficiency Benefit Sharing Scheme | D41: EFFICIENCY BENEFIT SHARING SCHEME | E41: 5
B42: Pricing | C42: Pricing Proposal | D42: PRICING PROPOSAL | E42: 5
B43: Profitability | C43: Profitability | D43: PROFITABILITY | E43: 5
B44: PTRM | C44: Post Tax Revenue Model | D44: POST TAX REVENUE MODEL | E44: 5
B45: Reset | C45: Regulatory Reporting (Reset) | D45: REGULATORY REPORTING STATEMENT | E45: 5
B46: RFM | C46: Roll Forward Model | D46: ROLL FORWARD MODEL | E46: 5
B47: WACC | C47: Weighted Average Cost of Capital | D47: WEIGHTED AVERAGE COST OF CAPITAL | E47: 1
B51: Financial | C51: Calendar | E51: PREVIOUS | G51: CURRENT | I51: FORTHCOMING
B52: 1987-88 | C52: 1988 | D52: PRCP_y1 | E52: =INDEX(INDIRECT(dms_RPT),dms_PRCP_start_row) -> 2015-16 | F52: CRCP_y1 | G52: =INDEX(INDIRECT(dms_RPT),dms_CRCP_start_row) -> 2020-21 | H52: =FRCP_y1 -> 2025-26 | I52: =INDEX(INDIRECT(dms_RPT),dms_FRCP_start_row) -> 2025-26
B53: 1988-89 | C53: 1989 | D53: PRCP_y2 | E53: =INDEX(INDIRECT(dms_RPT),dms_PRCP_start_row+1) -> 2016-17 | F53: CRCP_y2 | G53: =INDEX(INDIRECT(dms_RPT),dms_CRCP_start_row+1) -> 2021-22 | H53: FRCP_y2 | I53: =INDEX(INDIRECT(dms_RPT),dms_FRCP_start_row+1) -> 2026-27
B54: 1989-90 | C54: 1990 | D54: PRCP_y3 | E54: =INDEX(INDIRECT(dms_RPT),dms_PRCP_start_row+2) -> 2017-18 | F54: CRCP_y3 | G54: =INDEX(INDIRECT(dms_RPT),dms_CRCP_start_row+2) -> 2022-23 | H54: FRCP_y3 | I54: =INDEX(INDIRECT(dms_RPT),dms_FRCP_start_row+2) -> 2027-28
B55: 1990-91 | C55: 1991 | D55: PRCP_y4 | E55: =INDEX(INDIRECT(dms_RPT),dms_PRCP_start_row+3) -> 2018-19 | F55: CRCP_y4 | G55: =INDEX(INDIRECT(dms_RPT),dms_CRCP_start_row+3) -> 2023-24 | H55: FRCP_y4 | I55: =INDEX(INDIRECT(dms_RPT),dms_FRCP_start_row+3) -> 2028-29
B56: 1991-92 | C56: 1992 | D56: PRCP_y5 | E56: =INDEX(INDIRECT(dms_RPT),dms_PRCP_start_row+4) -> 2019-20 | F56: CRCP_y5 | G56: =INDEX(INDIRECT(dms_RPT),dms_CRCP_start_row+4) -> 2024-25 | H56: FRCP_y5 | I56: =INDEX(INDIRECT(dms_RPT),dms_FRCP_start_row+4) -> 2029-30
B57: 1992-93 | C57: 1993 | D57: PRCP_y6 | E57: =INDEX(INDIRECT(dms_RPT),dms_PRCP_start_row+5) -> 2020-21 | F57: CRCP_y6 | G57: =INDEX(INDIRECT(dms_RPT),dms_CRCP_start_row+5) -> 2025-26 | H57: FRCP_y6 | I57: =INDEX(INDIRECT(dms_RPT),dms_FRCP_start_row+5) -> 2030-31
B58: 1993-94 | C58: 1994 | D58: PRCP_y7 | E58: =INDEX(INDIRECT(dms_RPT),dms_PRCP_start_row+6) -> 2021-22 | F58: CRCP_y7 | G58: =INDEX(INDIRECT(dms_RPT),dms_CRCP_start_row+6) -> 2026-27 | H58: FRCP_y7 | I58: =INDEX(INDIRECT(dms_RPT),dms_FRCP_start_row+6) -> 2031-32
B59: 1994-95 | C59: 1995 | D59: PRCP_y8 | E59: =INDEX(INDIRECT(dms_RPT),dms_PRCP_start_row+7) -> 2022-23 | F59: CRCP_y8 | G59: =INDEX(INDIRECT(dms_RPT),dms_CRCP_start_row+7) -> 2027-28 | H59: FRCP_y8 | I59: =INDEX(INDIRECT(dms_RPT),dms_FRCP_start_row+7) -> 2032-33
B60: 1995-96 | C60: 1996 | D60: PRCP_y9 | E60: =INDEX(INDIRECT(dms_RPT),dms_PRCP_start_row+8) -> 2023-24 | F60: CRCP_y9 | G60: =INDEX(INDIRECT(dms_RPT),dms_CRCP_start_row+8) -> 2028-29 | H60: FRCP_y9 | I60: =INDEX(INDIRECT(dms_RPT),dms_FRCP_start_row+8) -> 2033-34
B61: 1996-97 | C61: 1997 | D61: PRCP_y10 | E61: =INDEX(INDIRECT(dms_RPT),dms_PRCP_start_row+9) -> 2024-25 | F61: CRCP_y10 | G61: =INDEX(INDIRECT(dms_RPT),dms_CRCP_start_row+9) -> 2029-30 | H61: FRCP_y10 | I61: =INDEX(INDIRECT(dms_RPT),dms_FRCP_start_row+9) -> 2034-35
B62: 1997-98 | C62: 1998 | D62: PRCP_y11 | E62: =INDEX(INDIRECT(dms_RPT),dms_PRCP_start_row+10) -> 2025-26 | F62: CRCP_y11 | G62: =INDEX(INDIRECT(dms_RPT),dms_CRCP_start_row+10) -> 2030-31 | H62: FRCP_y11 | I62: =INDEX(INDIRECT(dms_RPT),dms_FRCP_start_row+10) -> 2035-36
B63: 1998-99 | C63: 1999 | D63: PRCP_y12 | E63: =INDEX(INDIRECT(dms_RPT),dms_PRCP_start_row+11) -> 2026-27 | F63: CRCP_y12 | G63: =INDEX(INDIRECT(dms_RPT),dms_CRCP_start_row+11) -> 2031-32 | H63: FRCP_y12 | I63: =INDEX(INDIRECT(dms_RPT),dms_FRCP_start_row+11) -> 2036-37
B64: 1999-00 | C64: 2000 | D64: PRCP_y13 | E64: =INDEX(INDIRECT(dms_RPT),dms_PRCP_start_row+12) -> 2027-28 | F64: CRCP_y13 | G64: =INDEX(INDIRECT(dms_RPT),dms_CRCP_start_row+12) -> 2032-33 | H64: FRCP_y13 | I64: =INDEX(INDIRECT(dms_RPT),dms_FRCP_start_row+12) -> 2037-38
B65: 2000-01 | C65: 2001 | D65: PRCP_y14 | E65: =INDEX(INDIRECT(dms_RPT),dms_PRCP_start_row+13) -> 2028-29 | F65: CRCP_y14 | G65: =INDEX(INDIRECT(dms_RPT),dms_CRCP_start_row+13) -> 2033-34 | H65: FRCP_y14 | I65: =INDEX(INDIRECT(dms_RPT),dms_FRCP_start_row+13) -> 2038-39
B66: 2001-02 | C66: 2002 | D66: PRCP_y15 | E66: =INDEX(INDIRECT(dms_RPT),dms_PRCP_start_row+14) -> 2029-30 | F66: CRCP_y15 | G66: =INDEX(INDIRECT(dms_RPT),dms_CRCP_start_row+14) -> 2034-35 | H66: FRCP_y15 | I66: =INDEX(INDIRECT(dms_RPT),dms_FRCP_start_row+14) -> 2039-40
B67: 2002-03 | C67: 2003 | D67: PRCP_y16 | E67: =INDEX(INDIRECT(dms_RPT),dms_PRCP_start_row+15) -> 2030-31 | F67: CRCP_y16 | G67: =INDEX(INDIRECT(dms_RPT),dms_CRCP_start_row+15) -> 2035-36 | H67: FRCP_y16 | I67: =INDEX(INDIRECT(dms_RPT),dms_FRCP_start_row+15) -> 2040-41
B68: 2003-04 | C68: 2004 | D68: PRCP_y17 | E68: 2031-32 | F68: CRCP_y17 | G68: 2036-37 | H68: FRCP_y17 | I68: =INDEX(INDIRECT(dms_RPT),dms_FRCP_start_row+16) -> 2041-42
B69: 2004-05 | C69: 2005 | D69: PRCP_y18 | E69: 2032-33 | F69: CRCP_y18 | G69: 2037-38 | H69: FRCP_y18 | I69: =INDEX(INDIRECT(dms_RPT),dms_FRCP_start_row+17) -> 2042-43
B70: 2005-06 | C70: 2006 | D70: PRCP_y19 | E70: 2033-34 | F70: CRCP_y19 | G70: 2038-39 | H70: FRCP_y19 | I70: =INDEX(INDIRECT(dms_RPT),dms_FRCP_start_row+18) -> 2043-44
B71: 2006-07 | C71: 2007 | D71: PRCP_y20 | E71: 2034-35 | F71: CRCP_y20 | G71: 2039-40 | H71: FRCP_y20 | I71: =INDEX(INDIRECT(dms_RPT),dms_FRCP_start_row+19) -> 2044-45
B72: 2007-08 | C72: 2008 | D72: PRCP_y21 | E72: 2035-36 | F72: CRCP_y21 | G72: 2040-41 | H72: FRCP_y21 | I72: =INDEX(INDIRECT(dms_RPT),dms_FRCP_start_row+20) -> 2045-46
B73: 2008-09 | C73: 2009 | D73: PRCP_y22 | E73: 2036-37 | F73: CRCP_y22 | G73: 2041-42 | H73: FRCP_y22 | I73: =INDEX(INDIRECT(dms_RPT),dms_FRCP_start_row+21) -> 2046-47
B74: 2009-10 | C74: 2010 | D74: PRCP_y23 | E74: 2037-38 | F74: CRCP_y23 | G74: 2042-43 | H74: FRCP_y23 | I74: =INDEX(INDIRECT(dms_RPT),dms_FRCP_start_row+22) -> 2047-48
B75: 2010-11 | C75: 2011 | D75: PRCP_y24 | E75: 2038-39 | F75: CRCP_y24 | G75: 2043-44 | H75: FRCP_y24 | I75: =INDEX(INDIRECT(dms_RPT),dms_FRCP_start_row+23) -> 2048-49
B76: 2011-12 | C76: 2012 | D76: PRCP_y25 | E76: 2039-40 | F76: CRCP_y25 | G76: 2044-45 | H76: FRCP_y25 | I76: =INDEX(INDIRECT(dms_RPT),dms_FRCP_start_row+24) -> 2049-50
B77: 2012-13 | C77: 2013
B78: 2013-14 | C78: 2014
B79: 2014-15 | C79: 2015
B80: 2015-16 | C80: 2016
B81: 2016-17 | C81: 2017
B82: 2017-18 | C82: 2018
B83: 2018-19 | C83: 2019
B84: 2019-20 | C84: 2020
B85: 2020-21 | C85: 2021
B86: 2021-22 | C86: 2022
B87: 2022-23 | C87: 2023
B88: 2023-24 | C88: 2024
B89: 2024-25 | C89: 2025
B90: 2025-26 | C90: 2026 | E90: CRY - FRY
B91: 2026-27 | C91: 2027 | D91: dms_y1 | E91: =IFERROR(INDEX(INDIRECT(dms_RPT),dms_CRY_start_row),0) -> 2023-24
B92: 2027-28 | C92: 2028 | D92: dms_y2 | E92: =IFERROR(INDEX(INDIRECT(dms_RPT),dms_CRY_start_row+1),0) -> 2024-25
B93: 2028-29 | C93: 2029 | D93: dms_y3 | E93: =IFERROR(INDEX(INDIRECT(dms_RPT),dms_CRY_start_row+2),0) -> 2025-26
B94: 2029-30 | C94: 2030 | D94: dms_y4 | E94: =IFERROR(INDEX(INDIRECT(dms_RPT),dms_CRY_start_row+3),0) -> 2026-27
B95: 2030-31 | C95: 2031 | D95: dms_y5 | E95: =IFERROR(INDEX(INDIRECT(dms_RPT),dms_CRY_start_row+4),0) -> 2027-28
B96: 2031-32 | C96: 2032 | D96: dms_y6 | E96: =IFERROR(INDEX(INDIRECT(dms_RPT),dms_CRY_start_row+5),0) -> 2028-29
B97: 2032-33 | C97: 2033 | D97: dms_y7 | E97: =IFERROR(INDEX(INDIRECT(dms_RPT),dms_CRY_start_row+6),0) -> 2029-30
B98: 2033-34 | C98: 2034 | D98: dms_y8 | E98: =IFERROR(INDEX(INDIRECT(dms_RPT),dms_CRY_start_row+7),0) -> 2030-31
B99: 2034-35 | C99: 2035 | D99: dms_y9 | E99: =IFERROR(INDEX(INDIRECT(dms_RPT),dms_CRY_start_row+8),0) -> 2031-32
B100: 2035-36 | C100: 2036 | D100: dms_y10 | E100: =IFERROR(INDEX(INDIRECT(dms_RPT),dms_CRY_start_row+9),0) -> 2032-33
B101: 2036-37 | C101: 2037 | D101: dms_y11 | E101: =IFERROR(INDEX(INDIRECT(dms_RPT),dms_CRY_start_row+10),0) -> 2033-34
B102: 2037-38 | C102: 2038 | D102: dms_y12 | E102: =IFERROR(INDEX(INDIRECT(dms_RPT),dms_CRY_start_row+11),0) -> 2034-35
B103: 2038-39 | C103: 2039 | D103: dms_y13 | E103: =IFERROR(INDEX(INDIRECT(dms_RPT),dms_CRY_start_row+12),0) -> 2035-36
B104: 2039-40 | C104: 2040 | D104: dms_y14 | E104: =IFERROR(INDEX(INDIRECT(dms_RPT),dms_CRY_start_row+13),0) -> 2036-37
B105: 2040-41 | C105: 2041 | D105: dms_y15 | E105: =IFERROR(INDEX(INDIRECT(dms_RPT),dms_CRY_start_row+14),0) -> 2037-38
B106: 2041-42 | C106: 2042 | D106: dms_y16 | E106: =IFERROR(INDEX(INDIRECT(dms_RPT),dms_CRY_start_row+15),0) -> 2038-39
B107: 2042-43 | C107: 2043 | D107: dms_y17 | E107: 2038-39
B108: 2043-44 | C108: 2044 | D108: dms_y18 | E108: 2039-40
B109: 2044-45 | C109: 2045 | D109: dms_y19 | E109: 2040-41
B110: 2045-46 | C110: 2046 | D110: dms_y20 | E110: 2041-42
B111: 2046-47 | C111: 2047 | D111: dms_y21 | E111: 2042-43
B112: 2047-48 | C112: 2048 | D112: dms_y22 | E112: 2043-44
B113: 2048-49 | C113: 2049 | D113: dms_y23 | E113: 2044-45
B114: 2049-50 | C114: 2050 | D114: dms_y24 | E114: 2045-46
D115: dms_y25 | E115: 2046-47
D116: dms_y26 | E116: 2047-48
D117: dms_y27 | E117: 2048-49
D118: dms_y28 | E118: 2049-50

Sheet AER ETL (hidden)
B1: AER ETL INFORMATION
B3: USES NAMED RANGES FLAG | C3: yes | D3: dms_Defined_Names_Used
B5: IF THIS IS AN ABC RIN - make sure the the named range CRY is applied and the named range dms_dollar_nom_UOM is applied
B6: IF THIS IS A RESET RIN - make sure the named ranges CRY and dms_dollar_nom_UOM are NOT present in the workbook
B7: FOR ABC RINS THAT SPAN MULTIPLE YEARS - make sure MultiYear Flag is set and final year entered as required
B9: Full trading name | C9: =INDEX(dms_TradingNameFull_List,MATCH(dms_TradingName,dms_TradingName_List)) -> Jemena Gas Networks (NSW) Ltd | E9: dms_TradingNameFull
B10: Trading name | C10: =dms_TradingName -> JGN
B11: Unique ID | C11: =INDEX(dms_UniqueID_List,MATCH(dms_TradingName,dms_TradingName_List)) -> GDDNSW100 | D11: dms_UID
A12: Selected here | B12: Model / RIN | C12: Reset | D12: dms_Model
A13: Read from Business & other details | B13: Source | C13: Regulatory proposal | D13: dms_Source
B14: Data quality | C14: Consolidated | D14: For DB purposes this is always Consoldiated
B15: Data status | C15: Public | D15: For DB purposes this is always Public
B16: Amendment reason | C16: =dms_Amendment_Text -> . | F16: dms_AmendmentReason
B17: Submission date | C17: =dms_Typed_Submission_Date -> dd/mm/yy | D17: dms_SubmissionDate
A19: Redundant | B19: EBSS - First application of scheme in forthcoming period? | C19: No
A20: Pre-populated from lookup table | B20: Data ingestion data quality | C20: Consolidated | D20: dms_DataQuality | E20: Always Consolidated
B21: Sector | C21: =INDEX(dms_Sector_List,MATCH(dms_TradingName,dms_TradingName_List)) -> Gas | D21: dms_Sector | E21: =INDEX(dms_Sector_List,MATCH(dms_TradingName,dms_TradingName_List))
B22: Segment | C22: =INDEX(dms_Segment_List,MATCH(dms_TradingName,dms_TradingName_List)) -> Distribution | D22: dms_Segment | E22: =INDEX(dms_Segment_List,MATCH(dms_TradingName,dms_TradingName_List))
B23: Regulatory Year Ending | C23: =IF(dms_MultiYear_Flag=1,LEFT(dms_Specified_FinalYear,2)&RIGHT(dms_Specified_FinalYear,2),dms_RYE_result) -> 2030 | D23: dms_RYE | E23: =IF(dms_MultiYear_Flag=1,LEFT(dms_Specified_FinalYear,2)&RIGHT(dms_Specified_FinalYear,2),dms_RYE_result)
B24: Reporting Period Type | C24: =INDEX(dms_RPT_List,MATCH(dms_TradingName,dms_TradingName_List)) -> Financial | D24: dms_RPT | E24: =INDEX(dms_RPT_List,MATCH(dms_TradingName,dms_TradingName_List))
B25: EB/CA Unit of Measure for Monetary Values | C25: $0s | D25: dms_dollar_nom_UOM | E25: If the cover sheet is attached to an ABC RIN apply the NAMED RANGE to the cell
B26: Security Classification | C26: Public | D26: dms_Classification | E26: Always Public
B27: Jurisdiction | C27: =INDEX(dms_JurisdictionList,MATCH(dms_TradingName,dms_TradingName_List)) -> NSW | D27: dms_Jurisdiction | E27: =INDEX(dms_JurisdictionList,MATCH(dms_TradingName,dms_TradingName_List))
A28: Relevant for PTRM, RFMs and Reset RINS | B28: $ REAL REFERENCES
B29: Does the named range CRY exist in this file? | C29: =IFERROR(CRY,"NO") -> NO
B30: CRY-1 (last full calendar year before CRY) | C30: =IFERROR(IF(dms_RPT="calendar",CRY-1,LEFT(CRY,4)),"CRY not present") -> CRY not present | D30: dms_Cal_Year_B4_CRY | E30: '=IF(dms_RPT="financial",VALUE(LEFT(dms_SingleYear_FinalYear_Result,4)),VALUE(LEFT(dms_SingleYear_FinalYear_Result,4)-1))
B31: Dollar $ real month | C31: =INDEX(dms_RPTMonth_List,MATCH(dms_TradingName,dms_TradingName_List)) -> June | D31: dms_RPTMonth | E31: =INDEX(dms_RPTMonth_List,MATCH(dms_TradingName,dms_TradingName_List))
B32: Dollar $ real (the last month before the FRCP_y1) | C32: =IF(dms_Model="RFM",dms_DollarReal_Prev, IF(dms_SingleYearModel="yes",CONCATENATE(dms_RPTMonth)&" "&VALUE((LEFT(dms_CRY_start_year,2)&RIGHT(dms_CRY_start_year,2))),CONCATENATE(dms_RPTMonth)&" "&dms_DollarReal_year)) -> June 2025 | D32: dms_DollarReal | E32: =IF(dms_Model="RFM",dms_DollarReal_Prev, IF(dms_SingleYearModel="yes",CONCATENATE(dms_RPTMonth)&" "&VALUE((LEFT(dms_CRY_start_year,2)&RIGHT(dms_CRY_start_year,2))),CONCATENATE(dms_RPTMonth)&" "&dms_DollarReal_year))
B33: Dollar $ real previous year (PRCP_y5) | C33: December 2017 | D33: dms_DollarReal_Prev | E33: =IF(SUM(dms_SingleYear_Model)>0,CONCATENATE(dms_RPTMonth)&" "&VALUE(((LEFT(CRY,2))&RIGHT(CRY,2))-1),CONCATENATE(dms_RPTMonth)&" "&VALUE(((LEFT(dms_CRCP_FirstYear_Result,2)&RIGHT(dms_CRCP_FirstYear_Result,2))))-1)
B34: PTRM/ RFMs
B35: Form of control | C35: =INDEX(dms_FormControl_List,MATCH(dms_TradingName,dms_TradingName_List)) -> Tariff cap | D35: dms_FormControl | E35: =INDEX(dms_FormControl_List,MATCH(dms_TradingName,dms_TradingName_List))
A36: All potential values for Regulatory Years or RYEs as calculated | B36: This block works out the various RYE's for ALL RIN types and MODELS
B37: dms_start_year | C37: =FRCP_y1 -> 2025-26 | D37: =FRCP_y1 | E37: FRCP_y1 from cover sheet
B38: dms_CRY_start_year | C38: =IFERROR(CRY,CRCP_y4) -> 2023-24 | D38: =IFERROR(CRY,CRCP_y4)
B39: dms_CRY_start_row | C39: =IFERROR(MATCH(dms_CRY_start_year,INDIRECT(dms_RPT),0),0) -> 37 | D39: =IFERROR(MATCH(dms_CRY_start_year,INDIRECT(dms_RPT),0),0)
B40: dms_FRCP_start_row | C40: =MATCH(dms_start_year,INDIRECT(dms_RPT),0) -> 39 | D40: =MATCH(dms_start_year,INDIRECT(dms_RPT),0) | E40: Uses FRCP_y1 as a start reference
B41: dms_CRCP_start_row | C41: =dms_FRCP_start_row-dms_CRCPlength_Num -> 34 | D41: =dms_FRCP_start_row-dms_CRCPlength_Num | E41: Uses the value in dms_CRCPlength_Num
B42: dms_PRCP_start_row | C42: =dms_FRCP_start_row-dms_CRCPlength_Num-dms_PRCPlength_Num -> 29 | D42: =dms_FRCP_start_row-dms_CRCPlength_Num-dms_PRCPlength_Num | E42: Uses the value in dms_CRCPlength_Num and dms_PRCPlength_Num
B43: dms_RYE_start_row | C43: =dms_FRCP_start_row+(dms_FRCPlength_Num-1) -> 43 | D43: =dms_FRCP_start_row+(dms_FRCPlength_Num-1) | E43: Uses the value in dms_FRCPlength_Num-1
B44: FRCP_start_year | C44: =INDEX(INDIRECT(dms_RPT),dms_FRCP_start_row) -> 2025-26 | D44: =INDEX(INDIRECT(dms_RPT),dms_FRCP_start_row) | E44: Converts the FRCP start row to display the year
B45: CRCP_start_year | C45: =INDEX(INDIRECT(dms_RPT),dms_CRCP_start_row) -> 2020-21 | D45: =INDEX(INDIRECT(dms_RPT),dms_CRCP_start_row) | E45: Converts the CRCP start row to display the year
B46: PRCP_start_year | C46: =INDEX(INDIRECT(dms_RPT),dms_PRCP_start_row) -> 2015-16 | D46: =INDEX(INDIRECT(dms_RPT),dms_PRCP_start_row) | E46: Converts the PRCP start row to display the year
B47: FRCP_final_year | C47: =INDEX(INDIRECT(dms_RPT),dms_FRCP_start_row+dms_FRCPlength_Num-1) -> 2029-30 | D47: =INDEX(INDIRECT(dms_RPT),dms_FRCP_start_row+dms_FRCPlength_Num-1) | E47: Finds the FRCP final year
B48: CRCP_final_year | C48: =INDEX(INDIRECT(dms_RPT),dms_CRCP_start_row+dms_CRCPlength_Num-1) -> 2024-25 | D48: =INDEX(INDIRECT(dms_RPT),dms_CRCP_start_row+dms_CRCPlength_Num-1) | E48: Finds the CRCP final year
B49: PRCP_final_year | C49: =INDEX(INDIRECT(dms_RPT),dms_PRCP_start_row+dms_FRCPlength_Num-1) -> 2019-20 | D49: =INDEX(INDIRECT(dms_RPT),dms_PRCP_start_row+dms_FRCPlength_Num-1) | E49: Finds the PRCP final year
B50: dms_Reset_final_year | C50: =INDEX(INDIRECT(dms_RPT),dms_RYE_start_row) -> 2029-30 | D50: =INDEX(INDIRECT(dms_RPT),dms_RYE_start_row) | E50: For Resets and PTRM/RFMs (same as FRCP_final_year)
B51: dms_SpecifiedYear_final_year | C51: =FRY -> 2029-30 | D51: =FRY | E51: FRY from cover sheet
B52: dms_DollarReal_year | C52: =LEFT(CRCP_final_year,2)&RIGHT(CRCP_final_year,2) -> 2025 | D52: =LEFT(CRCP_final_year,2)&RIGHT(CRCP_final_year,2) | E52: Uses the value in CRCP_final_year
B53: dms_Previous_DollarReal_year | C53: =LEFT(PRCP_final_year,2)&RIGHT(PRCP_final_year,2) -> 2020 | D53: =LEFT(PRCP_final_year,2)&RIGHT(PRCP_final_year,2) | E53: Uses the value in PRCP_final_year
B54: dms_CRY_RYE | C54: =IFERROR(LEFT(CRY,2)&RIGHT(CRY,2),0) -> 0 | D54: =IFERROR(LEFT(CRY,2)&RIGHT(CRY,2),0) | E54: For ABC single year RINS
B55: dms_Reset_RYE | C55: =IF(dms_Model_Span>1,IF(dms_Model="RFM",(LEFT(dms_DollarReal_year,2)&RIGHT(dms_DollarReal_year,2)),(LEFT(dms_Reset_final_year,2)&RIGHT(dms_Reset_final_year,2))),0) -> 2030 | D55: =IF(dms_Model_Span>1,IF(dms_Model="RFM",(LEFT(dms_DollarReal_year,2)&RIGHT(dms_DollarReal_year,2)),(LEFT(dms_Reset_final_year,2)&RIGHT(dms_Reset_final_year,2))),0) | E55: If model span > 1 then uses dms_Reset_RYE otherwise it's a multi year ABC and uses dms_Specified_RYE
B56: dms_Specified_RYE | C56: =IF(dms_MultiYear_ResponseFlag="Yes",(LEFT(dms_Specified_FinalYear,2)&RIGHT(dms_Specified_FinalYear,2)),0) -> 0 | D56: =IF(dms_MultiYear_ResponseFlag="Yes",(LEFT(dms_Specified_FinalYear,2)&RIGHT(dms_Specified_FinalYear,2)),0) | E56: If multi year ABC - uses dms_Specified_FinalYear
B57: dms_Model_Span | C57: =INDEX(dms_Model_Span_List,MATCH(dms_Model,dms_Model_List)) -> 5 | D57: =INDEX(dms_Model_Span_List,MATCH(dms_Model,dms_Model_List)) | E57: A result of 5 is used to signify that it is more than 1 year span
B58: dms_RYE_result | C58: =IF(dms_MultiYear_ResponseFlag="yes",dms_Specified_RYE,(IF(dms_Model_Span>1,dms_Reset_RYE,dms_CRY_RYE))) -> 2030 | D58: =IF(dms_MultiYear_ResponseFlag="yes",dms_Specified_RYE,(IF(dms_Model_Span>1,dms_Reset_RYE,dms_CRY_RYE))) | E58: Nested IF - feeds into dms_RYE
B59: dms_Reset_Span | C59: =IF(dms_Reset_RYE>0,CONCATENATE(FRCP_y1," to ",FRCP_final_year),0) -> 2025-26 to 2029-30 | D59: =IF(dms_Reset_RYE>0,CONCATENATE(FRCP_y1," to ",FRCP_final_year),0) | E59: Reset span of years as text
B60: dms_SpecifiedYear_Span | C60: =IF(dms_Specified_RYE>0,CONCATENATE(CRY," to ",dms_Specified_FinalYear),0) -> 0 | D60: =IF(dms_Specified_RYE>0,CONCATENATE(CRY," to ",dms_Specified_FinalYear),0) | E60: Multi year ABC span of years as text
B61: dms_Header_Span | C61: =IF(dms_MultiYear_Flag=1,dms_SpecifiedYear_Span,IF(dms_Model_Span>1,dms_y1&" to "&FRCP_final_year,CRY)) -> 2023-24 to 2029-30 | D61: =IF(dms_MultiYear_Flag=1,dms_SpecifiedYear_Span,IF(dms_Model_Span>1,dms_Reset_Span,CRY)) | E61: NESTED IF - for Sheet Headers
B62: ABC RINS THAT SPAN MULTIPLE YEARS
B63: This is a multi year ABC RIN? | C63: No
C64: =IF(dms_MultiYear_ResponseFlag="No",0,1) -> 0 | D64: dms_MultiYear_Flag | E64: This is set from the answer provided above
C65: =IF(dms_MultiYear_Flag=1,FRY,"not a Multiple year submission") -> not a Multiple year submission | D65: dms_Specified_FinalYear | E65: The result here is returned to dms_CRCP_FinalYear_Result if response to Q in C73 is "yes" and dms_MultiYear_Flag is set to 1
B66: Start year for 5.2 in Multi year ABC RINS | C66: =IFERROR(IF(dms_MultiYear_Flag=1,FRY,CRY),"not an ABC") -> not an ABC | D66: dms_0502_Inst_Year | E66: =IF(dms_MultiYear_Flag=1,FRY,CRY) | G66: For single year RINS this is CRY - multi year RINS need to start a the end of the span of years (ie. FRY)
B67: WHAT IS THE RYE?
B68: Reg Period Lengths
B69: PRCP length in years | C69: =INDEX(dms_PRCPlength_List,MATCH(dms_TradingName,dms_TradingName_List)) -> 5 | D69: dms_PRCPlength_Num | E69: =INDEX(dms_PRCPlength_List,MATCH(dms_TradingName,dms_TradingName_List))
B70: CRCP length in years | C70: =INDEX(dms_CRCPlength_List,MATCH(dms_TradingName,dms_TradingName_List)) -> 5 | D70: dms_CRCPlength_Num | E70: =INDEX(dms_CRCPlength_List,MATCH(dms_TradingName,dms_TradingName_List))
B71: FRCP length in years | C71: =INDEX(dms_FRCPlength_List,MATCH(dms_TradingName,dms_TradingName_List)) -> 5 | D71: dms_FRCPlength_Num | E71: =INDEX(dms_FRCPlength_List,MATCH(dms_TradingName,dms_TradingName_List))
B72: Single year RIN?
B73: Single Year ABC RIN ? | C73: =IF(dms_Model="EB",1,0) -> 0 | D73: dms_EB
C74: =IF(dms_Model="CA",1,0) -> 0 | D74: dms_CA | E74: =dms_SingleYear_Model
C75: =IF(dms_Model="ARR",1,0) -> 0 | D75: dms_ARR
B76: Is this a single Year ABC RIN? | C76: =IF(SUM(dms_SingleYear_Model)=1,"yes","no") -> no | D76: dms_SingleYearModel | E76: =IF(SUM(dms_SingleYear_Model)=1,"yes","no")
B77: Single Year Final Year Result | C77: =IF(AND(dms_SingleYearModel="yes",dms_MultiYear_Flag=0),CRY,0) -> 0 | D77: dms_SingleYear_FinalYear_Result | E77: =IFERROR(IF(SUM(dms_SingleYear_Model)<>0,(INDIRECT(dms_SingleYear_FinalYear_Ref)),"not a single year RIN"),"CRY not present")
B78: Multi year RIN?
B80: Multi Year Reset/Model? | C80: =IF(dms_Model_Span>1,"yes","no") -> yes
B81: Final year result for Reset/Model | C81: =IF(dms_Model_Span>1,dms_Reset_final_year,0) -> 2029-30 | D81: dms_MultiYear_FinalYear_Result | E81: dms_CRCP_FinalYear_Result
B83: Multi Year ABC RIN? | C83: =IF(dms_MultiYear_Flag=1,"yes","no") -> no | D83: dms_MultiYear_ABC_RIN
B84: Final year result for ABC multi year | C84: =IF(dms_MultiYear_Flag=1,C51,0) -> 0
B86: EB RINS
B87: Calendar Year for table 3.6 data | C87: =IFERROR(IF(dms_Segment="Transmission",dms_Cal_Year_B4_CRY,CRY),"CRY not present") -> CRY not present | D87: dms_0306_Year | E87: =IF(dms_Segment="Transmission",dms_Cal_Year_B4_CRY,CRY)
B88: CA RINS
B89: Find how many rows in tables 6.3 sustained interruptions? | E89: dms_060301_MaxRows only returns a valid value when cover sheet is attached to a CA file
C90: =IF(dms_Model<>"CA","not a CA","Is a CA") -> not a CA | E90: =IF(dms_Model<>"CA","not a CA","Is a CA")
B91: dms_060301_Avg_Duration_Sustained_Int_Values present? | C91: =IFERROR(IF(INDEX(dms_060301_Avg_Duration_Sustained_Int_Values,1,1)<>"","yes","no"),"no") -> no | D91: dms_060301_checkvalue | E91: =IFERROR(IF(INDEX(dms_060301_Avg_Duration_Sustained_Int_Values,1,1)<>"","yes","no"),"no")
C92: =IF(AND(dms_Model="CA",(dms_060301_checkvalue="no")),"error - NR not present","no errors") -> no errors | E92: =IF(AND(dms_Model="CA",(dms_060301_checkvalue="no")),"error - NR not present","no errors")
B93: Table 6.3.1 - last row reference | C93: =IFERROR(IF(dms_Model="CA",LOOKUP(2,1/(dms_060301_Avg_Duration_Sustained_Int_Values<>""),(ROW(dms_060301_Avg_Duration_Sustained_Int_Values))),"not a CA"),"6.3 not present") -> not a CA | D93: dms_060301_LastRow | E93: =IFERROR(IF(dms_Model="CA",LOOKUP(2,1/(dms_060301_Avg_Duration_Sustained_Int_Values<>""),(ROW(dms_060301_Avg_Duration_Sustained_Int_Values))),"not a CA"),"6.3 not present")
B94: Table 6.3.1 - max number rows | C94: =IFERROR(IF(dms_Model="CA",(dms_060301_LastRow-15),"not a CA"),"error") -> not a CA | D94: dms_060301_MaxRows | E94: =IFERROR(IF(dms_Model="CA",(dms_060301_LastRow-15),"not a CA"),"error")
B95: Table 6.6.3 - Public lighting repair - no. business days | C95: =INDEX(dms_663_List,MATCH(dms_TradingName,dms_TradingName_List)) -> 0 | D95: dms_663 | E95: =INDEX(dms_663_List,MATCH(dms_TradingName,dms_TradingName_List))
B96: ARR or RESET RINS
B97: How many rows in tables 6.1 or 6.7? (leap year?) | C97: insert dms_LeapYear NR if required | E97: 'dms_LeapYear is used to determine dms_060701_Max_Rows BUT it is only found on worksheet 6.1 or 6.7 and the date value in the cell is used to determine whether it is a leap year
B98: Is dms_LeapYear named range present? | C98: =IFERROR(IF(dms_LeapYear,"yes"),"no") -> no
B99: Table 6.7.1 - includes a leap year? | C99: =IFERROR(IF(MONTH(DATE(YEAR(dms_LeapYear),2,29))=2,"is a leap year","not a leap year"), "dms_LeapYear not present") -> dms_LeapYear not present | D99: dms_LeapYear_Result | E99: =IFERROR(IF(MONTH(DATE(YEAR(dms_LeapYear),2,29))=2,"is a leap year","not a leap year"),"dms_LeapYear not present")
B100: MaxRows if Reset and leap year | C100: =IF(dms_LeapYear_Result="is a leap year",1827,1826) -> 1826 | D100: dms_060701_Reset_MaxRows | E100: =IF(dms_LeapYear_Result="is a leap year",1827,1826) | H100: number of days present in Reset RIN table
B101: MaxRows if ARR and leap year | C101: =IF(dms_LeapYear_Result="is a leap year",366,365) -> 365 | D101: dms_060701_ARR_MaxRows | E101: =IF(dms_LeapYear_Result="is a leap year",366,365) | H101: number of days present in ARR RIN table
B102: Table 6.7.1 - Max Rows (leap year/ non leap year) | C102: =IF(dms_Model="ARR",dms_060701_ARR_MaxRows,IF(dms_Model="Reset",dms_060701_Reset_MaxRows,"not a relevant RIN type")) -> 1826 | D102: dms_060701_MaxRows | E102: =IF(dms_Model="ARR",dms_060701_ARR_MaxRows,IF(dms_Model="Reset",dms_060701_Reset_MaxRows,"not a relevant RIN type"))
B103: How many columns in 6.7? (4 or 5 feeder categories) | C103: =IF(dms_FifthFeeder_flag_NSP="NO","This NSP has only 4 feeder categories","This NSP has 5 feeder categories") -> This NSP has only 4 feeder categories
B104: Table 6.7.1 - Last column (# of feeder categories > 4) | C104: =IF(dms_FifthFeeder_flag_NSP="NO",10,12) -> 10 | D104: dms_060701_MaxCols | E104: =IF(dms_FifthFeeder_flag_NSP="NO",8,10)
B105: Table 6.7.1 - Number of offset rows | C105: =IF(dms_Model="ARR",15,9) -> 9 | D105: dms_060701_OffsetRows | E105: =IF(dms_Model="ARR",15,9)
B106: Start date for telephone answering in 6.1 or 6.7? | E106: Using 060101 as naming standard not 060701 for start dates
B107: Table 6.1.1 and 6.7.1 - Start Date as Text | C107: =IF(dms_SingleYearModel="yes",(CONCATENATE(IF(LEN(CRY)=4,"1-Jan-","1-Jul-"),LEFT(CRY,4))),(CONCATENATE(IF(LEN(PRCP_y4)=4,"1-Jan-","1-Jul-"),LEFT(PRCP_y4,4)))) -> 1-Jul-2018 | D107: dms_060101_StartDateTxt | E107: =IF(SUM(dms_SingleYear_Model)>1,(CONCATENATE(IF(LEN(CRY)=4,"1-Jan-","1-Jul-"),LEFT(CRY,4))),(CONCATENATE(IF(LEN(CRCP_y4)=4,"1-Jan-","1-Jul-"),LEFT(CRCP_y4,4))))
B108: Table 6.1.1 and 6.7.1 - Start Date as Date Value | C108: =DATEVALUE(dms_060701_StartDateTxt) -> 43282 | D108: dms_060101_StartDateVal | E108: =DATEVALUE(dms_060701_StartDateTxt)
B109: ARRs
B110: How many rows in table 6.8? | C110: insert dms_060801_StartCell NR if required | E110: dms_060801_StartCell is only found on worksheet 6.8 and is used to determine the starting date for the date range
B111: Is dms_060801_StartCell named range present? | C111: =IFERROR(IF((ROW(dms_060801_StartCell)-1)=1,"yes","yes"),"no") -> no | D111: Must be present for ARRs | E111: =IFERROR(IF((ROW(dms_060801_StartCell)-1)=1,"yes","yes"),"no")
B112: Table 6.8 - Number of offset rows | C112: 12 | D112: dms_0608_OffsetRows | E112: =IFERROR(IF(dms_Model="ARR",(ROW(dms_060801_StartCell)-1),"not an ARR"),"6.8 error")
B113: Table 6.8 - Last row | C113: =IFERROR(IF(dms_060801_StartCell<>"",IF(dms_Model="ARR",(LOOKUP(2,1/(dms_060801_01_Values<>""),(ROW(dms_060801_01_Values)))),"not an ARR"),0),"0") -> 0 | D113: dms_0608_LastRow | E113: =IFERROR(IF(dms_060801_StartCell<>"",IF(dms_Model="ARR",(LOOKUP(2,1/(dms_060801_01_Values<>""),(ROW(dms_060801_01_Values)))),"not an ARR"),0),"0")
B114: Table 6.8 - MaxRows | C114: =IFERROR(IF(dms_Model="ARR",(MAX(0,dms_0608_LastRow-dms_0608_OffsetRows)),"not an ARR"),"0") -> not an ARR | D114: dms_060801_MaxRows | E114: =IFERROR(IF(dms_Model="ARR",(MAX(0,dms_0608_LastRow-dms_0608_OffsetRows)),"not an ARR"),"0")
B115: TNSP RESET RINS
B116: Table 7.9.4 only appears in TNSPs Reset RIN
B117: Table 7.9.4 - first year | C117: =LEFT(PRCP_y3,4) -> 2017 | D117: dms_070904_Start_Year | E117: =LEFT(PRCP_y3,4)
B119: MISC
B120: Distribution Determination Reference | C120: =INDEX(dms_DeterminationRef_List,MATCH(dms_TradingName,dms_TradingName_List)) -> 0 | D120: dms_DeterminationRef
B121: Public lighting NSP? | C121: =INDEX(dms_Public_Lighting_List,MATCH(dms_TradingName,dms_TradingName_List)) -> NO | D121: dms_Public_Lighting | E121: =INDEX(dms_Public_Lighting_List,MATCH(dms_TradingName,dms_TradingName_List))
B122: CBD Feeder for this business | C122: =INDEX(dms_CBD_flag,MATCH(dms_TradingName,dms_TradingName_List)) -> NO | D122: dms_CBD_flag_NSP
B123: Urban Feeder for this business | C123: =INDEX(dms_Urban_flag,MATCH(dms_TradingName,dms_TradingName_List)) -> NO | D123: dms_Urban_flag_NSP
B124: Short rural Feeder for this business | C124: =INDEX(dms_ShortRural_flag,MATCH(dms_TradingName,dms_TradingName_List)) -> NO | D124: dms_ShortRural_flag_NSP
B125: Long rural Feeder for this business | C125: =INDEX(dms_LongRural_flag,MATCH(dms_TradingName,dms_TradingName_List)) -> NO | D125: dms_LongRural_flag_NSP
B126: Fifth Feeder Category (eg. TasNetworks (D)) | C126: =INDEX(dms_FeederType_5_flag,MATCH(dms_TradingName,dms_TradingName_List)) -> NO | D126: dms_FifthFeeder_flag_NSP | E126: =INDEX(dms_FeederType_5_flag,MATCH(dms_TradingName,dms_TradingName_List))
B128: DISCARD FILES
B129: discard this record? | C129: NO | D129: dms_DISCARD | E129: If record is to be discarded from DB set this flag to YES
B131: SUBSET FILES
B132: Is this Submission File a Subset File | C132: NO | D132: dms_Partial
B135: REGULATORY YEARS FOR MULTI RYE SUBMISSIONS
B136: Multiple RYE flag | C136: NO | D136: dms_Multi_RYE_flag
C137: Manually specify RYE | D137: Named ranges to apply
C138: 2013 | D138: dms_RYE_01
C139: 2014 | D139: dms_RYE_02
C140: 2015 | D140: dms_RYE_03
C141: 2016 | D141: dms_RYE_04
C142: 2017 | D142: dms_RYE_05
C143: 2018 | D143: dms_RYE_06
C144: 2019 | D144: dms_RYE_07
C145: 2020 | D145: dms_RYE_08
C146: 2021 | D146: dms_RYE_09
